Workbook

Sheet Data
B1: Level of waste
A2: Batch 01 | B2: 0.236088762
A3: Batch 02 | B3: 0.02762212939
A4: Batch 03 | B4: 0.09272619147
A5: Batch 04 | B5: 0.1821430633
A6: Batch 05 | B6: 2.181061977
A7: Batch 06 | B7: 1.063105141
A8: Batch 07 | B8: 0.04732726087
A9: Batch 08 | B9: 0.1822613576
A10: Batch 09 | B10: 0.3936305016
A11: Batch 10 | B11: 4.235741645
A12: Batch 11 | B12: 0.03814526088
A13: Batch 12 | B13: 0.6169000098
A14: Batch 13 | B14: 0.287051824
A15: Batch 14 | B15: 0.1007952862
A16: Batch 15 | B16: 3.775122533
A17: Batch 16 | B17: 0.4353120954
A18: Batch 17 | B18: 3.500556364
A19: Batch 18 | B19: 1.572124925
A20: Batch 19 | B20: 1.969275479
A21: Batch 20 | B21: 0.7128508177
A22: Batch 21 | B22: 0.08353349484
A23: Batch 22 | B23: 1.438745628
A24: Batch 23 | B24: 4.287822072
A25: Batch 24 | B25: 0.1260795168
A26: Batch 25 | B26: 4.880755753
A27: Batch 26 | B27: 0.553674815
A28: Batch 27 | B28: 0.02715519741
A29: Batch 28 | B29: 0.07856925185
A30: Batch 29 | B30: 0.5930119192
A31: Batch 30 | B31: 0.2571478726
A32: Batch 31 | B32: 0.3276797388
A33: Batch 32 | B33: 1.615863691
A34: Batch 33 | B34: 0.6341188853
A35: Batch 34 | B35: 1.846750714
A36: Batch 35 | B36: 0.2068914874
A37: Batch 36 | B37: 0.3892462897
A38: Batch 37 | B38: 1.748397176
A39: Batch 38 | B39: 1.347742303
A40: Batch 39 | B40: 0.06392451695
A41: Batch 40 | B41: 0.02882948016
A42: Batch 41 | B42: 0.190528245
A43: Batch 42 | B43: 0.1819507907
A44: Batch 43 | B44: 0.5553856092
A45: Batch 44 | B45: 1.243031908
A46: Batch 45 | B46: 0.4311320228
A47: Batch 46 | B47: 1.326018095
A48: Batch 47 | B48: 0.3395740878

Sheet XLSTAT_20230310_142947_1_HID1 (hidden)
A1: 1 | C1: =0+(A1-1)*0.005005005 -> 0 | D1: =[3]!XLSTAT_PDFNormal(C1,0.988370280544897,1.2584400089931) -> 0.2328798386
A2: 2 | C2: 0.005005005 | D2: =[3]!XLSTAT_PDFNormal(C2,0.988370280544897,1.2584400089931) -> 0.2336065581
A3: 3 | C3: 0.01001001 | D3: =[3]!XLSTAT_PDFNormal(C3,0.988370280544897,1.2584400089931) -> 0.2343318387
A4: 4 | C4: 0.015015015 | D4: =[3]!XLSTAT_PDFNormal(C4,0.988370280544897,1.2584400089931) -> 0.235055653
A5: 5 | C5: 0.02002002 | D5: =[3]!XLSTAT_PDFNormal(C5,0.988370280544897,1.2584400089931) -> 0.2357779736
A6: 6 | C6: 0.025025025 | D6: =[3]!XLSTAT_PDFNormal(C6,0.988370280544897,1.2584400089931) -> 0.236498773
A7: 7 | C7: 0.03003003 | D7: =[3]!XLSTAT_PDFNormal(C7,0.988370280544897,1.2584400089931) -> 0.2372180236
A8: 8 | C8: 0.035035035 | D8: =[3]!XLSTAT_PDFNormal(C8,0.988370280544897,1.2584400089931) -> 0.237935698
A9: 9 | C9: 0.04004004 | D9: =[3]!XLSTAT_PDFNormal(C9,0.988370280544897,1.2584400089931) -> 0.2386517687
A10: 10 | C10: 0.045045045 | D10: =[3]!XLSTAT_PDFNormal(C10,0.988370280544897,1.2584400089931) -> 0.2393662082
A11: 11 | C11: 0.05005005 | D11: =[3]!XLSTAT_PDFNormal(C11,0.988370280544897,1.2584400089931) -> 0.2400789889
A12: 12 | C12: 0.055055055 | D12: =[3]!XLSTAT_PDFNormal(C12,0.988370280544897,1.2584400089931) -> 0.2407900833
A13: 13 | C13: 0.06006006 | D13: =[3]!XLSTAT_PDFNormal(C13,0.988370280544897,1.2584400089931) -> 0.241499464
A14: 14 | C14: 0.065065065 | D14: =[3]!XLSTAT_PDFNormal(C14,0.988370280544897,1.2584400089931) -> 0.2422071033
A15: 15 | C15: 0.07007007 | D15: =[3]!XLSTAT_PDFNormal(C15,0.988370280544897,1.2584400089931) -> 0.2429129738
A16: 16 | C16: 0.075075075 | D16: =[3]!XLSTAT_PDFNormal(C16,0.988370280544897,1.2584400089931) -> 0.2436170479
A17: 17 | C17: 0.08008008 | D17: =[3]!XLSTAT_PDFNormal(C17,0.988370280544897,1.2584400089931) -> 0.2443192981
A18: 18 | C18: 0.085085085 | D18: =[3]!XLSTAT_PDFNormal(C18,0.988370280544897,1.2584400089931) -> 0.245019697
A19: 19 | C19: 0.09009009 | D19: =[3]!XLSTAT_PDFNormal(C19,0.988370280544897,1.2584400089931) -> 0.245718217
A20: 20 | C20: 0.095095095 | D20: =[3]!XLSTAT_PDFNormal(C20,0.988370280544897,1.2584400089931) -> 0.2464148306
A21: 21 | C21: 0.1001001 | D21: =[3]!XLSTAT_PDFNormal(C21,0.988370280544897,1.2584400089931) -> 0.2471095104
A22: 22 | C22: 0.105105105 | D22: =[3]!XLSTAT_PDFNormal(C22,0.988370280544897,1.2584400089931) -> 0.2478022289
A23: 23 | C23: 0.11011011 | D23: =[3]!XLSTAT_PDFNormal(C23,0.988370280544897,1.2584400089931) -> 0.2484929587
A24: 24 | C24: 0.115115115 | D24: =[3]!XLSTAT_PDFNormal(C24,0.988370280544897,1.2584400089931) -> 0.2491816723
A25: 25 | C25: 0.12012012 | D25: =[3]!XLSTAT_PDFNormal(C25,0.988370280544897,1.2584400089931) -> 0.2498683423
A26: 26 | C26: 0.125125125 | D26: =[3]!XLSTAT_PDFNormal(C26,0.988370280544897,1.2584400089931) -> 0.2505529414
A27: 27 | C27: 0.13013013 | D27: =[3]!XLSTAT_PDFNormal(C27,0.988370280544897,1.2584400089931) -> 0.2512354422
A28: 28 | C28: 0.135135135 | D28: =[3]!XLSTAT_PDFNormal(C28,0.988370280544897,1.2584400089931) -> 0.2519158173
A29: 29 | C29: 0.14014014 | D29: =[3]!XLSTAT_PDFNormal(C29,0.988370280544897,1.2584400089931) -> 0.2525940394
A30: 30 | C30: 0.145145145 | D30: =[3]!XLSTAT_PDFNormal(C30,0.988370280544897,1.2584400089931) -> 0.2532700814
A31: 31 | C31: 0.15015015 | D31: =[3]!XLSTAT_PDFNormal(C31,0.988370280544897,1.2584400089931) -> 0.2539439158
A32: 32 | C32: 0.155155155 | D32: =[3]!XLSTAT_PDFNormal(C32,0.988370280544897,1.2584400089931) -> 0.2546155155
A33: 33 | C33: 0.16016016 | D33: =[3]!XLSTAT_PDFNormal(C33,0.988370280544897,1.2584400089931) -> 0.2552848534
A34: 34 | C34: 0.165165165 | D34: =[3]!XLSTAT_PDFNormal(C34,0.988370280544897,1.2584400089931) -> 0.2559519021
A35: 35 | C35: 0.17017017 | D35: =[3]!XLSTAT_PDFNormal(C35,0.988370280544897,1.2584400089931) -> 0.2566166348
A36: 36 | C36: 0.175175175 | D36: =[3]!XLSTAT_PDFNormal(C36,0.988370280544897,1.2584400089931) -> 0.2572790242
A37: 37 | C37: 0.18018018 | D37: =[3]!XLSTAT_PDFNormal(C37,0.988370280544897,1.2584400089931) -> 0.2579390434
A38: 38 | C38: 0.185185185 | D38: =[3]!XLSTAT_PDFNormal(C38,0.988370280544897,1.2584400089931) -> 0.2585966653
A39: 39 | C39: 0.19019019 | D39: =[3]!XLSTAT_PDFNormal(C39,0.988370280544897,1.2584400089931) -> 0.259251863
A40: 40 | C40: 0.195195195 | D40: =[3]!XLSTAT_PDFNormal(C40,0.988370280544897,1.2584400089931) -> 0.2599046097
A41: 41 | C41: 0.2002002 | D41: =[3]!XLSTAT_PDFNormal(C41,0.988370280544897,1.2584400089931) -> 0.2605548784
A42: 42 | C42: 0.205205205 | D42: =[3]!XLSTAT_PDFNormal(C42,0.988370280544897,1.2584400089931) -> 0.2612026424
A43: 43 | C43: 0.21021021 | D43: =[3]!XLSTAT_PDFNormal(C43,0.988370280544897,1.2584400089931) -> 0.2618478749
A44: 44 | C44: 0.215215215 | D44: =[3]!XLSTAT_PDFNormal(C44,0.988370280544897,1.2584400089931) -> 0.2624905493
A45: 45 | C45: 0.22022022 | D45: =[3]!XLSTAT_PDFNormal(C45,0.988370280544897,1.2584400089931) -> 0.2631306389
A46: 46 | C46: 0.225225225 | D46: =[3]!XLSTAT_PDFNormal(C46,0.988370280544897,1.2584400089931) -> 0.2637681171
A47: 47 | C47: 0.23023023 | D47: =[3]!XLSTAT_PDFNormal(C47,0.988370280544897,1.2584400089931) -> 0.2644029574
A48: 48 | C48: 0.235235235 | D48: =[3]!XLSTAT_PDFNormal(C48,0.988370280544897,1.2584400089931) -> 0.2650351334
A49: 49 | C49: 0.24024024 | D49: =[3]!XLSTAT_PDFNormal(C49,0.988370280544897,1.2584400089931) -> 0.2656646187
A50: 50 | C50: 0.245245245 | D50: =[3]!XLSTAT_PDFNormal(C50,0.988370280544897,1.2584400089931) -> 0.2662913869
A51: 51 | C51: 0.25025025 | D51: =[3]!XLSTAT_PDFNormal(C51,0.988370280544897,1.2584400089931) -> 0.2669154117
A52: 52 | C52: 0.255255255 | D52: =[3]!XLSTAT_PDFNormal(C52,0.988370280544897,1.2584400089931) -> 0.267536667
A53: 53 | C53: 0.26026026 | D53: =[3]!XLSTAT_PDFNormal(C53,0.988370280544897,1.2584400089931) -> 0.2681551267
A54: 54 | C54: 0.265265265 | D54: =[3]!XLSTAT_PDFNormal(C54,0.988370280544897,1.2584400089931) -> 0.2687707647
A55: 55 | C55: 0.27027027 | D55: =[3]!XLSTAT_PDFNormal(C55,0.988370280544897,1.2584400089931) -> 0.2693835551
A56: 56 | C56: 0.275275275 | D56: =[3]!XLSTAT_PDFNormal(C56,0.988370280544897,1.2584400089931) -> 0.2699934718
A57: 57 | C57: 0.28028028 | D57: =[3]!XLSTAT_PDFNormal(C57,0.988370280544897,1.2584400089931) -> 0.2706004892
A58: 58 | C58: 0.285285285 | D58: =[3]!XLSTAT_PDFNormal(C58,0.988370280544897,1.2584400089931) -> 0.2712045814
A59: 59 | C59: 0.29029029 | D59: =[3]!XLSTAT_PDFNormal(C59,0.988370280544897,1.2584400089931) -> 0.2718057228
A60: 60 | C60: 0.295295295 | D60: =[3]!XLSTAT_PDFNormal(C60,0.988370280544897,1.2584400089931) -> 0.2724038879
A61: 61 | C61: 0.3003003 | D61: =[3]!XLSTAT_PDFNormal(C61,0.988370280544897,1.2584400089931) -> 0.2729990511
A62: 62 | C62: 0.305305305 | D62: =[3]!XLSTAT_PDFNormal(C62,0.988370280544897,1.2584400089931) -> 0.273591187
A63: 63 | C63: 0.31031031 | D63: =[3]!XLSTAT_PDFNormal(C63,0.988370280544897,1.2584400089931) -> 0.2741802703
A64: 64 | C64: 0.315315315 | D64: =[3]!XLSTAT_PDFNormal(C64,0.988370280544897,1.2584400089931) -> 0.2747662758
A65: 65 | C65: =0+(A65-1)*0.005005005 -> 0.32032032 | D65: =[3]!XLSTAT_PDFNormal(C65,0.988370280544897,1.2584400089931) -> 0.2753491783
A66: 66 | C66: 0.325325325 | D66: =[3]!XLSTAT_PDFNormal(C66,0.988370280544897,1.2584400089931) -> 0.2759289528
A67: 67 | C67: 0.33033033 | D67: =[3]!XLSTAT_PDFNormal(C67,0.988370280544897,1.2584400089931) -> 0.2765055743
A68: 68 | C68: 0.335335335 | D68: =[3]!XLSTAT_PDFNormal(C68,0.988370280544897,1.2584400089931) -> 0.2770790181
A69: 69 | C69: 0.34034034 | D69: =[3]!XLSTAT_PDFNormal(C69,0.988370280544897,1.2584400089931) -> 0.2776492593
A70: 70 | C70: 0.345345345 | D70: =[3]!XLSTAT_PDFNormal(C70,0.988370280544897,1.2584400089931) -> 0.2782162733
A71: 71 | C71: 0.35035035 | D71: =[3]!XLSTAT_PDFNormal(C71,0.988370280544897,1.2584400089931) -> 0.2787800356
A72: 72 | C72: 0.355355355 | D72: =[3]!XLSTAT_PDFNormal(C72,0.988370280544897,1.2584400089931) -> 0.2793405216
A73: 73 | C73: 0.36036036 | D73: =[3]!XLSTAT_PDFNormal(C73,0.988370280544897,1.2584400089931) -> 0.2798977072
A74: 74 | C74: 0.365365365 | D74: =[3]!XLSTAT_PDFNormal(C74,0.988370280544897,1.2584400089931) -> 0.280451568
A75: 75 | C75: 0.37037037 | D75: =[3]!XLSTAT_PDFNormal(C75,0.988370280544897,1.2584400089931) -> 0.2810020799
A76: 76 | C76: 0.375375375 | D76: =[3]!XLSTAT_PDFNormal(C76,0.988370280544897,1.2584400089931) -> 0.281549219
A77: 77 | C77: 0.38038038 | D77: =[3]!XLSTAT_PDFNormal(C77,0.988370280544897,1.2584400089931) -> 0.2820929612
A78: 78 | C78: 0.385385385 | D78: =[3]!XLSTAT_PDFNormal(C78,0.988370280544897,1.2584400089931) -> 0.282633283
A79: 79 | C79: 0.39039039 | D79: =[3]!XLSTAT_PDFNormal(C79,0.988370280544897,1.2584400089931) -> 0.2831701605
A80: 80 | C80: 0.395395395 | D80: =[3]!XLSTAT_PDFNormal(C80,0.988370280544897,1.2584400089931) -> 0.2837035702
A81: 81 | C81: 0.4004004 | D81: =[3]!XLSTAT_PDFNormal(C81,0.988370280544897,1.2584400089931) -> 0.2842334888
A82: 82 | C82: 0.405405405 | D82: =[3]!XLSTAT_PDFNormal(C82,0.988370280544897,1.2584400089931) -> 0.284759893
A83: 83 | C83: 0.41041041 | D83: =[3]!XLSTAT_PDFNormal(C83,0.988370280544897,1.2584400089931) -> 0.2852827594
A84: 84 | C84: 0.415415415 | D84: =[3]!XLSTAT_PDFNormal(C84,0.988370280544897,1.2584400089931) -> 0.2858020652
A85: 85 | C85: 0.42042042 | D85: =[3]!XLSTAT_PDFNormal(C85,0.988370280544897,1.2584400089931) -> 0.2863177873
A86: 86 | C86: 0.425425425 | D86: =[3]!XLSTAT_PDFNormal(C86,0.988370280544897,1.2584400089931) -> 0.286829903
A87: 87 | C87: 0.43043043 | D87: =[3]!XLSTAT_PDFNormal(C87,0.988370280544897,1.2584400089931) -> 0.2873383896
A88: 88 | C88: 0.435435435 | D88: =[3]!XLSTAT_PDFNormal(C88,0.988370280544897,1.2584400089931) -> 0.2878432246
A89: 89 | C89: 0.44044044 | D89: =[3]!XLSTAT_PDFNormal(C89,0.988370280544897,1.2584400089931) -> 0.2883443856
A90: 90 | C90: 0.445445445 | D90: =[3]!XLSTAT_PDFNormal(C90,0.988370280544897,1.2584400089931) -> 0.2888418503
A91: 91 | C91: 0.45045045 | D91: =[3]!XLSTAT_PDFNormal(C91,0.988370280544897,1.2584400089931) -> 0.2893355965
A92: 92 | C92: 0.455455455 | D92: =[3]!XLSTAT_PDFNormal(C92,0.988370280544897,1.2584400089931) -> 0.2898256024
A93: 93 | C93: 0.46046046 | D93: =[3]!XLSTAT_PDFNormal(C93,0.988370280544897,1.2584400089931) -> 0.290311846
A94: 94 | C94: 0.465465465 | D94: =[3]!XLSTAT_PDFNormal(C94,0.988370280544897,1.2584400089931) -> 0.2907943056
A95: 95 | C95: 0.47047047 | D95: =[3]!XLSTAT_PDFNormal(C95,0.988370280544897,1.2584400089931) -> 0.2912729597
A96: 96 | C96: 0.475475475 | D96: =[3]!XLSTAT_PDFNormal(C96,0.988370280544897,1.2584400089931) -> 0.2917477868
A97: 97 | C97: 0.48048048 | D97: =[3]!XLSTAT_PDFNormal(C97,0.988370280544897,1.2584400089931) -> 0.2922187658
A98: 98 | C98: 0.485485485 | D98: =[3]!XLSTAT_PDFNormal(C98,0.988370280544897,1.2584400089931) -> 0.2926858754
A99: 99 | C99: 0.49049049 | D99: =[3]!XLSTAT_PDFNormal(C99,0.988370280544897,1.2584400089931) -> 0.2931490946
A100: 100 | C100: 0.495495495 | D100: =[3]!XLSTAT_PDFNormal(C100,0.988370280544897,1.2584400089931) -> 0.2936084028
A101: 101 | C101: 0.5005005 | D101: =[3]!XLSTAT_PDFNormal(C101,0.988370280544897,1.2584400089931) -> 0.2940637791
A102: 102 | C102: 0.505505505 | D102: =[3]!XLSTAT_PDFNormal(C102,0.988370280544897,1.2584400089931) -> 0.2945152031
A103: 103 | C103: 0.51051051 | D103: =[3]!XLSTAT_PDFNormal(C103,0.988370280544897,1.2584400089931) -> 0.2949626544
A104: 104 | C104: 0.515515515 | D104: =[3]!XLSTAT_PDFNormal(C104,0.988370280544897,1.2584400089931) -> 0.2954061128
A105: 105 | C105: 0.52052052 | D105: =[3]!XLSTAT_PDFNormal(C105,0.988370280544897,1.2584400089931) -> 0.2958455583
A106: 106 | C106: 0.525525525 | D106: =[3]!XLSTAT_PDFNormal(C106,0.988370280544897,1.2584400089931) -> 0.296280971
A107: 107 | C107: 0.53053053 | D107: =[3]!XLSTAT_PDFNormal(C107,0.988370280544897,1.2584400089931) -> 0.2967123312
A108: 108 | C108: 0.535535535 | D108: =[3]!XLSTAT_PDFNormal(C108,0.988370280544897,1.2584400089931) -> 0.2971396193
A109: 109 | C109: 0.54054054 | D109: =[3]!XLSTAT_PDFNormal(C109,0.988370280544897,1.2584400089931) -> 0.2975628159
A110: 110 | C110: 0.545545545 | D110: =[3]!XLSTAT_PDFNormal(C110,0.988370280544897,1.2584400089931) -> 0.2979819018
A111: 111 | C111: 0.55055055 | D111: =[3]!XLSTAT_PDFNormal(C111,0.988370280544897,1.2584400089931) -> 0.2983968579
A112: 112 | C112: 0.555555555 | D112: =[3]!XLSTAT_PDFNormal(C112,0.988370280544897,1.2584400089931) -> 0.2988076654
A113: 113 | C113: 0.56056056 | D113: =[3]!XLSTAT_PDFNormal(C113,0.988370280544897,1.2584400089931) -> 0.2992143056
A114: 114 | C114: 0.565565565 | D114: =[3]!XLSTAT_PDFNormal(C114,0.988370280544897,1.2584400089931) -> 0.2996167598
A115: 115 | C115: 0.57057057 | D115: =[3]!XLSTAT_PDFNormal(C115,0.988370280544897,1.2584400089931) -> 0.3000150097
A116: 116 | C116: 0.575575575 | D116: =[3]!XLSTAT_PDFNormal(C116,0.988370280544897,1.2584400089931) -> 0.3004090372
A117: 117 | C117: 0.58058058 | D117: =[3]!XLSTAT_PDFNormal(C117,0.988370280544897,1.2584400089931) -> 0.3007988242
A118: 118 | C118: 0.585585585 | D118: =[3]!XLSTAT_PDFNormal(C118,0.988370280544897,1.2584400089931) -> 0.3011843529
A119: 119 | C119: 0.59059059 | D119: =[3]!XLSTAT_PDFNormal(C119,0.988370280544897,1.2584400089931) -> 0.3015656055
A120: 120 | C120: 0.595595595 | D120: =[3]!XLSTAT_PDFNormal(C120,0.988370280544897,1.2584400089931) -> 0.3019425647
A121: 121 | C121: 0.6006006 | D121: =[3]!XLSTAT_PDFNormal(C121,0.988370280544897,1.2584400089931) -> 0.3023152131
A122: 122 | C122: 0.605605605 | D122: =[3]!XLSTAT_PDFNormal(C122,0.988370280544897,1.2584400089931) -> 0.3026835337
A123: 123 | C123: 0.61061061 | D123: =[3]!XLSTAT_PDFNormal(C123,0.988370280544897,1.2584400089931) -> 0.3030475094
A124: 124 | C124: 0.615615615 | D124: =[3]!XLSTAT_PDFNormal(C124,0.988370280544897,1.2584400089931) -> 0.3034071235
A125: 125 | C125: 0.62062062 | D125: =[3]!XLSTAT_PDFNormal(C125,0.988370280544897,1.2584400089931) -> 0.3037623595
A126: 126 | C126: 0.625625625 | D126: =[3]!XLSTAT_PDFNormal(C126,0.988370280544897,1.2584400089931) -> 0.304113201
A127: 127 | C127: 0.63063063 | D127: =[3]!XLSTAT_PDFNormal(C127,0.988370280544897,1.2584400089931) -> 0.3044596318
A128: 128 | C128: 0.635635635 | D128: =[3]!XLSTAT_PDFNormal(C128,0.988370280544897,1.2584400089931) -> 0.304801636
A129: 129 | C129: =0+(A129-1)*0.005005005 -> 0.64064064 | D129: =[3]!XLSTAT_PDFNormal(C129,0.988370280544897,1.2584400089931) -> 0.3051391977
A130: 130 | C130: 0.645645645 | D130: =[3]!XLSTAT_PDFNormal(C130,0.988370280544897,1.2584400089931) -> 0.3054723013
A131: 131 | C131: 0.65065065 | D131: =[3]!XLSTAT_PDFNormal(C131,0.988370280544897,1.2584400089931) -> 0.3058009314
A132: 132 | C132: 0.655655655 | D132: =[3]!XLSTAT_PDFNormal(C132,0.988370280544897,1.2584400089931) -> 0.3061250729
A133: 133 | C133: 0.66066066 | D133: =[3]!XLSTAT_PDFNormal(C133,0.988370280544897,1.2584400089931) -> 0.3064447106
A134: 134 | C134: 0.665665665 | D134: =[3]!XLSTAT_PDFNormal(C134,0.988370280544897,1.2584400089931) -> 0.3067598298
A135: 135 | C135: 0.67067067 | D135: =[3]!XLSTAT_PDFNormal(C135,0.988370280544897,1.2584400089931) -> 0.3070704158
A136: 136 | C136: 0.675675675 | D136: =[3]!XLSTAT_PDFNormal(C136,0.988370280544897,1.2584400089931) -> 0.3073764543
A137: 137 | C137: 0.68068068 | D137: =[3]!XLSTAT_PDFNormal(C137,0.988370280544897,1.2584400089931) -> 0.3076779309
A138: 138 | C138: 0.685685685 | D138: =[3]!XLSTAT_PDFNormal(C138,0.988370280544897,1.2584400089931) -> 0.3079748318
A139: 139 | C139: 0.69069069 | D139: =[3]!XLSTAT_PDFNormal(C139,0.988370280544897,1.2584400089931) -> 0.308267143
A140: 140 | C140: 0.695695695 | D140: =[3]!XLSTAT_PDFNormal(C140,0.988370280544897,1.2584400089931) -> 0.3085548511
A141: 141 | C141: 0.7007007 | D141: =[3]!XLSTAT_PDFNormal(C141,0.988370280544897,1.2584400089931) -> 0.3088379424
A142: 142 | C142: 0.705705705 | D142: =[3]!XLSTAT_PDFNormal(C142,0.988370280544897,1.2584400089931) -> 0.309116404
A143: 143 | C143: 0.71071071 | D143: =[3]!XLSTAT_PDFNormal(C143,0.988370280544897,1.2584400089931) -> 0.3093902227
A144: 144 | C144: 0.715715715 | D144: =[3]!XLSTAT_PDFNormal(C144,0.988370280544897,1.2584400089931) -> 0.3096593858
A145: 145 | C145: 0.72072072 | D145: =[3]!XLSTAT_PDFNormal(C145,0.988370280544897,1.2584400089931) -> 0.3099238808
A146: 146 | C146: 0.725725725 | D146: =[3]!XLSTAT_PDFNormal(C146,0.988370280544897,1.2584400089931) -> 0.3101836953
A147: 147 | C147: 0.73073073 | D147: =[3]!XLSTAT_PDFNormal(C147,0.988370280544897,1.2584400089931) -> 0.3104388171
A148: 148 | C148: 0.735735735 | D148: =[3]!XLSTAT_PDFNormal(C148,0.988370280544897,1.2584400089931) -> 0.3106892343
A149: 149 | C149: 0.74074074 | D149: =[3]!XLSTAT_PDFNormal(C149,0.988370280544897,1.2584400089931) -> 0.3109349351
A150: 150 | C150: 0.745745745 | D150: =[3]!XLSTAT_PDFNormal(C150,0.988370280544897,1.2584400089931) -> 0.3111759082
A151: 151 | C151: 0.75075075 | D151: =[3]!XLSTAT_PDFNormal(C151,0.988370280544897,1.2584400089931) -> 0.3114121421
A152: 152 | C152: 0.755755755 | D152: =[3]!XLSTAT_PDFNormal(C152,0.988370280544897,1.2584400089931) -> 0.3116436258
A153: 153 | C153: 0.76076076 | D153: =[3]!XLSTAT_PDFNormal(C153,0.988370280544897,1.2584400089931) -> 0.3118703485
A154: 154 | C154: 0.765765765 | D154: =[3]!XLSTAT_PDFNormal(C154,0.988370280544897,1.2584400089931) -> 0.3120922995
A155: 155 | C155: 0.77077077 | D155: =[3]!XLSTAT_PDFNormal(C155,0.988370280544897,1.2584400089931) -> 0.3123094684
A156: 156 | C156: 0.775775775 | D156: =[3]!XLSTAT_PDFNormal(C156,0.988370280544897,1.2584400089931) -> 0.3125218449
A157: 157 | C157: 0.78078078 | D157: =[3]!XLSTAT_PDFNormal(C157,0.988370280544897,1.2584400089931) -> 0.3127294192
A158: 158 | C158: 0.785785785 | D158: =[3]!XLSTAT_PDFNormal(C158,0.988370280544897,1.2584400089931) -> 0.3129321815
A159: 159 | C159: 0.79079079 | D159: =[3]!XLSTAT_PDFNormal(C159,0.988370280544897,1.2584400089931) -> 0.3131301222
A160: 160 | C160: 0.795795795 | D160: =[3]!XLSTAT_PDFNormal(C160,0.988370280544897,1.2584400089931) -> 0.3133232319
A161: 161 | C161: 0.8008008 | D161: =[3]!XLSTAT_PDFNormal(C161,0.988370280544897,1.2584400089931) -> 0.3135115017
A162: 162 | C162: 0.805805805 | D162: =[3]!XLSTAT_PDFNormal(C162,0.988370280544897,1.2584400089931) -> 0.3136949227
A163: 163 | C163: 0.81081081 | D163: =[3]!XLSTAT_PDFNormal(C163,0.988370280544897,1.2584400089931) -> 0.3138734861
A164: 164 | C164: 0.815815815 | D164: =[3]!XLSTAT_PDFNormal(C164,0.988370280544897,1.2584400089931) -> 0.3140471836
A165: 165 | C165: 0.82082082 | D165: =[3]!XLSTAT_PDFNormal(C165,0.988370280544897,1.2584400089931) -> 0.3142160071
A166: 166 | C166: 0.825825825 | D166: =[3]!XLSTAT_PDFNormal(C166,0.988370280544897,1.2584400089931) -> 0.3143799485
A167: 167 | C167: 0.83083083 | D167: =[3]!XLSTAT_PDFNormal(C167,0.988370280544897,1.2584400089931) -> 0.314539
A168: 168 | C168: 0.835835835 | D168: =[3]!XLSTAT_PDFNormal(C168,0.988370280544897,1.2584400089931) -> 0.3146931543
A169: 169 | C169: 0.84084084 | D169: =[3]!XLSTAT_PDFNormal(C169,0.988370280544897,1.2584400089931) -> 0.314842404
A170: 170 | C170: 0.845845845 | D170: =[3]!XLSTAT_PDFNormal(C170,0.988370280544897,1.2584400089931) -> 0.3149867421
A171: 171 | C171: 0.85085085 | D171: =[3]!XLSTAT_PDFNormal(C171,0.988370280544897,1.2584400089931) -> 0.3151261617
A172: 172 | C172: 0.855855855 | D172: =[3]!XLSTAT_PDFNormal(C172,0.988370280544897,1.2584400089931) -> 0.3152606563
A173: 173 | C173: 0.86086086 | D173: =[3]!XLSTAT_PDFNormal(C173,0.988370280544897,1.2584400089931) -> 0.3153902195
A174: 174 | C174: 0.865865865 | D174: =[3]!XLSTAT_PDFNormal(C174,0.988370280544897,1.2584400089931) -> 0.3155148452
A175: 175 | C175: 0.87087087 | D175: =[3]!XLSTAT_PDFNormal(C175,0.988370280544897,1.2584400089931) -> 0.3156345275
A176: 176 | C176: 0.875875875 | D176: =[3]!XLSTAT_PDFNormal(C176,0.988370280544897,1.2584400089931) -> 0.3157492607
A177: 177 | C177: 0.88088088 | D177: =[3]!XLSTAT_PDFNormal(C177,0.988370280544897,1.2584400089931) -> 0.3158590393
A178: 178 | C178: 0.885885885 | D178: =[3]!XLSTAT_PDFNormal(C178,0.988370280544897,1.2584400089931) -> 0.3159638583
A179: 179 | C179: 0.89089089 | D179: =[3]!XLSTAT_PDFNormal(C179,0.988370280544897,1.2584400089931) -> 0.3160637126
A180: 180 | C180: 0.895895895 | D180: =[3]!XLSTAT_PDFNormal(C180,0.988370280544897,1.2584400089931) -> 0.3161585976
A181: 181 | C181: 0.9009009 | D181: =[3]!XLSTAT_PDFNormal(C181,0.988370280544897,1.2584400089931) -> 0.3162485086
A182: 182 | C182: 0.905905905 | D182: =[3]!XLSTAT_PDFNormal(C182,0.988370280544897,1.2584400089931) -> 0.3163334415
A183: 183 | C183: 0.91091091 | D183: =[3]!XLSTAT_PDFNormal(C183,0.988370280544897,1.2584400089931) -> 0.3164133922
A184: 184 | C184: 0.915915915 | D184: =[3]!XLSTAT_PDFNormal(C184,0.988370280544897,1.2584400089931) -> 0.316488357
A185: 185 | C185: 0.92092092 | D185: =[3]!XLSTAT_PDFNormal(C185,0.988370280544897,1.2584400089931) -> 0.3165583323
A186: 186 | C186: 0.925925925 | D186: =[3]!XLSTAT_PDFNormal(C186,0.988370280544897,1.2584400089931) -> 0.3166233147
A187: 187 | C187: 0.93093093 | D187: =[3]!XLSTAT_PDFNormal(C187,0.988370280544897,1.2584400089931) -> 0.3166833012
A188: 188 | C188: 0.935935935 | D188: =[3]!XLSTAT_PDFNormal(C188,0.988370280544897,1.2584400089931) -> 0.316738289
A189: 189 | C189: 0.94094094 | D189: =[3]!XLSTAT_PDFNormal(C189,0.988370280544897,1.2584400089931) -> 0.3167882754
A190: 190 | C190: 0.945945945 | D190: =[3]!XLSTAT_PDFNormal(C190,0.988370280544897,1.2584400089931) -> 0.3168332581
A191: 191 | C191: 0.95095095 | D191: =[3]!XLSTAT_PDFNormal(C191,0.988370280544897,1.2584400089931) -> 0.3168732349
A192: 192 | C192: 0.955955955 | D192: =[3]!XLSTAT_PDFNormal(C192,0.988370280544897,1.2584400089931) -> 0.3169082039
A193: 193 | C193: =0+(A193-1)*0.005005005 -> 0.96096096 | D193: =[3]!XLSTAT_PDFNormal(C193,0.988370280544897,1.2584400089931) -> 0.3169381635
A194: 194 | C194: 0.965965965 | D194: =[3]!XLSTAT_PDFNormal(C194,0.988370280544897,1.2584400089931) -> 0.3169631123
A195: 195 | C195: 0.97097097 | D195: =[3]!XLSTAT_PDFNormal(C195,0.988370280544897,1.2584400089931) -> 0.3169830491
A196: 196 | C196: 0.975975975 | D196: =[3]!XLSTAT_PDFNormal(C196,0.988370280544897,1.2584400089931) -> 0.3169979729
A197: 197 | C197: 0.98098098 | D197: =[3]!XLSTAT_PDFNormal(C197,0.988370280544897,1.2584400089931) -> 0.317007883
A198: 198 | C198: 0.985985985 | D198: =[3]!XLSTAT_PDFNormal(C198,0.988370280544897,1.2584400089931) -> 0.3170127789
A199: 199 | C199: 0.99099099 | D199: =[3]!XLSTAT_PDFNormal(C199,0.988370280544897,1.2584400089931) -> 0.3170126605
A200: 200 | C200: 0.995995995 | D200: =[3]!XLSTAT_PDFNormal(C200,0.988370280544897,1.2584400089931) -> 0.3170075277
... 800 more rows

Sheet XLSTAT_20230310_142947_1_HID (hidden)
B1: 0 | C1: 0 | D1: 0 | E1: 0
B2: 0 | C2: 1.067940128 | D2: 0 | E2: 1.067940128
B3: 0.00246572067 | C3: 1.067940128 | D3: 0.4980755753 | E3: 1.067940128
B4: 0.00246572067 | C4: 0 | D4: 0.4980755753 | E4: 0
B5: 0.004931441339 | C5: 0 | D5: 0.4980755753 | E5: 0.2563056307
B6: 0.004931441339 | C6: 1.067940128 | D6: 0.9961511505 | E6: 0.2563056307
B7: 0.007397162009 | C7: 1.067940128 | D7: 0.9961511505 | E7: 0
B8: 0.007397162009 | C8: 0 | D8: 0.9961511505 | E8: 0.2135880256
B9: 0.009862882678 | C9: 0 | D9: 1.494226726 | E9: 0.2135880256
B10: 0.009862882678 | C10: 1.067940128 | D10: 1.494226726 | E10: 0
B11: 0.01232860335 | C11: 1.067940128 | D11: 1.494226726 | E11: 0.2135880256
B12: 0.01232860335 | C12: 0 | D12: 1.992302301 | E12: 0.2135880256
B13: 0.01479432402 | C13: 0 | D13: 1.992302301 | E13: 0
B14: 0.01479432402 | C14: 1.067940128 | D14: 1.992302301 | E14: 0.04271760512
B15: 0.01726004469 | C15: 1.067940128 | D15: 2.490377876 | E15: 0.04271760512
B16: 0.01726004469 | C16: 0 | D16: 2.490377876 | E16: 0
B17: 0.01972576536 | C17: 0 | D17: 2.490377876 | E17: 0
B18: 0.01972576536 | C18: 1.067940128 | D18: 2.988453452 | E18: 0
B19: 0.02219148603 | C19: 1.067940128 | D19: 2.988453452 | E19: 0
B20: 0.02219148603 | C20: 0 | D20: 2.988453452 | E20: 0
B21: 0.0246572067 | C21: 0 | D21: 3.486529027 | E21: 0
B22: 0.0246572067 | C22: 1.067940128 | D22: 3.486529027 | E22: 0
B23: 0.02712292737 | C23: 1.067940128 | D23: 3.486529027 | E23: 0.08543521024
B24: 0.02712292737 | C24: 0 | D24: 3.984604602 | E24: 0.08543521024
B25: 0.02958864804 | C25: 0 | D25: 3.984604602 | E25: 0
B26: 0.02958864804 | C26: 1.067940128 | D26: 3.984604602 | E26: 0.08543521024
B27: 0.0320543687 | C27: 1.067940128 | D27: 4.482680177 | E27: 0.08543521024
B28: 0.0320543687 | C28: 0 | D28: 4.482680177 | E28: 0
B29: 0.03452008937 | C29: 0 | D29: 4.482680177 | E29: 0.04271760512
B30: 0.03452008937 | C30: 1.067940128 | D30: 4.980755753 | E30: 0.04271760512
B31: 0.03698581004 | C31: 1.067940128 | D31: 4.980755753 | E31: 0
B32: 0.03698581004 | C32: 0
B33: 0.03945153071 | C33: 0
B34: 0.03945153071 | C34: 1.067940128
B35: 0.04191725138 | C35: 1.067940128
B36: 0.04191725138 | C36: 0
B37: 0.04438297205 | C37: 0
B38: 0.04438297205 | C38: 1.067940128
B39: 0.04684869272 | C39: 1.067940128
B40: 0.04684869272 | C40: 0
B41: 0.04931441339 | C41: 0
B42: 0.04931441339 | C42: 1.067940128
B43: 0.05178013406 | C43: 1.067940128
B44: 0.05178013406 | C44: 0
B45: 0.05424585473 | C45: 0
B46: 0.05424585473 | C46: 1.067940128
B47: 0.0567115754 | C47: 1.067940128
B48: 0.0567115754 | C48: 0
B49: 0.05917729607 | C49: 0
B50: 0.05917729607 | C50: 1.067940128
B51: 0.06164301674 | C51: 1.067940128
B52: 0.06164301674 | C52: 0
B53: 0.06410873741 | C53: 0
B54: 0.06410873741 | C54: 1.067940128
B55: 0.06657445808 | C55: 1.067940128
B56: 0.06657445808 | C56: 0
B57: 0.06904017875 | C57: 0
B58: 0.06904017875 | C58: 1.067940128
B59: 0.07150589942 | C59: 1.067940128
B60: 0.07150589942 | C60: 0
B61: 0.07397162009 | C61: 0
B62: 0.07397162009 | C62: 1.067940128
B63: 0.07643734076 | C63: 1.067940128
B64: 0.07643734076 | C64: 0
B65: 0.07890306143 | C65: 0
B66: 0.07890306143 | C66: 1.067940128
B67: 0.0813687821 | C67: 1.067940128
B68: 0.0813687821 | C68: 0
B69: 0.08383450277 | C69: 0
B70: 0.08383450277 | C70: 1.067940128
B71: 0.08630022344 | C71: 1.067940128
B72: 0.08630022344 | C72: 0
B73: 0.08876594411 | C73: 0
B74: 0.08876594411 | C74: 1.067940128
B75: 0.09123166478 | C75: 1.067940128
B76: 0.09123166478 | C76: 0
B77: 0.09369738545 | C77: 0
B78: 0.09369738545 | C78: 1.067940128
B79: 0.09616310611 | C79: 1.067940128
B80: 0.09616310611 | C80: 0
B81: 0.09862882678 | C81: 0
B82: 0.09862882678 | C82: 1.067940128
B83: 0.1010945475 | C83: 1.067940128
B84: 0.1010945475 | C84: 0
B85: 0.1035602681 | C85: 0
B86: 0.1035602681 | C86: 1.067940128
B87: 0.1060259888 | C87: 1.067940128
B88: 0.1060259888 | C88: 0
B89: 0.1084917095 | C89: 0
B90: 0.1084917095 | C90: 1.067940128
B91: 0.1109574301 | C91: 1.067940128
B92: 0.1109574301 | C92: 0
B93: 0.1134231508 | C93: 0
B94: 0.1134231508 | C94: 1.067940128
B95: 0.1158888715 | C95: 1.067940128
B96: 0.1158888715 | C96: 0
B97: 0.1183545921 | C97: 0
B98: 0.1183545921 | C98: 1.067940128
B99: 0.1208203128 | C99: 1.067940128
B100: 0.1208203128 | C100: 0
B101: 0.1232860335 | C101: 0
B102: 0.1232860335 | C102: 1.067940128
B103: 0.1257517542 | C103: 1.067940128
B104: 0.1257517542 | C104: 0
B105: 0.1282174748 | C105: 0
B106: 0.1282174748 | C106: 1.067940128
B107: 0.1306831955 | C107: 1.067940128
B108: 0.1306831955 | C108: 0
B109: 0.1331489162 | C109: 0
B110: 0.1331489162 | C110: 1.067940128
B111: 0.1356146368 | C111: 1.067940128
B112: 0.1356146368 | C112: 0
B113: 0.1380803575 | C113: 0
B114: 0.1380803575 | C114: 1.067940128
B115: 0.1405460782 | C115: 1.067940128
B116: 0.1405460782 | C116: 0
B117: 0.1430117988 | C117: 0
B118: 0.1430117988 | C118: 1.067940128
B119: 0.1454775195 | C119: 1.067940128
B120: 0.1454775195 | C120: 0
B121: 0.1479432402 | C121: 0
B122: 0.1479432402 | C122: 1.067940128
B123: 0.1504089608 | C123: 1.067940128
B124: 0.1504089608 | C124: 0
B125: 0.1528746815 | C125: 0
B126: 0.1528746815 | C126: 1.067940128
B127: 0.1553404022 | C127: 1.067940128
B128: 0.1553404022 | C128: 0
B129: 0.1578061229 | C129: 0
B130: 0.1578061229 | C130: 1.067940128
B131: 0.1602718435 | C131: 1.067940128
B132: 0.1602718435 | C132: 0
B133: 0.1627375642 | C133: 0
B134: 0.1627375642 | C134: 1.067940128
B135: 0.1652032849 | C135: 1.067940128
B136: 0.1652032849 | C136: 0
B137: 0.1676690055 | C137: 0
B138: 0.1676690055 | C138: 1.067940128
B139: 0.1701347262 | C139: 1.067940128
B140: 0.1701347262 | C140: 0
B141: 0.1726004469 | C141: 0
B142: 0.1726004469 | C142: 1.067940128
B143: 0.1750661675 | C143: 1.067940128
B144: 0.1750661675 | C144: 0
B145: 0.1775318882 | C145: 0
B146: 0.1775318882 | C146: 1.067940128
B147: 0.1799976089 | C147: 1.067940128
B148: 0.1799976089 | C148: 0
B149: 0.1824633296 | C149: 0
B150: 0.1824633296 | C150: 1.067940128
B151: 0.1849290502 | C151: 1.067940128
B152: 0.1849290502 | C152: 0
B153: 0.1873947709 | C153: 0
B154: 0.1873947709 | C154: 1.067940128
B155: 0.1898604916 | C155: 1.067940128
B156: 0.1898604916 | C156: 0
B157: 0.1923262122 | C157: 0
B158: 0.1923262122 | C158: 1.067940128
B159: 0.1947919329 | C159: 1.067940128
B160: 0.1947919329 | C160: 0
B161: 0.1972576536 | C161: 0
B162: 0.1972576536 | C162: 1.067940128
B163: 0.1997233742 | C163: 1.067940128
B164: 0.1997233742 | C164: 0
B165: 0.2021890949 | C165: 0
B166: 0.2021890949 | C166: 1.067940128
B167: 0.2046548156 | C167: 1.067940128
B168: 0.2046548156 | C168: 0
B169: 0.2071205362 | C169: 0
B170: 0.2071205362 | C170: 1.067940128
B171: 0.2095862569 | C171: 1.067940128
B172: 0.2095862569 | C172: 0
B173: 0.2120519776 | C173: 0
B174: 0.2120519776 | C174: 1.067940128
B175: 0.2145176983 | C175: 1.067940128
B176: 0.2145176983 | C176: 0
B177: 0.2169834189 | C177: 0
B178: 0.2169834189 | C178: 1.067940128
B179: 0.2194491396 | C179: 1.067940128
B180: 0.2194491396 | C180: 0
B181: 0.2219148603 | C181: 0
B182: 0.2219148603 | C182: 1.067940128
B183: 0.2243805809 | C183: 1.067940128
B184: 0.2243805809 | C184: 0
B185: 0.2268463016 | C185: 0
B186: 0.2268463016 | C186: 1.067940128
B187: 0.2293120223 | C187: 1.067940128
B188: 0.2293120223 | C188: 0
B189: 0.2317777429 | C189: 0
B190: 0.2317777429 | C190: 1.067940128
B191: 0.2342434636 | C191: 1.067940128
B192: 0.2342434636 | C192: 0
B193: 0.2367091843 | C193: 0
B194: 0.2367091843 | C194: 1.067940128
B195: 0.239174905 | C195: 1.067940128
B196: 0.239174905 | C196: 0
B197: 0.2416406256 | C197: 0
B198: 0.2416406256 | C198: 1.067940128
B199: 0.2441063463 | C199: 1.067940128
B200: 0.2441063463 | C200: 0
... 3016 more rows

Sheet Normality tests
B1: XLSTAT 2023.1.1.1405 - Normality tests - Start time: 10/03/2023 at 14:29:38 / End time: 10/03/2023 at 14:29:39 / Microsoft Excel 16.016130
B2: Data: Workbook = DemoTransformation_fr.xlsm / Sheet = Data / Range = 'Data'!$B:$B / 47 rows and 1 column
B3: Significance level (%): 5
B8: Summary statistics:
B10: Variable | C10: Observations | D10: Obs. with missing data | E10: Obs. without missing data | F10: Minimum | G10: Maximum | H10: Mean | I10: Std. deviation
B11: Level of waste | C11: 47 | D11: 0 | E11: 47 | F11: 0.02715519741 | G11: 4.880755753 | H11: 0.9883702805 | I11: 1.258440009
B14: Shapiro-Wilk test (Level of waste):
B16: W | C16: 0.7373836936
B17: p-value (Two-tailed) | C17: 8.115533856e-08
B18: alpha | C18: 0.05
B20: Test interpretation:
B21: H0: The variable from which the sample was extracted follows a Normal distribution.
B22: Ha: The variable from which the sample was extracted does not follow a Normal distribution.
B23: As the computed p-value is lower than the significance level alpha=0,05, one should reject the null hypothesis H0, and accept the alternative hypothesis Ha.
B27: Anderson-Darling test (Level of waste):
B29: A² | C29: 4.455221356
B30: p-value (Two-tailed) | C30: 3.118423212e-11
B31: alpha | C31: 0.05
B33: Test interpretation:
B34: H0: The variable from which the sample was extracted follows a Normal distribution.
B35: Ha: The variable from which the sample was extracted does not follow a Normal distribution.
B36: As the computed p-value is lower than the significance level alpha=0,05, one should reject the null hypothesis H0, and accept the alternative hypothesis Ha.
B40: Lilliefors test (Level of waste):
B42: D | C42: 0.2491345706
B43: D (standardized) | C43: 1.707980565
B44: p-value (Two-tailed) | C44: 7.967744737e-08
B45: alpha | C45: 0.05
B47: Test interpretation:
B48: H0: The variable from which the sample was extracted follows a Normal distribution.
B49: Ha: The variable from which the sample was extracted does not follow a Normal distribution.
B50: As the computed p-value is lower than the significance level alpha=0,05, one should reject the null hypothesis H0, and accept the alternative hypothesis Ha.
B54: Jarque-Bera test (Level of waste):
B56: JB (Observed value) | C56: 32.05173238
B57: JB (Critical value) | C57: 5.991464547
B58: DF | C58: 2
B59: p-value (Two-tailed) | C59: 1.096616424e-07
B60: alpha | C60: 0.05
B62: Test interpretation:
B63: H0: The variable from which the sample was extracted follows a Normal distribution.
B64: Ha: The variable from which the sample was extracted does not follow a Normal distribution.
B65: As the computed p-value is lower than the significance level alpha=0,05, one should reject the null hypothesis H0, and accept the alternative hypothesis Ha.
B69: Summary:
B71: Variable\Test | C71: Shapiro-Wilk | D71: Anderson-Darling | E71: Lilliefors | F71: Jarque-Bera
B72: Level of waste | C72: 8.115533856e-08 | D72: 3.118423212e-11 | E72: 7.967744737e-08 | F72: 1.096616424e-07

Sheet Histogramme1_HID (hidden)
A1: -2.462099134 | B1: 0 | C1: -3 | D1: 0
A2: -2.462099134 | B2: 0.1186645929 | C2: -3 | D2: 0
A3: -2.459436259 | B3: 0.1186645929 | C3: -2.462099134 | D3: 0
A4: -2.459436259 | B4: 0 | C4: -2.462099134 | D4: 0
A5: -2.456773383 | B5: 0 | C5: -2.462099134 | D5: 0.1186645929
A6: -2.456773383 | B6: 0.1186645929 | C6: -1.924198269 | D6: 0.1186645929
A7: -2.454110508 | B7: 0.1186645929 | C7: -1.924198269 | D7: 0
A8: -2.454110508 | B8: 0 | C8: -1.924198269 | D8: 0.0791097286
A9: -2.451447632 | B9: 0 | C9: -1.386297403 | D9: 0.0791097286
A10: -2.451447632 | B10: 0.1186645929 | C10: -1.386297403 | D10: 0
A11: -2.448784757 | B11: 0.1186645929 | C11: -1.386297403 | D11: 0.1977743215
A12: -2.448784757 | B12: 0 | C12: -0.8483965376 | D12: 0.1977743215
A13: -2.446121881 | B13: 0 | C13: -0.8483965376 | D13: 0
A14: -2.446121881 | B14: 0.1186645929 | C14: -0.8483965376 | D14: 0.3559937787
A15: -2.443459005 | B15: 0.1186645929 | C15: -0.310495672 | D15: 0.3559937787
A16: -2.443459005 | B16: 0 | C16: -0.310495672 | D16: 0
A17: -2.44079613 | B17: 0 | C17: -0.310495672 | D17: 0.4351035073
A18: -2.44079613 | B18: 0.1186645929 | C18: 0.2274051936 | D18: 0.4351035073
A19: -2.438133254 | B19: 0.1186645929 | C19: 0.2274051936 | D19: 0
A20: -2.438133254 | B20: 0 | C20: 0.2274051936 | D20: 0.2768840501
A21: -2.435470379 | B21: 0 | C21: 0.7653060592 | D21: 0.2768840501
A22: -2.435470379 | B22: 0.1186645929 | C22: 0.7653060592 | D22: 0
A23: -2.432807503 | B23: 0.1186645929 | C23: 0.7653060592 | D23: 0.1977743215
A24: -2.432807503 | B24: 0 | C24: 1.303206925 | D24: 0.1977743215
A25: -2.430144628 | B25: 0 | C25: 1.303206925 | D25: 0
A26: -2.430144628 | B26: 0.1186645929 | C26: 1.303206925 | D26: 0.0791097286
A27: -2.427481752 | B27: 0.1186645929 | C27: 1.84110779 | D27: 0.0791097286
A28: -2.427481752 | B28: 0 | C28: 1.84110779 | D28: 0
A29: -2.424818876 | B29: 0 | C29: 1.84110779 | D29: 0.1186645929
A30: -2.424818876 | B30: 0.1186645929 | C30: 2.379008656 | D30: 0.1186645929
A31: -2.422156001 | B31: 0.1186645929 | C31: 2.379008656 | D31: 0
A32: -2.422156001 | B32: 0
A33: -2.419493125 | B33: 0
A34: -2.419493125 | B34: 0.1186645929
A35: -2.41683025 | B35: 0.1186645929
A36: -2.41683025 | B36: 0
A37: -2.414167374 | B37: 0
A38: -2.414167374 | B38: 0.1186645929
A39: -2.411504499 | B39: 0.1186645929
A40: -2.411504499 | B40: 0
A41: -2.408841623 | B41: 0
A42: -2.408841623 | B42: 0.1186645929
A43: -2.406178747 | B43: 0.1186645929
A44: -2.406178747 | B44: 0
A45: -2.403515872 | B45: 0
A46: -2.403515872 | B46: 0.1186645929
A47: -2.400852996 | B47: 0.1186645929
A48: -2.400852996 | B48: 0
A49: -2.398190121 | B49: 0
A50: -2.398190121 | B50: 0.1186645929
A51: -2.395527245 | B51: 0.1186645929
A52: -2.395527245 | B52: 0
A53: -2.39286437 | B53: 0
A54: -2.39286437 | B54: 0.1186645929
A55: -2.390201494 | B55: 0.1186645929
A56: -2.390201494 | B56: 0
A57: -2.387538618 | B57: 0
A58: -2.387538618 | B58: 0.1186645929
A59: -2.384875743 | B59: 0.1186645929
A60: -2.384875743 | B60: 0
A61: -2.382212867 | B61: 0
A62: -2.382212867 | B62: 0.1186645929
A63: -2.379549992 | B63: 0.1186645929
A64: -2.379549992 | B64: 0
A65: -2.376887116 | B65: 0
A66: -2.376887116 | B66: 0.1186645929
A67: -2.374224241 | B67: 0.1186645929
A68: -2.374224241 | B68: 0
A69: -2.371561365 | B69: 0
A70: -2.371561365 | B70: 0.1186645929
A71: -2.368898489 | B71: 0.1186645929
A72: -2.368898489 | B72: 0
A73: -2.366235614 | B73: 0
A74: -2.366235614 | B74: 0.1186645929
A75: -2.363572738 | B75: 0.1186645929
A76: -2.363572738 | B76: 0
A77: -2.360909863 | B77: 0
A78: -2.360909863 | B78: 0.1186645929
A79: -2.358246987 | B79: 0.1186645929
A80: -2.358246987 | B80: 0
A81: -2.355584112 | B81: 0
A82: -2.355584112 | B82: 0.1186645929
A83: -2.352921236 | B83: 0.1186645929
A84: -2.352921236 | B84: 0
A85: -2.35025836 | B85: 0
A86: -2.35025836 | B86: 0.1186645929
A87: -2.347595485 | B87: 0.1186645929
A88: -2.347595485 | B88: 0
A89: -2.344932609 | B89: 0
A90: -2.344932609 | B90: 0.1186645929
A91: -2.342269734 | B91: 0.1186645929
A92: -2.342269734 | B92: 0
A93: -2.339606858 | B93: 0
A94: -2.339606858 | B94: 0.1186645929
A95: -2.336943983 | B95: 0.1186645929
A96: -2.336943983 | B96: 0
A97: -2.334281107 | B97: 0
A98: -2.334281107 | B98: 0.1186645929
A99: -2.331618231 | B99: 0.1186645929
A100: -2.331618231 | B100: 0
A101: -2.328955356 | B101: 0
A102: -2.328955356 | B102: 0.1186645929
A103: -2.32629248 | B103: 0.1186645929
A104: -2.32629248 | B104: 0
A105: -2.323629605 | B105: 0
A106: -2.323629605 | B106: 0.1186645929
A107: -2.320966729 | B107: 0.1186645929
A108: -2.320966729 | B108: 0
A109: -2.318303854 | B109: 0
A110: -2.318303854 | B110: 0.1186645929
A111: -2.315640978 | B111: 0.1186645929
A112: -2.315640978 | B112: 0
A113: -2.312978102 | B113: 0
A114: -2.312978102 | B114: 0.1186645929
A115: -2.310315227 | B115: 0.1186645929
A116: -2.310315227 | B116: 0
A117: -2.307652351 | B117: 0
A118: -2.307652351 | B118: 0.1186645929
A119: -2.304989476 | B119: 0.1186645929
A120: -2.304989476 | B120: 0
A121: -2.3023266 | B121: 0
A122: -2.3023266 | B122: 0.1186645929
A123: -2.299663724 | B123: 0.1186645929
A124: -2.299663724 | B124: 0
A125: -2.297000849 | B125: 0
A126: -2.297000849 | B126: 0.1186645929
A127: -2.294337973 | B127: 0.1186645929
A128: -2.294337973 | B128: 0
A129: -2.291675098 | B129: 0
A130: -2.291675098 | B130: 0.1186645929
A131: -2.289012222 | B131: 0.1186645929
A132: -2.289012222 | B132: 0
A133: -2.286349347 | B133: 0
A134: -2.286349347 | B134: 0.1186645929
A135: -2.283686471 | B135: 0.1186645929
A136: -2.283686471 | B136: 0
A137: -2.281023595 | B137: 0
A138: -2.281023595 | B138: 0.1186645929
A139: -2.27836072 | B139: 0.1186645929
A140: -2.27836072 | B140: 0
A141: -2.275697844 | B141: 0
A142: -2.275697844 | B142: 0.1186645929
A143: -2.273034969 | B143: 0.1186645929
A144: -2.273034969 | B144: 0
A145: -2.270372093 | B145: 0
A146: -2.270372093 | B146: 0.1186645929
A147: -2.267709218 | B147: 0.1186645929
A148: -2.267709218 | B148: 0
A149: -2.265046342 | B149: 0
A150: -2.265046342 | B150: 0.1186645929
A151: -2.262383466 | B151: 0.1186645929
A152: -2.262383466 | B152: 0
A153: -2.259720591 | B153: 0
A154: -2.259720591 | B154: 0.1186645929
A155: -2.257057715 | B155: 0.1186645929
A156: -2.257057715 | B156: 0
A157: -2.25439484 | B157: 0
A158: -2.25439484 | B158: 0.1186645929
A159: -2.251731964 | B159: 0.1186645929
A160: -2.251731964 | B160: 0
A161: -2.249069089 | B161: 0
A162: -2.249069089 | B162: 0.1186645929
A163: -2.246406213 | B163: 0.1186645929
A164: -2.246406213 | B164: 0
A165: -2.243743337 | B165: 0
A166: -2.243743337 | B166: 0.1186645929
A167: -2.241080462 | B167: 0.1186645929
A168: -2.241080462 | B168: 0
A169: -2.238417586 | B169: 0
A170: -2.238417586 | B170: 0.1186645929
A171: -2.235754711 | B171: 0.1186645929
A172: -2.235754711 | B172: 0
A173: -2.233091835 | B173: 0
A174: -2.233091835 | B174: 0.1186645929
A175: -2.23042896 | B175: 0.1186645929
A176: -2.23042896 | B176: 0
A177: -2.227766084 | B177: 0
A178: -2.227766084 | B178: 0.1186645929
A179: -2.225103208 | B179: 0.1186645929
A180: -2.225103208 | B180: 0
A181: -2.222440333 | B181: 0
A182: -2.222440333 | B182: 0.1186645929
A183: -2.219777457 | B183: 0.1186645929
A184: -2.219777457 | B184: 0
A185: -2.217114582 | B185: 0
A186: -2.217114582 | B186: 0.1186645929
A187: -2.214451706 | B187: 0.1186645929
A188: -2.214451706 | B188: 0
A189: -2.211788831 | B189: 0
A190: -2.211788831 | B190: 0.1186645929
A191: -2.209125955 | B191: 0.1186645929
A192: -2.209125955 | B192: 0
A193: -2.206463079 | B193: 0
A194: -2.206463079 | B194: 0.1186645929
A195: -2.203800204 | B195: 0.1186645929
A196: -2.203800204 | B196: 0
A197: -2.201137328 | B197: 0
A198: -2.201137328 | B198: 0.1186645929
A199: -2.198474453 | B199: 0.1186645929
A200: -2.198474453 | B200: 0
... 3424 more rows

Sheet Histogram
B1: XLSTAT 2023.1.1.1405 - Histograms - Start time: 10/03/2023 at 14:29:50 / End time: 10/03/2023 at 14:29:51 / Microsoft Excel 16.016130
B2: Data: Workbook = DemoTransformation_fr.xlsm / Sheet = Data / Range = 'Data'!$B:$B / 47 rows and 1 column
B3: Intervals: Number = 10
B8: Summary statistics:
B10: Variable | C10: Observations | D10: Obs. with missing data | E10: Obs. without missing data | F10: Minimum | G10: Maximum | H10: Mean | I10: Std. deviation
B11: Level of waste | C11: 47 | D11: 0 | E11: 47 | F11: 0.02715519741 | G11: 4.880755753 | H11: 0.9883702805 | I11: 1.258440009
B33: Descriptive statistics for the intervals (Level of waste):
B35: Lower bound | C35: Upper bound | D35: Frequency | E35: Relative frequency | F35: Density (Data) | G35: Density (Distribution)
B36: 0 | C36: 0.4980755753 | D36: 25 | E36: 0.5319148936 | F36: 1.067940128 | G36: 0.1323027522
B37: 0.4980755753 | C37: 0.9961511505 | D37: 6 | E37: 0.1276595745 | F37: 0.2563056307 | G37: 0.1540523513
B38: 0.9961511505 | C38: 1.494226726 | D38: 5 | E38: 0.1063829787 | F38: 0.2135880256 | G38: 0.1536807081
B39: 1.494226726 | C39: 1.992302301 | D39: 5 | E39: 0.1063829787 | F39: 0.2135880256 | G39: 0.1313475298
B40: 1.992302301 | C40: 2.490377876 | D40: 1 | E40: 0.02127659574 | F40: 0.04271760512 | G40: 0.09617757627
B41: 2.490377876 | C41: 2.988453452 | D41: 0 | E41: 0 | F41: 0 | G41: 0.06033520907
B42: 2.988453452 | C42: 3.486529027 | D42: 0 | E42: 0 | F42: 0 | G42: 0.03242698251
B43: 3.486529027 | C43: 3.984604602 | D43: 2 | E43: 0.04255319149 | F43: 0.08543521024 | G43: 0.01493044074
B44: 3.984604602 | C44: 4.482680177 | D44: 2 | E44: 0.04255319149 | F44: 0.08543521024 | G44: 0.005889234483
B45: 4.482680177 | C45: 4.980755753 | D45: 1 | E45: 0.02127659574 | F45: 0.04271760512 | G45: 0.001990000363

Sheet Variables transformation
B1: XLSTAT 2023.1.1.1405 - Variables transformation - Start time: 10/03/2023 at 15:11:16 / End time: 10/03/2023 at 15:11:17 / Microsoft Excel 16.016130
B2: Data: Workbook = demo-variable-transformation.xlsm / Sheet = Data / Range = 'Data'!$B:$B / 47 rows and 1 column
B3: Transformation: Johnson transformation
B4: Test: Shapiro-Wilk
B9: Formula (Level of waste): Obs (New) = 1.259 + 0.527 * ln( (Obs - 0.020) / (5.564 + 0.020 - Obs) )
B11: Normality test (Level of waste):
B13: W | C13: 0.9844860792
B14: p-value (Two-tailed) | C14: 0.780256661
B15: alpha | C15: 0.05
B17: Test interpretation:
B18: H0: The variable from which the sample was extracted follows a Normal distribution.
B19: Ha: The variable from which the sample was extracted does not follow a Normal distribution.
B20: As the computed p-value is greater than the significance level alpha=0,05, one cannot reject the null hypothesis H0.
B24: Transformed data:
B26: Observation | C26: Level of waste
B27: Obs1 | C27: -0.4321101556
B28: Obs2 | C28: -2.192151096
B29: Obs3 | C29: -1.018624124
B30: Obs4 | C30: -0.5885794496
B31: Obs5 | C31: 1.019938956
B32: Obs6 | C32: 0.4860525262
B33: Obs7 | C33: -1.53478119
B34: Obs8 | C34: -0.5881841391
B35: Obs9 | C35: -0.1279255571
B36: Obs10 | C36: 1.860626109
B37: Obs11 | C37: -1.748060444
B38: Obs12 | C38: 0.1421481256
B39: Obs13 | C39: -0.3155526077
B40: Obs14 | C40: -0.96262342
B41: Obs15 | C41: 1.644599005
B42: Obs16 | C42: -0.06794566253
B43: Obs17 | C43: 1.530023913
B44: Obs18 | C44: 0.7585938706
B45: Obs19 | C45: 0.9337076702
B46: Obs20 | C46: 0.2310082158
B47: Obs21 | C47: -1.090390478
B48: Obs22 | C48: 0.693968172
B49: Obs23 | C49: 1.887879003
B50: Obs24 | C50: -0.8171628434
B51: Obs25 | C51: 2.279008656
B52: Obs26 | C52: 0.07646622252
B53: Obs27 | C53: -2.223945105
B54: Obs28 | C54: -1.133515661
B55: Obs29 | C55: 0.1180905637
B56: Obs30 | C56: -0.3810635734
B57: Obs31 | C57: -0.2368989493
B58: Obs32 | C58: 0.7790287008
B59: Obs33 | C59: 0.1589692532
B60: Obs34 | C60: 0.8818948691
B61: Obs35 | C61: -0.5113994109
B62: Obs36 | C62: -0.134589863
B63: Obs37 | C63: 0.8390115686
B64: Obs38 | C64: 0.6475609482
B65: Obs39 | C65: -1.28556758
B66: Obs40 | C66: -2.117836429
B67: Obs41 | C67: -0.5612264906
B68: Obs42 | C68: -0.5892225735
B69: Obs43 | C69: 0.07833244291
B70: Obs44 | C70: 0.5913709233
B71: Obs45 | C71: -0.07370406247
B72: Obs46 | C72: 0.6361650052
B73: Obs47 | C73: -0.2157234531

Sheet Normality tests_afterTransf
B1: XLSTAT 2023.1.1.1405 - Normality tests - Start time: 10/03/2023 at 15:26:53 / End time: 10/03/2023 at 15:26:54 / Microsoft Excel 16.016130
B2: Data: Workbook = demo-variable-transformation.xlsm / Sheet = Variables transformation / Range = 'Variables transformation'!$C$26:$C$73 / 47 rows and 1 column
B3: Significance level (%): 5
B8: Summary statistics:
B10: Variable | C10: Observations | D10: Obs. with missing data | E10: Obs. without missing data | F10: Minimum | G10: Maximum | H10: Mean | I10: Std. deviation
B11: Level of waste | C11: 47 | D11: 0 | E11: 47 | F11: -2.223945105 | G11: 2.279008656 | H11: -0.05690084254 | I11: 1.06635397
B14: Shapiro-Wilk test (Level of waste):
B16: W | C16: 0.9844860792
B17: p-value (Two-tailed) | C17: 0.780256661
B18: alpha | C18: 0.05
B20: Test interpretation:
B21: H0: The variable from which the sample was extracted follows a Normal distribution.
B22: Ha: The variable from which the sample was extracted does not follow a Normal distribution.
B23: As the computed p-value is greater than the significance level alpha=0,05, one cannot reject the null hypothesis H0.
B27: Anderson-Darling test (Level of waste):
B29: A² | C29: 0.200620431
B30: p-value (Two-tailed) | C30: 0.8752590323
B31: alpha | C31: 0.05
B33: Test interpretation:
B34: H0: The variable from which the sample was extracted follows a Normal distribution.
B35: Ha: The variable from which the sample was extracted does not follow a Normal distribution.
B36: As the computed p-value is greater than the significance level alpha=0,05, one cannot reject the null hypothesis H0.
B40: Lilliefors test (Level of waste):
B42: D | C42: 0.07477741119
B43: D (standardized) | C43: 0.512648103
B44: p-value (Two-tailed) | C44: 0.7345729536
B45: alpha | C45: 0.05
B47: Test interpretation:
B48: H0: The variable from which the sample was extracted follows a Normal distribution.
B49: Ha: The variable from which the sample was extracted does not follow a Normal distribution.
B50: As the computed p-value is greater than the significance level alpha=0,05, one cannot reject the null hypothesis H0.
B54: Jarque-Bera test (Level of waste):
B56: JB (Observed value) | C56: 0.1472592881
B57: JB (Critical value) | C57: 5.991464547
B58: DF | C58: 2
B59: p-value (Two-tailed) | C59: 0.9290156966
B60: alpha | C60: 0.05
B62: Test interpretation:
B63: H0: The variable from which the sample was extracted follows a Normal distribution.
B64: Ha: The variable from which the sample was extracted does not follow a Normal distribution.
B65: As the computed p-value is greater than the significance level alpha=0,05, one cannot reject the null hypothesis H0.
B69: Summary:
B71: Variable\Test | C71: Shapiro-Wilk | D71: Anderson-Darling | E71: Lilliefors | F71: Jarque-Bera
B72: Level of waste | C72: 0.780256661 | D72: 0.8752590323 | E72: 0.7345729536 | F72: 0.9290156966

Sheet Histogram_afterTransf
B1: XLSTAT 2023.1.1.1405 - Histograms - Start time: 10/03/2023 at 15:28:55 / End time: 10/03/2023 at 15:28:56 / Microsoft Excel 16.016130
B2: Data: Workbook = demo-variable-transformation.xlsm / Sheet = Variables transformation / Range = 'Variables transformation'!$C$26:$C$73 / 47 rows and 1 column
B3: Intervals: Number = 10
B8: Summary statistics:
B10: Variable | C10: Observations | D10: Obs. with missing data | E10: Obs. without missing data | F10: Minimum | G10: Maximum | H10: Mean | I10: Std. deviation
B11: Level of waste | C11: 47 | D11: 0 | E11: 47 | F11: -2.223945105 | G11: 2.279008656 | H11: -0.05690084254 | I11: 1.06635397
B33: Descriptive statistics for the intervals (Level of waste):
B35: Lower bound | C35: Upper bound | D35: Frequency | E35: Relative frequency | F35: Density (Data) | G35: Density (Distribution)
B36: -3 | C36: -2.462099134 | D36: 0 | E36: 0 | F36: 0 | G36: 0.009159514365
B37: -2.462099134 | C37: -1.924198269 | D37: 3 | E37: 0.06382978723 | F37: 0.1186645929 | G37: 0.02791404422
B38: -1.924198269 | C38: -1.386297403 | D38: 2 | E38: 0.04255319149 | F38: 0.0791097286 | G38: 0.06629445167
B39: -1.386297403 | C39: -0.8483965376 | D39: 5 | E39: 0.1063829787 | F39: 0.1977743215 | G39: 0.1227111213
B40: -0.8483965376 | C40: -0.310495672 | D40: 9 | E40: 0.1914893617 | F40: 0.3559937787 | G40: 0.1770428297
B41: -0.310495672 | C41: 0.2274051936 | D41: 11 | E41: 0.2340425532 | F41: 0.4351035073 | G41: 0.1991048805
B42: 0.2274051936 | C42: 0.7653060592 | D42: 7 | E42: 0.1489361702 | F42: 0.2768840501 | G42: 0.1745426482
B43: 0.7653060592 | C43: 1.303206925 | D43: 5 | E43: 0.1063829787 | F43: 0.1977743215 | G43: 0.1192695341
B44: 1.303206925 | C44: 1.84110779 | D44: 2 | E44: 0.04255319149 | F44: 0.0791097286 | G44: 0.06352482946
B45: 1.84110779 | C45: 2.379008656 | D45: 3 | E45: 0.06382978723 | F45: 0.1186645929 | G45: 0.026369834

Sheet XLSTAT_20230310_152848_1_HID1 (hidden)
A1: 1 | C1: =-3+(A1-1)*0.006006006 -> -3 | D1: =[3]!XLSTAT_PDFNormal(C1,-0.0569008425409715,1.06635397045581) -> 0.008296794691
A2: 2 | C2: -2.993993994 | D2: =[3]!XLSTAT_PDFNormal(C2,-0.0569008425409715,1.06635397045581) -> 0.008426641509
A3: 3 | C3: -2.987987988 | D3: =[3]!XLSTAT_PDFNormal(C3,-0.0569008425409715,1.06635397045581) -> 0.008558248966
A4: 4 | C4: -2.981981982 | D4: =[3]!XLSTAT_PDFNormal(C4,-0.0569008425409715,1.06635397045581) -> 0.008691636145
A5: 5 | C5: -2.975975976 | D5: =[3]!XLSTAT_PDFNormal(C5,-0.0569008425409715,1.06635397045581) -> 0.008826822256
A6: 6 | C6: -2.96996997 | D6: =[3]!XLSTAT_PDFNormal(C6,-0.0569008425409715,1.06635397045581) -> 0.008963826636
A7: 7 | C7: -2.963963964 | D7: =[3]!XLSTAT_PDFNormal(C7,-0.0569008425409715,1.06635397045581) -> 0.009102668747
A8: 8 | C8: -2.957957958 | D8: =[3]!XLSTAT_PDFNormal(C8,-0.0569008425409715,1.06635397045581) -> 0.009243368176
A9: 9 | C9: -2.951951952 | D9: =[3]!XLSTAT_PDFNormal(C9,-0.0569008425409715,1.06635397045581) -> 0.009385944638
A10: 10 | C10: -2.945945946 | D10: =[3]!XLSTAT_PDFNormal(C10,-0.0569008425409715,1.06635397045581) -> 0.009530417968
A11: 11 | C11: -2.93993994 | D11: =[3]!XLSTAT_PDFNormal(C11,-0.0569008425409715,1.06635397045581) -> 0.009676808128
A12: 12 | C12: -2.933933934 | D12: =[3]!XLSTAT_PDFNormal(C12,-0.0569008425409715,1.06635397045581) -> 0.009825135203
A13: 13 | C13: -2.927927928 | D13: =[3]!XLSTAT_PDFNormal(C13,-0.0569008425409715,1.06635397045581) -> 0.009975419399
A14: 14 | C14: -2.921921922 | D14: =[3]!XLSTAT_PDFNormal(C14,-0.0569008425409715,1.06635397045581) -> 0.01012768104
A15: 15 | C15: -2.915915916 | D15: =[3]!XLSTAT_PDFNormal(C15,-0.0569008425409715,1.06635397045581) -> 0.01028194059
A16: 16 | C16: -2.90990991 | D16: =[3]!XLSTAT_PDFNormal(C16,-0.0569008425409715,1.06635397045581) -> 0.0104382186
A17: 17 | C17: -2.903903904 | D17: =[3]!XLSTAT_PDFNormal(C17,-0.0569008425409715,1.06635397045581) -> 0.01059653577
A18: 18 | C18: -2.897897898 | D18: =[3]!XLSTAT_PDFNormal(C18,-0.0569008425409715,1.06635397045581) -> 0.0107569129
A19: 19 | C19: -2.891891892 | D19: =[3]!XLSTAT_PDFNormal(C19,-0.0569008425409715,1.06635397045581) -> 0.01091937092
A20: 20 | C20: -2.885885886 | D20: =[3]!XLSTAT_PDFNormal(C20,-0.0569008425409715,1.06635397045581) -> 0.01108393088
A21: 21 | C21: -2.87987988 | D21: =[3]!XLSTAT_PDFNormal(C21,-0.0569008425409715,1.06635397045581) -> 0.01125061392
A22: 22 | C22: -2.873873874 | D22: =[3]!XLSTAT_PDFNormal(C22,-0.0569008425409715,1.06635397045581) -> 0.01141944133
A23: 23 | C23: -2.867867868 | D23: =[3]!XLSTAT_PDFNormal(C23,-0.0569008425409715,1.06635397045581) -> 0.01159043449
A24: 24 | C24: -2.861861862 | D24: =[3]!XLSTAT_PDFNormal(C24,-0.0569008425409715,1.06635397045581) -> 0.0117636149
A25: 25 | C25: -2.855855856 | D25: =[3]!XLSTAT_PDFNormal(C25,-0.0569008425409715,1.06635397045581) -> 0.01193900417
A26: 26 | C26: -2.84984985 | D26: =[3]!XLSTAT_PDFNormal(C26,-0.0569008425409715,1.06635397045581) -> 0.01211662402
A27: 27 | C27: -2.843843844 | D27: =[3]!XLSTAT_PDFNormal(C27,-0.0569008425409715,1.06635397045581) -> 0.01229649629
A28: 28 | C28: -2.837837838 | D28: =[3]!XLSTAT_PDFNormal(C28,-0.0569008425409715,1.06635397045581) -> 0.01247864292
A29: 29 | C29: -2.831831832 | D29: =[3]!XLSTAT_PDFNormal(C29,-0.0569008425409715,1.06635397045581) -> 0.01266308595
A30: 30 | C30: -2.825825826 | D30: =[3]!XLSTAT_PDFNormal(C30,-0.0569008425409715,1.06635397045581) -> 0.01284984754
A31: 31 | C31: -2.81981982 | D31: =[3]!XLSTAT_PDFNormal(C31,-0.0569008425409715,1.06635397045581) -> 0.01303894995
A32: 32 | C32: -2.813813814 | D32: =[3]!XLSTAT_PDFNormal(C32,-0.0569008425409715,1.06635397045581) -> 0.01323041554
A33: 33 | C33: -2.807807808 | D33: =[3]!XLSTAT_PDFNormal(C33,-0.0569008425409715,1.06635397045581) -> 0.01342426678
A34: 34 | C34: -2.801801802 | D34: =[3]!XLSTAT_PDFNormal(C34,-0.0569008425409715,1.06635397045581) -> 0.01362052623
A35: 35 | C35: -2.795795796 | D35: =[3]!XLSTAT_PDFNormal(C35,-0.0569008425409715,1.06635397045581) -> 0.01381921655
A36: 36 | C36: -2.78978979 | D36: =[3]!XLSTAT_PDFNormal(C36,-0.0569008425409715,1.06635397045581) -> 0.01402036052
A37: 37 | C37: -2.783783784 | D37: =[3]!XLSTAT_PDFNormal(C37,-0.0569008425409715,1.06635397045581) -> 0.01422398098
A38: 38 | C38: -2.777777778 | D38: =[3]!XLSTAT_PDFNormal(C38,-0.0569008425409715,1.06635397045581) -> 0.01443010089
A39: 39 | C39: -2.771771772 | D39: =[3]!XLSTAT_PDFNormal(C39,-0.0569008425409715,1.06635397045581) -> 0.01463874331
A40: 40 | C40: -2.765765766 | D40: =[3]!XLSTAT_PDFNormal(C40,-0.0569008425409715,1.06635397045581) -> 0.01484993136
A41: 41 | C41: -2.75975976 | D41: =[3]!XLSTAT_PDFNormal(C41,-0.0569008425409715,1.06635397045581) -> 0.01506368829
A42: 42 | C42: -2.753753754 | D42: =[3]!XLSTAT_PDFNormal(C42,-0.0569008425409715,1.06635397045581) -> 0.0152800374
A43: 43 | C43: -2.747747748 | D43: =[3]!XLSTAT_PDFNormal(C43,-0.0569008425409715,1.06635397045581) -> 0.0154990021
A44: 44 | C44: -2.741741742 | D44: =[3]!XLSTAT_PDFNormal(C44,-0.0569008425409715,1.06635397045581) -> 0.01572060589
A45: 45 | C45: -2.735735736 | D45: =[3]!XLSTAT_PDFNormal(C45,-0.0569008425409715,1.06635397045581) -> 0.01594487234
A46: 46 | C46: -2.72972973 | D46: =[3]!XLSTAT_PDFNormal(C46,-0.0569008425409715,1.06635397045581) -> 0.01617182509
A47: 47 | C47: -2.723723724 | D47: =[3]!XLSTAT_PDFNormal(C47,-0.0569008425409715,1.06635397045581) -> 0.0164014879
A48: 48 | C48: -2.717717718 | D48: =[3]!XLSTAT_PDFNormal(C48,-0.0569008425409715,1.06635397045581) -> 0.01663388456
A49: 49 | C49: -2.711711712 | D49: =[3]!XLSTAT_PDFNormal(C49,-0.0569008425409715,1.06635397045581) -> 0.01686903896
A50: 50 | C50: -2.705705706 | D50: =[3]!XLSTAT_PDFNormal(C50,-0.0569008425409715,1.06635397045581) -> 0.01710697508
A51: 51 | C51: -2.6996997 | D51: =[3]!XLSTAT_PDFNormal(C51,-0.0569008425409715,1.06635397045581) -> 0.01734771694
A52: 52 | C52: -2.693693694 | D52: =[3]!XLSTAT_PDFNormal(C52,-0.0569008425409715,1.06635397045581) -> 0.01759128864
A53: 53 | C53: -2.687687688 | D53: =[3]!XLSTAT_PDFNormal(C53,-0.0569008425409715,1.06635397045581) -> 0.01783771436
A54: 54 | C54: -2.681681682 | D54: =[3]!XLSTAT_PDFNormal(C54,-0.0569008425409715,1.06635397045581) -> 0.01808701833
A55: 55 | C55: -2.675675676 | D55: =[3]!XLSTAT_PDFNormal(C55,-0.0569008425409715,1.06635397045581) -> 0.01833922485
A56: 56 | C56: -2.66966967 | D56: =[3]!XLSTAT_PDFNormal(C56,-0.0569008425409715,1.06635397045581) -> 0.01859435829
A57: 57 | C57: -2.663663664 | D57: =[3]!XLSTAT_PDFNormal(C57,-0.0569008425409715,1.06635397045581) -> 0.01885244306
A58: 58 | C58: -2.657657658 | D58: =[3]!XLSTAT_PDFNormal(C58,-0.0569008425409715,1.06635397045581) -> 0.01911350364
A59: 59 | C59: -2.651651652 | D59: =[3]!XLSTAT_PDFNormal(C59,-0.0569008425409715,1.06635397045581) -> 0.01937756455
A60: 60 | C60: -2.645645646 | D60: =[3]!XLSTAT_PDFNormal(C60,-0.0569008425409715,1.06635397045581) -> 0.01964465039
A61: 61 | C61: -2.63963964 | D61: =[3]!XLSTAT_PDFNormal(C61,-0.0569008425409715,1.06635397045581) -> 0.01991478578
A62: 62 | C62: -2.633633634 | D62: =[3]!XLSTAT_PDFNormal(C62,-0.0569008425409715,1.06635397045581) -> 0.0201879954
A63: 63 | C63: -2.627627628 | D63: =[3]!XLSTAT_PDFNormal(C63,-0.0569008425409715,1.06635397045581) -> 0.02046430398
A64: 64 | C64: -2.621621622 | D64: =[3]!XLSTAT_PDFNormal(C64,-0.0569008425409715,1.06635397045581) -> 0.02074373627
A65: 65 | C65: =-3+(A65-1)*0.006006006 -> -2.615615616 | D65: =[3]!XLSTAT_PDFNormal(C65,-0.0569008425409715,1.06635397045581) -> 0.02102631708
A66: 66 | C66: -2.60960961 | D66: =[3]!XLSTAT_PDFNormal(C66,-0.0569008425409715,1.06635397045581) -> 0.02131207126
A67: 67 | C67: -2.603603604 | D67: =[3]!XLSTAT_PDFNormal(C67,-0.0569008425409715,1.06635397045581) -> 0.02160102367
A68: 68 | C68: -2.597597598 | D68: =[3]!XLSTAT_PDFNormal(C68,-0.0569008425409715,1.06635397045581) -> 0.02189319923
A69: 69 | C69: -2.591591592 | D69: =[3]!XLSTAT_PDFNormal(C69,-0.0569008425409715,1.06635397045581) -> 0.02218862286
A70: 70 | C70: -2.585585586 | D70: =[3]!XLSTAT_PDFNormal(C70,-0.0569008425409715,1.06635397045581) -> 0.02248731952
A71: 71 | C71: -2.57957958 | D71: =[3]!XLSTAT_PDFNormal(C71,-0.0569008425409715,1.06635397045581) -> 0.02278931421
A72: 72 | C72: -2.573573574 | D72: =[3]!XLSTAT_PDFNormal(C72,-0.0569008425409715,1.06635397045581) -> 0.02309463191
A73: 73 | C73: -2.567567568 | D73: =[3]!XLSTAT_PDFNormal(C73,-0.0569008425409715,1.06635397045581) -> 0.02340329766
A74: 74 | C74: -2.561561562 | D74: =[3]!XLSTAT_PDFNormal(C74,-0.0569008425409715,1.06635397045581) -> 0.02371533648
A75: 75 | C75: -2.555555556 | D75: =[3]!XLSTAT_PDFNormal(C75,-0.0569008425409715,1.06635397045581) -> 0.02403077342
A76: 76 | C76: -2.54954955 | D76: =[3]!XLSTAT_PDFNormal(C76,-0.0569008425409715,1.06635397045581) -> 0.02434963353
A77: 77 | C77: -2.543543544 | D77: =[3]!XLSTAT_PDFNormal(C77,-0.0569008425409715,1.06635397045581) -> 0.02467194186
A78: 78 | C78: -2.537537538 | D78: =[3]!XLSTAT_PDFNormal(C78,-0.0569008425409715,1.06635397045581) -> 0.02499772349
A79: 79 | C79: -2.531531532 | D79: =[3]!XLSTAT_PDFNormal(C79,-0.0569008425409715,1.06635397045581) -> 0.02532700346
A80: 80 | C80: -2.525525526 | D80: =[3]!XLSTAT_PDFNormal(C80,-0.0569008425409715,1.06635397045581) -> 0.02565980683
A81: 81 | C81: -2.51951952 | D81: =[3]!XLSTAT_PDFNormal(C81,-0.0569008425409715,1.06635397045581) -> 0.02599615864
A82: 82 | C82: -2.513513514 | D82: =[3]!XLSTAT_PDFNormal(C82,-0.0569008425409715,1.06635397045581) -> 0.02633608393
A83: 83 | C83: -2.507507508 | D83: =[3]!XLSTAT_PDFNormal(C83,-0.0569008425409715,1.06635397045581) -> 0.02667960771
A84: 84 | C84: -2.501501502 | D84: =[3]!XLSTAT_PDFNormal(C84,-0.0569008425409715,1.06635397045581) -> 0.027026755
A85: 85 | C85: -2.495495496 | D85: =[3]!XLSTAT_PDFNormal(C85,-0.0569008425409715,1.06635397045581) -> 0.02737755076
A86: 86 | C86: -2.48948949 | D86: =[3]!XLSTAT_PDFNormal(C86,-0.0569008425409715,1.06635397045581) -> 0.02773201995
A87: 87 | C87: -2.483483484 | D87: =[3]!XLSTAT_PDFNormal(C87,-0.0569008425409715,1.06635397045581) -> 0.02809018751
A88: 88 | C88: -2.477477478 | D88: =[3]!XLSTAT_PDFNormal(C88,-0.0569008425409715,1.06635397045581) -> 0.02845207832
A89: 89 | C89: -2.471471472 | D89: =[3]!XLSTAT_PDFNormal(C89,-0.0569008425409715,1.06635397045581) -> 0.02881771725
A90: 90 | C90: -2.465465466 | D90: =[3]!XLSTAT_PDFNormal(C90,-0.0569008425409715,1.06635397045581) -> 0.02918712912
A91: 91 | C91: -2.45945946 | D91: =[3]!XLSTAT_PDFNormal(C91,-0.0569008425409715,1.06635397045581) -> 0.0295603387
A92: 92 | C92: -2.453453454 | D92: =[3]!XLSTAT_PDFNormal(C92,-0.0569008425409715,1.06635397045581) -> 0.02993737072
A93: 93 | C93: -2.447447448 | D93: =[3]!XLSTAT_PDFNormal(C93,-0.0569008425409715,1.06635397045581) -> 0.03031824987
A94: 94 | C94: -2.441441442 | D94: =[3]!XLSTAT_PDFNormal(C94,-0.0569008425409715,1.06635397045581) -> 0.03070300077
A95: 95 | C95: -2.435435436 | D95: =[3]!XLSTAT_PDFNormal(C95,-0.0569008425409715,1.06635397045581) -> 0.03109164799
A96: 96 | C96: -2.42942943 | D96: =[3]!XLSTAT_PDFNormal(C96,-0.0569008425409715,1.06635397045581) -> 0.03148421604
A97: 97 | C97: -2.423423424 | D97: =[3]!XLSTAT_PDFNormal(C97,-0.0569008425409715,1.06635397045581) -> 0.03188072937
A98: 98 | C98: -2.417417418 | D98: =[3]!XLSTAT_PDFNormal(C98,-0.0569008425409715,1.06635397045581) -> 0.03228121233
A99: 99 | C99: -2.411411412 | D99: =[3]!XLSTAT_PDFNormal(C99,-0.0569008425409715,1.06635397045581) -> 0.03268568924
A100: 100 | C100: -2.405405406 | D100: =[3]!XLSTAT_PDFNormal(C100,-0.0569008425409715,1.06635397045581) -> 0.03309418431
A101: 101 | C101: -2.3993994 | D101: =[3]!XLSTAT_PDFNormal(C101,-0.0569008425409715,1.06635397045581) -> 0.03350672167
A102: 102 | C102: -2.393393394 | D102: =[3]!XLSTAT_PDFNormal(C102,-0.0569008425409715,1.06635397045581) -> 0.0339233254
A103: 103 | C103: -2.387387388 | D103: =[3]!XLSTAT_PDFNormal(C103,-0.0569008425409715,1.06635397045581) -> 0.03434401944
A104: 104 | C104: -2.381381382 | D104: =[3]!XLSTAT_PDFNormal(C104,-0.0569008425409715,1.06635397045581) -> 0.03476882766
A105: 105 | C105: -2.375375376 | D105: =[3]!XLSTAT_PDFNormal(C105,-0.0569008425409715,1.06635397045581) -> 0.03519777385
A106: 106 | C106: -2.36936937 | D106: =[3]!XLSTAT_PDFNormal(C106,-0.0569008425409715,1.06635397045581) -> 0.03563088166
A107: 107 | C107: -2.363363364 | D107: =[3]!XLSTAT_PDFNormal(C107,-0.0569008425409715,1.06635397045581) -> 0.03606817466
A108: 108 | C108: -2.357357358 | D108: =[3]!XLSTAT_PDFNormal(C108,-0.0569008425409715,1.06635397045581) -> 0.03650967629
A109: 109 | C109: -2.351351352 | D109: =[3]!XLSTAT_PDFNormal(C109,-0.0569008425409715,1.06635397045581) -> 0.0369554099
A110: 110 | C110: -2.345345346 | D110: =[3]!XLSTAT_PDFNormal(C110,-0.0569008425409715,1.06635397045581) -> 0.0374053987
A111: 111 | C111: -2.33933934 | D111: =[3]!XLSTAT_PDFNormal(C111,-0.0569008425409715,1.06635397045581) -> 0.03785966577
A112: 112 | C112: -2.333333334 | D112: =[3]!XLSTAT_PDFNormal(C112,-0.0569008425409715,1.06635397045581) -> 0.03831823408
A113: 113 | C113: -2.327327328 | D113: =[3]!XLSTAT_PDFNormal(C113,-0.0569008425409715,1.06635397045581) -> 0.03878112646
A114: 114 | C114: -2.321321322 | D114: =[3]!XLSTAT_PDFNormal(C114,-0.0569008425409715,1.06635397045581) -> 0.0392483656
A115: 115 | C115: -2.315315316 | D115: =[3]!XLSTAT_PDFNormal(C115,-0.0569008425409715,1.06635397045581) -> 0.03971997405
A116: 116 | C116: -2.30930931 | D116: =[3]!XLSTAT_PDFNormal(C116,-0.0569008425409715,1.06635397045581) -> 0.0401959742
A117: 117 | C117: -2.303303304 | D117: =[3]!XLSTAT_PDFNormal(C117,-0.0569008425409715,1.06635397045581) -> 0.04067638831
A118: 118 | C118: -2.297297298 | D118: =[3]!XLSTAT_PDFNormal(C118,-0.0569008425409715,1.06635397045581) -> 0.04116123847
A119: 119 | C119: -2.291291292 | D119: =[3]!XLSTAT_PDFNormal(C119,-0.0569008425409715,1.06635397045581) -> 0.04165054661
A120: 120 | C120: -2.285285286 | D120: =[3]!XLSTAT_PDFNormal(C120,-0.0569008425409715,1.06635397045581) -> 0.04214433449
A121: 121 | C121: -2.27927928 | D121: =[3]!XLSTAT_PDFNormal(C121,-0.0569008425409715,1.06635397045581) -> 0.04264262373
A122: 122 | C122: -2.273273274 | D122: =[3]!XLSTAT_PDFNormal(C122,-0.0569008425409715,1.06635397045581) -> 0.04314543572
A123: 123 | C123: -2.267267268 | D123: =[3]!XLSTAT_PDFNormal(C123,-0.0569008425409715,1.06635397045581) -> 0.04365279172
A124: 124 | C124: -2.261261262 | D124: =[3]!XLSTAT_PDFNormal(C124,-0.0569008425409715,1.06635397045581) -> 0.04416471279
A125: 125 | C125: -2.255255256 | D125: =[3]!XLSTAT_PDFNormal(C125,-0.0569008425409715,1.06635397045581) -> 0.04468121978
A126: 126 | C126: -2.24924925 | D126: =[3]!XLSTAT_PDFNormal(C126,-0.0569008425409715,1.06635397045581) -> 0.04520233337
A127: 127 | C127: -2.243243244 | D127: =[3]!XLSTAT_PDFNormal(C127,-0.0569008425409715,1.06635397045581) -> 0.04572807403
A128: 128 | C128: -2.237237238 | D128: =[3]!XLSTAT_PDFNormal(C128,-0.0569008425409715,1.06635397045581) -> 0.04625846203
A129: 129 | C129: =-3+(A129-1)*0.006006006 -> -2.231231232 | D129: =[3]!XLSTAT_PDFNormal(C129,-0.0569008425409715,1.06635397045581) -> 0.04679351743
A130: 130 | C130: -2.225225226 | D130: =[3]!XLSTAT_PDFNormal(C130,-0.0569008425409715,1.06635397045581) -> 0.04733326006
A131: 131 | C131: -2.21921922 | D131: =[3]!XLSTAT_PDFNormal(C131,-0.0569008425409715,1.06635397045581) -> 0.04787770956
A132: 132 | C132: -2.213213214 | D132: =[3]!XLSTAT_PDFNormal(C132,-0.0569008425409715,1.06635397045581) -> 0.04842688533
A133: 133 | C133: -2.207207208 | D133: =[3]!XLSTAT_PDFNormal(C133,-0.0569008425409715,1.06635397045581) -> 0.04898080653
A134: 134 | C134: -2.201201202 | D134: =[3]!XLSTAT_PDFNormal(C134,-0.0569008425409715,1.06635397045581) -> 0.04953949209
A135: 135 | C135: -2.195195196 | D135: =[3]!XLSTAT_PDFNormal(C135,-0.0569008425409715,1.06635397045581) -> 0.05010296073
A136: 136 | C136: -2.18918919 | D136: =[3]!XLSTAT_PDFNormal(C136,-0.0569008425409715,1.06635397045581) -> 0.05067123088
A137: 137 | C137: -2.183183184 | D137: =[3]!XLSTAT_PDFNormal(C137,-0.0569008425409715,1.06635397045581) -> 0.05124432075
A138: 138 | C138: -2.177177178 | D138: =[3]!XLSTAT_PDFNormal(C138,-0.0569008425409715,1.06635397045581) -> 0.05182224829
A139: 139 | C139: -2.171171172 | D139: =[3]!XLSTAT_PDFNormal(C139,-0.0569008425409715,1.06635397045581) -> 0.05240503117
A140: 140 | C140: -2.165165166 | D140: =[3]!XLSTAT_PDFNormal(C140,-0.0569008425409715,1.06635397045581) -> 0.05299268683
A141: 141 | C141: -2.15915916 | D141: =[3]!XLSTAT_PDFNormal(C141,-0.0569008425409715,1.06635397045581) -> 0.0535852324
A142: 142 | C142: -2.153153154 | D142: =[3]!XLSTAT_PDFNormal(C142,-0.0569008425409715,1.06635397045581) -> 0.05418268477
A143: 143 | C143: -2.147147148 | D143: =[3]!XLSTAT_PDFNormal(C143,-0.0569008425409715,1.06635397045581) -> 0.05478506052
A144: 144 | C144: -2.141141142 | D144: =[3]!XLSTAT_PDFNormal(C144,-0.0569008425409715,1.06635397045581) -> 0.05539237597
A145: 145 | C145: -2.135135136 | D145: =[3]!XLSTAT_PDFNormal(C145,-0.0569008425409715,1.06635397045581) -> 0.05600464712
A146: 146 | C146: -2.12912913 | D146: =[3]!XLSTAT_PDFNormal(C146,-0.0569008425409715,1.06635397045581) -> 0.0566218897
A147: 147 | C147: -2.123123124 | D147: =[3]!XLSTAT_PDFNormal(C147,-0.0569008425409715,1.06635397045581) -> 0.05724411911
A148: 148 | C148: -2.117117118 | D148: =[3]!XLSTAT_PDFNormal(C148,-0.0569008425409715,1.06635397045581) -> 0.05787135047
A149: 149 | C149: -2.111111112 | D149: =[3]!XLSTAT_PDFNormal(C149,-0.0569008425409715,1.06635397045581) -> 0.05850359857
A150: 150 | C150: -2.105105106 | D150: =[3]!XLSTAT_PDFNormal(C150,-0.0569008425409715,1.06635397045581) -> 0.05914087789
A151: 151 | C151: -2.0990991 | D151: =[3]!XLSTAT_PDFNormal(C151,-0.0569008425409715,1.06635397045581) -> 0.05978320258
A152: 152 | C152: -2.093093094 | D152: =[3]!XLSTAT_PDFNormal(C152,-0.0569008425409715,1.06635397045581) -> 0.06043058647
A153: 153 | C153: -2.087087088 | D153: =[3]!XLSTAT_PDFNormal(C153,-0.0569008425409715,1.06635397045581) -> 0.06108304304
A154: 154 | C154: -2.081081082 | D154: =[3]!XLSTAT_PDFNormal(C154,-0.0569008425409715,1.06635397045581) -> 0.06174058544
A155: 155 | C155: -2.075075076 | D155: =[3]!XLSTAT_PDFNormal(C155,-0.0569008425409715,1.06635397045581) -> 0.06240322649
A156: 156 | C156: -2.06906907 | D156: =[3]!XLSTAT_PDFNormal(C156,-0.0569008425409715,1.06635397045581) -> 0.06307097864
A157: 157 | C157: -2.063063064 | D157: =[3]!XLSTAT_PDFNormal(C157,-0.0569008425409715,1.06635397045581) -> 0.06374385398
A158: 158 | C158: -2.057057058 | D158: =[3]!XLSTAT_PDFNormal(C158,-0.0569008425409715,1.06635397045581) -> 0.06442186426
A159: 159 | C159: -2.051051052 | D159: =[3]!XLSTAT_PDFNormal(C159,-0.0569008425409715,1.06635397045581) -> 0.06510502086
A160: 160 | C160: -2.045045046 | D160: =[3]!XLSTAT_PDFNormal(C160,-0.0569008425409715,1.06635397045581) -> 0.06579333476
A161: 161 | C161: -2.03903904 | D161: =[3]!XLSTAT_PDFNormal(C161,-0.0569008425409715,1.06635397045581) -> 0.0664868166
A162: 162 | C162: -2.033033034 | D162: =[3]!XLSTAT_PDFNormal(C162,-0.0569008425409715,1.06635397045581) -> 0.06718547662
A163: 163 | C163: -2.027027028 | D163: =[3]!XLSTAT_PDFNormal(C163,-0.0569008425409715,1.06635397045581) -> 0.06788932467
A164: 164 | C164: -2.021021022 | D164: =[3]!XLSTAT_PDFNormal(C164,-0.0569008425409715,1.06635397045581) -> 0.06859837022
A165: 165 | C165: -2.015015016 | D165: =[3]!XLSTAT_PDFNormal(C165,-0.0569008425409715,1.06635397045581) -> 0.06931262232
A166: 166 | C166: -2.00900901 | D166: =[3]!XLSTAT_PDFNormal(C166,-0.0569008425409715,1.06635397045581) -> 0.07003208965
A167: 167 | C167: -2.003003004 | D167: =[3]!XLSTAT_PDFNormal(C167,-0.0569008425409715,1.06635397045581) -> 0.07075678045
A168: 168 | C168: -1.996996998 | D168: =[3]!XLSTAT_PDFNormal(C168,-0.0569008425409715,1.06635397045581) -> 0.07148670255
A169: 169 | C169: -1.990990992 | D169: =[3]!XLSTAT_PDFNormal(C169,-0.0569008425409715,1.06635397045581) -> 0.07222186338
A170: 170 | C170: -1.984984986 | D170: =[3]!XLSTAT_PDFNormal(C170,-0.0569008425409715,1.06635397045581) -> 0.07296226992
A171: 171 | C171: -1.97897898 | D171: =[3]!XLSTAT_PDFNormal(C171,-0.0569008425409715,1.06635397045581) -> 0.07370792875
A172: 172 | C172: -1.972972974 | D172: =[3]!XLSTAT_PDFNormal(C172,-0.0569008425409715,1.06635397045581) -> 0.07445884599
A173: 173 | C173: -1.966966968 | D173: =[3]!XLSTAT_PDFNormal(C173,-0.0569008425409715,1.06635397045581) -> 0.07521502732
A174: 174 | C174: -1.960960962 | D174: =[3]!XLSTAT_PDFNormal(C174,-0.0569008425409715,1.06635397045581) -> 0.07597647799
A175: 175 | C175: -1.954954956 | D175: =[3]!XLSTAT_PDFNormal(C175,-0.0569008425409715,1.06635397045581) -> 0.07674320278
A176: 176 | C176: -1.94894895 | D176: =[3]!XLSTAT_PDFNormal(C176,-0.0569008425409715,1.06635397045581) -> 0.07751520604
A177: 177 | C177: -1.942942944 | D177: =[3]!XLSTAT_PDFNormal(C177,-0.0569008425409715,1.06635397045581) -> 0.07829249164
A178: 178 | C178: -1.936936938 | D178: =[3]!XLSTAT_PDFNormal(C178,-0.0569008425409715,1.06635397045581) -> 0.07907506298
A179: 179 | C179: -1.930930932 | D179: =[3]!XLSTAT_PDFNormal(C179,-0.0569008425409715,1.06635397045581) -> 0.079862923
A180: 180 | C180: -1.924924926 | D180: =[3]!XLSTAT_PDFNormal(C180,-0.0569008425409715,1.06635397045581) -> 0.08065607416
A181: 181 | C181: -1.91891892 | D181: =[3]!XLSTAT_PDFNormal(C181,-0.0569008425409715,1.06635397045581) -> 0.08145451844
A182: 182 | C182: -1.912912914 | D182: =[3]!XLSTAT_PDFNormal(C182,-0.0569008425409715,1.06635397045581) -> 0.08225825732
A183: 183 | C183: -1.906906908 | D183: =[3]!XLSTAT_PDFNormal(C183,-0.0569008425409715,1.06635397045581) -> 0.08306729181
A184: 184 | C184: -1.900900902 | D184: =[3]!XLSTAT_PDFNormal(C184,-0.0569008425409715,1.06635397045581) -> 0.08388162242
A185: 185 | C185: -1.894894896 | D185: =[3]!XLSTAT_PDFNormal(C185,-0.0569008425409715,1.06635397045581) -> 0.08470124913
A186: 186 | C186: -1.88888889 | D186: =[3]!XLSTAT_PDFNormal(C186,-0.0569008425409715,1.06635397045581) -> 0.08552617145
A187: 187 | C187: -1.882882884 | D187: =[3]!XLSTAT_PDFNormal(C187,-0.0569008425409715,1.06635397045581) -> 0.08635638836
A188: 188 | C188: -1.876876878 | D188: =[3]!XLSTAT_PDFNormal(C188,-0.0569008425409715,1.06635397045581) -> 0.08719189833
A189: 189 | C189: -1.870870872 | D189: =[3]!XLSTAT_PDFNormal(C189,-0.0569008425409715,1.06635397045581) -> 0.0880326993
A190: 190 | C190: -1.864864866 | D190: =[3]!XLSTAT_PDFNormal(C190,-0.0569008425409715,1.06635397045581) -> 0.0888787887
A191: 191 | C191: -1.85885886 | D191: =[3]!XLSTAT_PDFNormal(C191,-0.0569008425409715,1.06635397045581) -> 0.08973016341
A192: 192 | C192: -1.852852854 | D192: =[3]!XLSTAT_PDFNormal(C192,-0.0569008425409715,1.06635397045581) -> 0.09058681979
A193: 193 | C193: =-3+(A193-1)*0.006006006 -> -1.846846848 | D193: =[3]!XLSTAT_PDFNormal(C193,-0.0569008425409715,1.06635397045581) -> 0.09144875365
A194: 194 | C194: -1.840840842 | D194: =[3]!XLSTAT_PDFNormal(C194,-0.0569008425409715,1.06635397045581) -> 0.09231596027
A195: 195 | C195: -1.834834836 | D195: =[3]!XLSTAT_PDFNormal(C195,-0.0569008425409715,1.06635397045581) -> 0.09318843437
A196: 196 | C196: -1.82882883 | D196: =[3]!XLSTAT_PDFNormal(C196,-0.0569008425409715,1.06635397045581) -> 0.09406617011
A197: 197 | C197: -1.822822824 | D197: =[3]!XLSTAT_PDFNormal(C197,-0.0569008425409715,1.06635397045581) -> 0.0949491611
A198: 198 | C198: -1.816816818 | D198: =[3]!XLSTAT_PDFNormal(C198,-0.0569008425409715,1.06635397045581) -> 0.0958374004
A199: 199 | C199: -1.810810812 | D199: =[3]!XLSTAT_PDFNormal(C199,-0.0569008425409715,1.06635397045581) -> 0.09673088047
A200: 200 | C200: -1.804804806 | D200: =[3]!XLSTAT_PDFNormal(C200,-0.0569008425409715,1.06635397045581) -> 0.09762959324
... 800 more rows

Sheet XLSTAT_20230310_152848_1_HID (hidden)
B1: -2.462099134 | C1: 0 | D1: -3 | E1: 0
B2: -2.462099134 | C2: 0.1186645929 | D2: -3 | E2: 0
B3: -2.45940963 | C3: 0.1186645929 | D3: -2.462099134 | E3: 0
B4: -2.45940963 | C4: 0 | D4: -2.462099134 | E4: 0
B5: -2.456720126 | C5: 0 | D5: -2.462099134 | E5: 0.1186645929
B6: -2.456720126 | C6: 0.1186645929 | D6: -1.924198269 | E6: 0.1186645929
B7: -2.454030621 | C7: 0.1186645929 | D7: -1.924198269 | E7: 0
B8: -2.454030621 | C8: 0 | D8: -1.924198269 | E8: 0.0791097286
B9: -2.451341117 | C9: 0 | D9: -1.386297403 | E9: 0.0791097286
B10: -2.451341117 | C10: 0.1186645929 | D10: -1.386297403 | E10: 0
B11: -2.448651613 | C11: 0.1186645929 | D11: -1.386297403 | E11: 0.1977743215
B12: -2.448651613 | C12: 0 | D12: -0.8483965376 | E12: 0.1977743215
B13: -2.445962108 | C13: 0 | D13: -0.8483965376 | E13: 0
B14: -2.445962108 | C14: 0.1186645929 | D14: -0.8483965376 | E14: 0.3559937787
B15: -2.443272604 | C15: 0.1186645929 | D15: -0.310495672 | E15: 0.3559937787
B16: -2.443272604 | C16: 0 | D16: -0.310495672 | E16: 0
B17: -2.4405831 | C17: 0 | D17: -0.310495672 | E17: 0.4351035073
B18: -2.4405831 | C18: 0.1186645929 | D18: 0.2274051936 | E18: 0.4351035073
B19: -2.437893595 | C19: 0.1186645929 | D19: 0.2274051936 | E19: 0
B20: -2.437893595 | C20: 0 | D20: 0.2274051936 | E20: 0.2768840501
B21: -2.435204091 | C21: 0 | D21: 0.7653060592 | E21: 0.2768840501
B22: -2.435204091 | C22: 0.1186645929 | D22: 0.7653060592 | E22: 0
B23: -2.432514587 | C23: 0.1186645929 | D23: 0.7653060592 | E23: 0.1977743215
B24: -2.432514587 | C24: 0 | D24: 1.303206925 | E24: 0.1977743215
B25: -2.429825082 | C25: 0 | D25: 1.303206925 | E25: 0
B26: -2.429825082 | C26: 0.1186645929 | D26: 1.303206925 | E26: 0.0791097286
B27: -2.427135578 | C27: 0.1186645929 | D27: 1.84110779 | E27: 0.0791097286
B28: -2.427135578 | C28: 0 | D28: 1.84110779 | E28: 0
B29: -2.424446074 | C29: 0 | D29: 1.84110779 | E29: 0.1186645929
B30: -2.424446074 | C30: 0.1186645929 | D30: 2.379008656 | E30: 0.1186645929
B31: -2.421756569 | C31: 0.1186645929 | D31: 2.379008656 | E31: 0
B32: -2.421756569 | C32: 0
B33: -2.419067065 | C33: 0
B34: -2.419067065 | C34: 0.1186645929
B35: -2.416377561 | C35: 0.1186645929
B36: -2.416377561 | C36: 0
B37: -2.413688056 | C37: 0
B38: -2.413688056 | C38: 0.1186645929
B39: -2.410998552 | C39: 0.1186645929
B40: -2.410998552 | C40: 0
B41: -2.408309048 | C41: 0
B42: -2.408309048 | C42: 0.1186645929
B43: -2.405619544 | C43: 0.1186645929
B44: -2.405619544 | C44: 0
B45: -2.402930039 | C45: 0
B46: -2.402930039 | C46: 0.1186645929
B47: -2.400240535 | C47: 0.1186645929
B48: -2.400240535 | C48: 0
B49: -2.397551031 | C49: 0
B50: -2.397551031 | C50: 0.1186645929
B51: -2.394861526 | C51: 0.1186645929
B52: -2.394861526 | C52: 0
B53: -2.392172022 | C53: 0
B54: -2.392172022 | C54: 0.1186645929
B55: -2.389482518 | C55: 0.1186645929
B56: -2.389482518 | C56: 0
B57: -2.386793013 | C57: 0
B58: -2.386793013 | C58: 0.1186645929
B59: -2.384103509 | C59: 0.1186645929
B60: -2.384103509 | C60: 0
B61: -2.381414005 | C61: 0
B62: -2.381414005 | C62: 0.1186645929
B63: -2.3787245 | C63: 0.1186645929
B64: -2.3787245 | C64: 0
B65: -2.376034996 | C65: 0
B66: -2.376034996 | C66: 0.1186645929
B67: -2.373345492 | C67: 0.1186645929
B68: -2.373345492 | C68: 0
B69: -2.370655987 | C69: 0
B70: -2.370655987 | C70: 0.1186645929
B71: -2.367966483 | C71: 0.1186645929
B72: -2.367966483 | C72: 0
B73: -2.365276979 | C73: 0
B74: -2.365276979 | C74: 0.1186645929
B75: -2.362587474 | C75: 0.1186645929
B76: -2.362587474 | C76: 0
B77: -2.35989797 | C77: 0
B78: -2.35989797 | C78: 0.1186645929
B79: -2.357208466 | C79: 0.1186645929
B80: -2.357208466 | C80: 0
B81: -2.354518961 | C81: 0
B82: -2.354518961 | C82: 0.1186645929
B83: -2.351829457 | C83: 0.1186645929
B84: -2.351829457 | C84: 0
B85: -2.349139953 | C85: 0
B86: -2.349139953 | C86: 0.1186645929
B87: -2.346450448 | C87: 0.1186645929
B88: -2.346450448 | C88: 0
B89: -2.343760944 | C89: 0
B90: -2.343760944 | C90: 0.1186645929
B91: -2.34107144 | C91: 0.1186645929
B92: -2.34107144 | C92: 0
B93: -2.338381935 | C93: 0
B94: -2.338381935 | C94: 0.1186645929
B95: -2.335692431 | C95: 0.1186645929
B96: -2.335692431 | C96: 0
B97: -2.333002927 | C97: 0
B98: -2.333002927 | C98: 0.1186645929
B99: -2.330313422 | C99: 0.1186645929
B100: -2.330313422 | C100: 0
B101: -2.327623918 | C101: 0
B102: -2.327623918 | C102: 0.1186645929
B103: -2.324934414 | C103: 0.1186645929
B104: -2.324934414 | C104: 0
B105: -2.322244909 | C105: 0
B106: -2.322244909 | C106: 0.1186645929
B107: -2.319555405 | C107: 0.1186645929
B108: -2.319555405 | C108: 0
B109: -2.316865901 | C109: 0
B110: -2.316865901 | C110: 0.1186645929
B111: -2.314176396 | C111: 0.1186645929
B112: -2.314176396 | C112: 0
B113: -2.311486892 | C113: 0
B114: -2.311486892 | C114: 0.1186645929
B115: -2.308797388 | C115: 0.1186645929
B116: -2.308797388 | C116: 0
B117: -2.306107883 | C117: 0
B118: -2.306107883 | C118: 0.1186645929
B119: -2.303418379 | C119: 0.1186645929
B120: -2.303418379 | C120: 0
B121: -2.300728875 | C121: 0
B122: -2.300728875 | C122: 0.1186645929
B123: -2.29803937 | C123: 0.1186645929
B124: -2.29803937 | C124: 0
B125: -2.295349866 | C125: 0
B126: -2.295349866 | C126: 0.1186645929
B127: -2.292660362 | C127: 0.1186645929
B128: -2.292660362 | C128: 0
B129: -2.289970857 | C129: 0
B130: -2.289970857 | C130: 0.1186645929
B131: -2.287281353 | C131: 0.1186645929
B132: -2.287281353 | C132: 0
B133: -2.284591849 | C133: 0
B134: -2.284591849 | C134: 0.1186645929
B135: -2.281902344 | C135: 0.1186645929
B136: -2.281902344 | C136: 0
B137: -2.27921284 | C137: 0
B138: -2.27921284 | C138: 0.1186645929
B139: -2.276523336 | C139: 0.1186645929
B140: -2.276523336 | C140: 0
B141: -2.273833831 | C141: 0
B142: -2.273833831 | C142: 0.1186645929
B143: -2.271144327 | C143: 0.1186645929
B144: -2.271144327 | C144: 0
B145: -2.268454823 | C145: 0
B146: -2.268454823 | C146: 0.1186645929
B147: -2.265765318 | C147: 0.1186645929
B148: -2.265765318 | C148: 0
B149: -2.263075814 | C149: 0
B150: -2.263075814 | C150: 0.1186645929
B151: -2.26038631 | C151: 0.1186645929
B152: -2.26038631 | C152: 0
B153: -2.257696805 | C153: 0
B154: -2.257696805 | C154: 0.1186645929
B155: -2.255007301 | C155: 0.1186645929
B156: -2.255007301 | C156: 0
B157: -2.252317797 | C157: 0
B158: -2.252317797 | C158: 0.1186645929
B159: -2.249628292 | C159: 0.1186645929
B160: -2.249628292 | C160: 0
B161: -2.246938788 | C161: 0
B162: -2.246938788 | C162: 0.1186645929
B163: -2.244249284 | C163: 0.1186645929
B164: -2.244249284 | C164: 0
B165: -2.24155978 | C165: 0
B166: -2.24155978 | C166: 0.1186645929
B167: -2.238870275 | C167: 0.1186645929
B168: -2.238870275 | C168: 0
B169: -2.236180771 | C169: 0
B170: -2.236180771 | C170: 0.1186645929
B171: -2.233491267 | C171: 0.1186645929
B172: -2.233491267 | C172: 0
B173: -2.230801762 | C173: 0
B174: -2.230801762 | C174: 0.1186645929
B175: -2.228112258 | C175: 0.1186645929
B176: -2.228112258 | C176: 0
B177: -2.225422754 | C177: 0
B178: -2.225422754 | C178: 0.1186645929
B179: -2.222733249 | C179: 0.1186645929
B180: -2.222733249 | C180: 0
B181: -2.220043745 | C181: 0
B182: -2.220043745 | C182: 0.1186645929
B183: -2.217354241 | C183: 0.1186645929
B184: -2.217354241 | C184: 0
B185: -2.214664736 | C185: 0
B186: -2.214664736 | C186: 0.1186645929
B187: -2.211975232 | C187: 0.1186645929
B188: -2.211975232 | C188: 0
B189: -2.209285728 | C189: 0
B190: -2.209285728 | C190: 0.1186645929
B191: -2.206596223 | C191: 0.1186645929
B192: -2.206596223 | C192: 0
B193: -2.203906719 | C193: 0
B194: -2.203906719 | C194: 0.1186645929
B195: -2.201217215 | C195: 0.1186645929
B196: -2.201217215 | C196: 0
B197: -2.19852771 | C197: 0
B198: -2.19852771 | C198: 0.1186645929
B199: -2.195838206 | C199: 0.1186645929
B200: -2.195838206 | C200: 0
... 3420 more rows

Sheet XLSTAT_20230310_143404_1_HID1 (hidden)
A1: 1 | C1: =-3+(A1-1)*0.006006006 -> -3 | D1: =[3]!XLSTAT_PDFNormal(C1,-0.0569008425409715,1.06635397045581) -> 0.008296794691
A2: 2 | C2: -2.993993994 | D2: =[3]!XLSTAT_PDFNormal(C2,-0.0569008425409715,1.06635397045581) -> 0.008426641509
A3: 3 | C3: -2.987987988 | D3: =[3]!XLSTAT_PDFNormal(C3,-0.0569008425409715,1.06635397045581) -> 0.008558248966
A4: 4 | C4: -2.981981982 | D4: =[3]!XLSTAT_PDFNormal(C4,-0.0569008425409715,1.06635397045581) -> 0.008691636145
A5: 5 | C5: -2.975975976 | D5: =[3]!XLSTAT_PDFNormal(C5,-0.0569008425409715,1.06635397045581) -> 0.008826822256
A6: 6 | C6: -2.96996997 | D6: =[3]!XLSTAT_PDFNormal(C6,-0.0569008425409715,1.06635397045581) -> 0.008963826636
A7: 7 | C7: -2.963963964 | D7: =[3]!XLSTAT_PDFNormal(C7,-0.0569008425409715,1.06635397045581) -> 0.009102668747
A8: 8 | C8: -2.957957958 | D8: =[3]!XLSTAT_PDFNormal(C8,-0.0569008425409715,1.06635397045581) -> 0.009243368176
A9: 9 | C9: -2.951951952 | D9: =[3]!XLSTAT_PDFNormal(C9,-0.0569008425409715,1.06635397045581) -> 0.009385944638
A10: 10 | C10: -2.945945946 | D10: =[3]!XLSTAT_PDFNormal(C10,-0.0569008425409715,1.06635397045581) -> 0.009530417968
A11: 11 | C11: -2.93993994 | D11: =[3]!XLSTAT_PDFNormal(C11,-0.0569008425409715,1.06635397045581) -> 0.009676808128
A12: 12 | C12: -2.933933934 | D12: =[3]!XLSTAT_PDFNormal(C12,-0.0569008425409715,1.06635397045581) -> 0.009825135203
A13: 13 | C13: -2.927927928 | D13: =[3]!XLSTAT_PDFNormal(C13,-0.0569008425409715,1.06635397045581) -> 0.009975419399
A14: 14 | C14: -2.921921922 | D14: =[3]!XLSTAT_PDFNormal(C14,-0.0569008425409715,1.06635397045581) -> 0.01012768104
A15: 15 | C15: -2.915915916 | D15: =[3]!XLSTAT_PDFNormal(C15,-0.0569008425409715,1.06635397045581) -> 0.01028194059
A16: 16 | C16: -2.90990991 | D16: =[3]!XLSTAT_PDFNormal(C16,-0.0569008425409715,1.06635397045581) -> 0.0104382186
A17: 17 | C17: -2.903903904 | D17: =[3]!XLSTAT_PDFNormal(C17,-0.0569008425409715,1.06635397045581) -> 0.01059653577
A18: 18 | C18: -2.897897898 | D18: =[3]!XLSTAT_PDFNormal(C18,-0.0569008425409715,1.06635397045581) -> 0.0107569129
A19: 19 | C19: -2.891891892 | D19: =[3]!XLSTAT_PDFNormal(C19,-0.0569008425409715,1.06635397045581) -> 0.01091937092
A20: 20 | C20: -2.885885886 | D20: =[3]!XLSTAT_PDFNormal(C20,-0.0569008425409715,1.06635397045581) -> 0.01108393088
A21: 21 | C21: -2.87987988 | D21: =[3]!XLSTAT_PDFNormal(C21,-0.0569008425409715,1.06635397045581) -> 0.01125061392
A22: 22 | C22: -2.873873874 | D22: =[3]!XLSTAT_PDFNormal(C22,-0.0569008425409715,1.06635397045581) -> 0.01141944133
A23: 23 | C23: -2.867867868 | D23: =[3]!XLSTAT_PDFNormal(C23,-0.0569008425409715,1.06635397045581) -> 0.01159043449
A24: 24 | C24: -2.861861862 | D24: =[3]!XLSTAT_PDFNormal(C24,-0.0569008425409715,1.06635397045581) -> 0.0117636149
A25: 25 | C25: -2.855855856 | D25: =[3]!XLSTAT_PDFNormal(C25,-0.0569008425409715,1.06635397045581) -> 0.01193900417
A26: 26 | C26: -2.84984985 | D26: =[3]!XLSTAT_PDFNormal(C26,-0.0569008425409715,1.06635397045581) -> 0.01211662402
A27: 27 | C27: -2.843843844 | D27: =[3]!XLSTAT_PDFNormal(C27,-0.0569008425409715,1.06635397045581) -> 0.01229649629
A28: 28 | C28: -2.837837838 | D28: =[3]!XLSTAT_PDFNormal(C28,-0.0569008425409715,1.06635397045581) -> 0.01247864292
A29: 29 | C29: -2.831831832 | D29: =[3]!XLSTAT_PDFNormal(C29,-0.0569008425409715,1.06635397045581) -> 0.01266308595
A30: 30 | C30: -2.825825826 | D30: =[3]!XLSTAT_PDFNormal(C30,-0.0569008425409715,1.06635397045581) -> 0.01284984754
A31: 31 | C31: -2.81981982 | D31: =[3]!XLSTAT_PDFNormal(C31,-0.0569008425409715,1.06635397045581) -> 0.01303894995
A32: 32 | C32: -2.813813814 | D32: =[3]!XLSTAT_PDFNormal(C32,-0.0569008425409715,1.06635397045581) -> 0.01323041554
A33: 33 | C33: -2.807807808 | D33: =[3]!XLSTAT_PDFNormal(C33,-0.0569008425409715,1.06635397045581) -> 0.01342426678
A34: 34 | C34: -2.801801802 | D34: =[3]!XLSTAT_PDFNormal(C34,-0.0569008425409715,1.06635397045581) -> 0.01362052623
A35: 35 | C35: -2.795795796 | D35: =[3]!XLSTAT_PDFNormal(C35,-0.0569008425409715,1.06635397045581) -> 0.01381921655
A36: 36 | C36: -2.78978979 | D36: =[3]!XLSTAT_PDFNormal(C36,-0.0569008425409715,1.06635397045581) -> 0.01402036052
A37: 37 | C37: -2.783783784 | D37: =[3]!XLSTAT_PDFNormal(C37,-0.0569008425409715,1.06635397045581) -> 0.01422398098
A38: 38 | C38: -2.777777778 | D38: =[3]!XLSTAT_PDFNormal(C38,-0.0569008425409715,1.06635397045581) -> 0.01443010089
A39: 39 | C39: -2.771771772 | D39: =[3]!XLSTAT_PDFNormal(C39,-0.0569008425409715,1.06635397045581) -> 0.01463874331
A40: 40 | C40: -2.765765766 | D40: =[3]!XLSTAT_PDFNormal(C40,-0.0569008425409715,1.06635397045581) -> 0.01484993136
A41: 41 | C41: -2.75975976 | D41: =[3]!XLSTAT_PDFNormal(C41,-0.0569008425409715,1.06635397045581) -> 0.01506368829
A42: 42 | C42: -2.753753754 | D42: =[3]!XLSTAT_PDFNormal(C42,-0.0569008425409715,1.06635397045581) -> 0.0152800374
A43: 43 | C43: -2.747747748 | D43: =[3]!XLSTAT_PDFNormal(C43,-0.0569008425409715,1.06635397045581) -> 0.0154990021
A44: 44 | C44: -2.741741742 | D44: =[3]!XLSTAT_PDFNormal(C44,-0.0569008425409715,1.06635397045581) -> 0.01572060589
A45: 45 | C45: -2.735735736 | D45: =[3]!XLSTAT_PDFNormal(C45,-0.0569008425409715,1.06635397045581) -> 0.01594487234
A46: 46 | C46: -2.72972973 | D46: =[3]!XLSTAT_PDFNormal(C46,-0.0569008425409715,1.06635397045581) -> 0.01617182509
A47: 47 | C47: -2.723723724 | D47: =[3]!XLSTAT_PDFNormal(C47,-0.0569008425409715,1.06635397045581) -> 0.0164014879
A48: 48 | C48: -2.717717718 | D48: =[3]!XLSTAT_PDFNormal(C48,-0.0569008425409715,1.06635397045581) -> 0.01663388456
A49: 49 | C49: -2.711711712 | D49: =[3]!XLSTAT_PDFNormal(C49,-0.0569008425409715,1.06635397045581) -> 0.01686903896
A50: 50 | C50: -2.705705706 | D50: =[3]!XLSTAT_PDFNormal(C50,-0.0569008425409715,1.06635397045581) -> 0.01710697508
A51: 51 | C51: -2.6996997 | D51: =[3]!XLSTAT_PDFNormal(C51,-0.0569008425409715,1.06635397045581) -> 0.01734771694
A52: 52 | C52: -2.693693694 | D52: =[3]!XLSTAT_PDFNormal(C52,-0.0569008425409715,1.06635397045581) -> 0.01759128864
A53: 53 | C53: -2.687687688 | D53: =[3]!XLSTAT_PDFNormal(C53,-0.0569008425409715,1.06635397045581) -> 0.01783771436
A54: 54 | C54: -2.681681682 | D54: =[3]!XLSTAT_PDFNormal(C54,-0.0569008425409715,1.06635397045581) -> 0.01808701833
A55: 55 | C55: -2.675675676 | D55: =[3]!XLSTAT_PDFNormal(C55,-0.0569008425409715,1.06635397045581) -> 0.01833922485
A56: 56 | C56: -2.66966967 | D56: =[3]!XLSTAT_PDFNormal(C56,-0.0569008425409715,1.06635397045581) -> 0.01859435829
A57: 57 | C57: -2.663663664 | D57: =[3]!XLSTAT_PDFNormal(C57,-0.0569008425409715,1.06635397045581) -> 0.01885244306
A58: 58 | C58: -2.657657658 | D58: =[3]!XLSTAT_PDFNormal(C58,-0.0569008425409715,1.06635397045581) -> 0.01911350364
A59: 59 | C59: -2.651651652 | D59: =[3]!XLSTAT_PDFNormal(C59,-0.0569008425409715,1.06635397045581) -> 0.01937756455
A60: 60 | C60: -2.645645646 | D60: =[3]!XLSTAT_PDFNormal(C60,-0.0569008425409715,1.06635397045581) -> 0.01964465039
A61: 61 | C61: -2.63963964 | D61: =[3]!XLSTAT_PDFNormal(C61,-0.0569008425409715,1.06635397045581) -> 0.01991478578
A62: 62 | C62: -2.633633634 | D62: =[3]!XLSTAT_PDFNormal(C62,-0.0569008425409715,1.06635397045581) -> 0.0201879954
A63: 63 | C63: -2.627627628 | D63: =[3]!XLSTAT_PDFNormal(C63,-0.0569008425409715,1.06635397045581) -> 0.02046430398
A64: 64 | C64: -2.621621622 | D64: =[3]!XLSTAT_PDFNormal(C64,-0.0569008425409715,1.06635397045581) -> 0.02074373627
A65: 65 | C65: =-3+(A65-1)*0.006006006 -> -2.615615616 | D65: =[3]!XLSTAT_PDFNormal(C65,-0.0569008425409715,1.06635397045581) -> 0.02102631708
A66: 66 | C66: -2.60960961 | D66: =[3]!XLSTAT_PDFNormal(C66,-0.0569008425409715,1.06635397045581) -> 0.02131207126
A67: 67 | C67: -2.603603604 | D67: =[3]!XLSTAT_PDFNormal(C67,-0.0569008425409715,1.06635397045581) -> 0.02160102367
A68: 68 | C68: -2.597597598 | D68: =[3]!XLSTAT_PDFNormal(C68,-0.0569008425409715,1.06635397045581) -> 0.02189319923
A69: 69 | C69: -2.591591592 | D69: =[3]!XLSTAT_PDFNormal(C69,-0.0569008425409715,1.06635397045581) -> 0.02218862286
A70: 70 | C70: -2.585585586 | D70: =[3]!XLSTAT_PDFNormal(C70,-0.0569008425409715,1.06635397045581) -> 0.02248731952
A71: 71 | C71: -2.57957958 | D71: =[3]!XLSTAT_PDFNormal(C71,-0.0569008425409715,1.06635397045581) -> 0.02278931421
A72: 72 | C72: -2.573573574 | D72: =[3]!XLSTAT_PDFNormal(C72,-0.0569008425409715,1.06635397045581) -> 0.02309463191
A73: 73 | C73: -2.567567568 | D73: =[3]!XLSTAT_PDFNormal(C73,-0.0569008425409715,1.06635397045581) -> 0.02340329766
A74: 74 | C74: -2.561561562 | D74: =[3]!XLSTAT_PDFNormal(C74,-0.0569008425409715,1.06635397045581) -> 0.02371533648
A75: 75 | C75: -2.555555556 | D75: =[3]!XLSTAT_PDFNormal(C75,-0.0569008425409715,1.06635397045581) -> 0.02403077342
A76: 76 | C76: -2.54954955 | D76: =[3]!XLSTAT_PDFNormal(C76,-0.0569008425409715,1.06635397045581) -> 0.02434963353
A77: 77 | C77: -2.543543544 | D77: =[3]!XLSTAT_PDFNormal(C77,-0.0569008425409715,1.06635397045581) -> 0.02467194186
A78: 78 | C78: -2.537537538 | D78: =[3]!XLSTAT_PDFNormal(C78,-0.0569008425409715,1.06635397045581) -> 0.02499772349
A79: 79 | C79: -2.531531532 | D79: =[3]!XLSTAT_PDFNormal(C79,-0.0569008425409715,1.06635397045581) -> 0.02532700346
A80: 80 | C80: -2.525525526 | D80: =[3]!XLSTAT_PDFNormal(C80,-0.0569008425409715,1.06635397045581) -> 0.02565980683
A81: 81 | C81: -2.51951952 | D81: =[3]!XLSTAT_PDFNormal(C81,-0.0569008425409715,1.06635397045581) -> 0.02599615864
A82: 82 | C82: -2.513513514 | D82: =[3]!XLSTAT_PDFNormal(C82,-0.0569008425409715,1.06635397045581) -> 0.02633608393
A83: 83 | C83: -2.507507508 | D83: =[3]!XLSTAT_PDFNormal(C83,-0.0569008425409715,1.06635397045581) -> 0.02667960771
A84: 84 | C84: -2.501501502 | D84: =[3]!XLSTAT_PDFNormal(C84,-0.0569008425409715,1.06635397045581) -> 0.027026755
A85: 85 | C85: -2.495495496 | D85: =[3]!XLSTAT_PDFNormal(C85,-0.0569008425409715,1.06635397045581) -> 0.02737755076
A86: 86 | C86: -2.48948949 | D86: =[3]!XLSTAT_PDFNormal(C86,-0.0569008425409715,1.06635397045581) -> 0.02773201995
A87: 87 | C87: -2.483483484 | D87: =[3]!XLSTAT_PDFNormal(C87,-0.0569008425409715,1.06635397045581) -> 0.02809018751
A88: 88 | C88: -2.477477478 | D88: =[3]!XLSTAT_PDFNormal(C88,-0.0569008425409715,1.06635397045581) -> 0.02845207832
A89: 89 | C89: -2.471471472 | D89: =[3]!XLSTAT_PDFNormal(C89,-0.0569008425409715,1.06635397045581) -> 0.02881771725
A90: 90 | C90: -2.465465466 | D90: =[3]!XLSTAT_PDFNormal(C90,-0.0569008425409715,1.06635397045581) -> 0.02918712912
A91: 91 | C91: -2.45945946 | D91: =[3]!XLSTAT_PDFNormal(C91,-0.0569008425409715,1.06635397045581) -> 0.0295603387
A92: 92 | C92: -2.453453454 | D92: =[3]!XLSTAT_PDFNormal(C92,-0.0569008425409715,1.06635397045581) -> 0.02993737072
A93: 93 | C93: -2.447447448 | D93: =[3]!XLSTAT_PDFNormal(C93,-0.0569008425409715,1.06635397045581) -> 0.03031824987
A94: 94 | C94: -2.441441442 | D94: =[3]!XLSTAT_PDFNormal(C94,-0.0569008425409715,1.06635397045581) -> 0.03070300077
A95: 95 | C95: -2.435435436 | D95: =[3]!XLSTAT_PDFNormal(C95,-0.0569008425409715,1.06635397045581) -> 0.03109164799
A96: 96 | C96: -2.42942943 | D96: =[3]!XLSTAT_PDFNormal(C96,-0.0569008425409715,1.06635397045581) -> 0.03148421604
A97: 97 | C97: -2.423423424 | D97: =[3]!XLSTAT_PDFNormal(C97,-0.0569008425409715,1.06635397045581) -> 0.03188072937
A98: 98 | C98: -2.417417418 | D98: =[3]!XLSTAT_PDFNormal(C98,-0.0569008425409715,1.06635397045581) -> 0.03228121233
A99: 99 | C99: -2.411411412 | D99: =[3]!XLSTAT_PDFNormal(C99,-0.0569008425409715,1.06635397045581) -> 0.03268568924
A100: 100 | C100: -2.405405406 | D100: =[3]!XLSTAT_PDFNormal(C100,-0.0569008425409715,1.06635397045581) -> 0.03309418431
A101: 101 | C101: -2.3993994 | D101: =[3]!XLSTAT_PDFNormal(C101,-0.0569008425409715,1.06635397045581) -> 0.03350672167
A102: 102 | C102: -2.393393394 | D102: =[3]!XLSTAT_PDFNormal(C102,-0.0569008425409715,1.06635397045581) -> 0.0339233254
A103: 103 | C103: -2.387387388 | D103: =[3]!XLSTAT_PDFNormal(C103,-0.0569008425409715,1.06635397045581) -> 0.03434401944
A104: 104 | C104: -2.381381382 | D104: =[3]!XLSTAT_PDFNormal(C104,-0.0569008425409715,1.06635397045581) -> 0.03476882766
A105: 105 | C105: -2.375375376 | D105: =[3]!XLSTAT_PDFNormal(C105,-0.0569008425409715,1.06635397045581) -> 0.03519777385
A106: 106 | C106: -2.36936937 | D106: =[3]!XLSTAT_PDFNormal(C106,-0.0569008425409715,1.06635397045581) -> 0.03563088166
A107: 107 | C107: -2.363363364 | D107: =[3]!XLSTAT_PDFNormal(C107,-0.0569008425409715,1.06635397045581) -> 0.03606817466
A108: 108 | C108: -2.357357358 | D108: =[3]!XLSTAT_PDFNormal(C108,-0.0569008425409715,1.06635397045581) -> 0.03650967629
A109: 109 | C109: -2.351351352 | D109: =[3]!XLSTAT_PDFNormal(C109,-0.0569008425409715,1.06635397045581) -> 0.0369554099
A110: 110 | C110: -2.345345346 | D110: =[3]!XLSTAT_PDFNormal(C110,-0.0569008425409715,1.06635397045581) -> 0.0374053987
A111: 111 | C111: -2.33933934 | D111: =[3]!XLSTAT_PDFNormal(C111,-0.0569008425409715,1.06635397045581) -> 0.03785966577
A112: 112 | C112: -2.333333334 | D112: =[3]!XLSTAT_PDFNormal(C112,-0.0569008425409715,1.06635397045581) -> 0.03831823408
A113: 113 | C113: -2.327327328 | D113: =[3]!XLSTAT_PDFNormal(C113,-0.0569008425409715,1.06635397045581) -> 0.03878112646
A114: 114 | C114: -2.321321322 | D114: =[3]!XLSTAT_PDFNormal(C114,-0.0569008425409715,1.06635397045581) -> 0.0392483656
A115: 115 | C115: -2.315315316 | D115: =[3]!XLSTAT_PDFNormal(C115,-0.0569008425409715,1.06635397045581) -> 0.03971997405
A116: 116 | C116: -2.30930931 | D116: =[3]!XLSTAT_PDFNormal(C116,-0.0569008425409715,1.06635397045581) -> 0.0401959742
A117: 117 | C117: -2.303303304 | D117: =[3]!XLSTAT_PDFNormal(C117,-0.0569008425409715,1.06635397045581) -> 0.04067638831
A118: 118 | C118: -2.297297298 | D118: =[3]!XLSTAT_PDFNormal(C118,-0.0569008425409715,1.06635397045581) -> 0.04116123847
A119: 119 | C119: -2.291291292 | D119: =[3]!XLSTAT_PDFNormal(C119,-0.0569008425409715,1.06635397045581) -> 0.04165054661
A120: 120 | C120: -2.285285286 | D120: =[3]!XLSTAT_PDFNormal(C120,-0.0569008425409715,1.06635397045581) -> 0.04214433449
A121: 121 | C121: -2.27927928 | D121: =[3]!XLSTAT_PDFNormal(C121,-0.0569008425409715,1.06635397045581) -> 0.04264262373
A122: 122 | C122: -2.273273274 | D122: =[3]!XLSTAT_PDFNormal(C122,-0.0569008425409715,1.06635397045581) -> 0.04314543572
A123: 123 | C123: -2.267267268 | D123: =[3]!XLSTAT_PDFNormal(C123,-0.0569008425409715,1.06635397045581) -> 0.04365279172
A124: 124 | C124: -2.261261262 | D124: =[3]!XLSTAT_PDFNormal(C124,-0.0569008425409715,1.06635397045581) -> 0.04416471279
A125: 125 | C125: -2.255255256 | D125: =[3]!XLSTAT_PDFNormal(C125,-0.0569008425409715,1.06635397045581) -> 0.04468121978
A126: 126 | C126: -2.24924925 | D126: =[3]!XLSTAT_PDFNormal(C126,-0.0569008425409715,1.06635397045581) -> 0.04520233337
A127: 127 | C127: -2.243243244 | D127: =[3]!XLSTAT_PDFNormal(C127,-0.0569008425409715,1.06635397045581) -> 0.04572807403
A128: 128 | C128: -2.237237238 | D128: =[3]!XLSTAT_PDFNormal(C128,-0.0569008425409715,1.06635397045581) -> 0.04625846203
A129: 129 | C129: =-3+(A129-1)*0.006006006 -> -2.231231232 | D129: =[3]!XLSTAT_PDFNormal(C129,-0.0569008425409715,1.06635397045581) -> 0.04679351743
A130: 130 | C130: -2.225225226 | D130: =[3]!XLSTAT_PDFNormal(C130,-0.0569008425409715,1.06635397045581) -> 0.04733326006
A131: 131 | C131: -2.21921922 | D131: =[3]!XLSTAT_PDFNormal(C131,-0.0569008425409715,1.06635397045581) -> 0.04787770956
A132: 132 | C132: -2.213213214 | D132: =[3]!XLSTAT_PDFNormal(C132,-0.0569008425409715,1.06635397045581) -> 0.04842688533
A133: 133 | C133: -2.207207208 | D133: =[3]!XLSTAT_PDFNormal(C133,-0.0569008425409715,1.06635397045581) -> 0.04898080653
A134: 134 | C134: -2.201201202 | D134: =[3]!XLSTAT_PDFNormal(C134,-0.0569008425409715,1.06635397045581) -> 0.04953949209
A135: 135 | C135: -2.195195196 | D135: =[3]!XLSTAT_PDFNormal(C135,-0.0569008425409715,1.06635397045581) -> 0.05010296073
A136: 136 | C136: -2.18918919 | D136: =[3]!XLSTAT_PDFNormal(C136,-0.0569008425409715,1.06635397045581) -> 0.05067123088
A137: 137 | C137: -2.183183184 | D137: =[3]!XLSTAT_PDFNormal(C137,-0.0569008425409715,1.06635397045581) -> 0.05124432075
A138: 138 | C138: -2.177177178 | D138: =[3]!XLSTAT_PDFNormal(C138,-0.0569008425409715,1.06635397045581) -> 0.05182224829
A139: 139 | C139: -2.171171172 | D139: =[3]!XLSTAT_PDFNormal(C139,-0.0569008425409715,1.06635397045581) -> 0.05240503117
A140: 140 | C140: -2.165165166 | D140: =[3]!XLSTAT_PDFNormal(C140,-0.0569008425409715,1.06635397045581) -> 0.05299268683
A141: 141 | C141: -2.15915916 | D141: =[3]!XLSTAT_PDFNormal(C141,-0.0569008425409715,1.06635397045581) -> 0.0535852324
A142: 142 | C142: -2.153153154 | D142: =[3]!XLSTAT_PDFNormal(C142,-0.0569008425409715,1.06635397045581) -> 0.05418268477
A143: 143 | C143: -2.147147148 | D143: =[3]!XLSTAT_PDFNormal(C143,-0.0569008425409715,1.06635397045581) -> 0.05478506052
A144: 144 | C144: -2.141141142 | D144: =[3]!XLSTAT_PDFNormal(C144,-0.0569008425409715,1.06635397045581) -> 0.05539237597
A145: 145 | C145: -2.135135136 | D145: =[3]!XLSTAT_PDFNormal(C145,-0.0569008425409715,1.06635397045581) -> 0.05600464712
A146: 146 | C146: -2.12912913 | D146: =[3]!XLSTAT_PDFNormal(C146,-0.0569008425409715,1.06635397045581) -> 0.0566218897
A147: 147 | C147: -2.123123124 | D147: =[3]!XLSTAT_PDFNormal(C147,-0.0569008425409715,1.06635397045581) -> 0.05724411911
A148: 148 | C148: -2.117117118 | D148: =[3]!XLSTAT_PDFNormal(C148,-0.0569008425409715,1.06635397045581) -> 0.05787135047
A149: 149 | C149: -2.111111112 | D149: =[3]!XLSTAT_PDFNormal(C149,-0.0569008425409715,1.06635397045581) -> 0.05850359857
A150: 150 | C150: -2.105105106 | D150: =[3]!XLSTAT_PDFNormal(C150,-0.0569008425409715,1.06635397045581) -> 0.05914087789
A151: 151 | C151: -2.0990991 | D151: =[3]!XLSTAT_PDFNormal(C151,-0.0569008425409715,1.06635397045581) -> 0.05978320258
A152: 152 | C152: -2.093093094 | D152: =[3]!XLSTAT_PDFNormal(C152,-0.0569008425409715,1.06635397045581) -> 0.06043058647
A153: 153 | C153: -2.087087088 | D153: =[3]!XLSTAT_PDFNormal(C153,-0.0569008425409715,1.06635397045581) -> 0.06108304304
A154: 154 | C154: -2.081081082 | D154: =[3]!XLSTAT_PDFNormal(C154,-0.0569008425409715,1.06635397045581) -> 0.06174058544
A155: 155 | C155: -2.075075076 | D155: =[3]!XLSTAT_PDFNormal(C155,-0.0569008425409715,1.06635397045581) -> 0.06240322649
A156: 156 | C156: -2.06906907 | D156: =[3]!XLSTAT_PDFNormal(C156,-0.0569008425409715,1.06635397045581) -> 0.06307097864
A157: 157 | C157: -2.063063064 | D157: =[3]!XLSTAT_PDFNormal(C157,-0.0569008425409715,1.06635397045581) -> 0.06374385398
A158: 158 | C158: -2.057057058 | D158: =[3]!XLSTAT_PDFNormal(C158,-0.0569008425409715,1.06635397045581) -> 0.06442186426
A159: 159 | C159: -2.051051052 | D159: =[3]!XLSTAT_PDFNormal(C159,-0.0569008425409715,1.06635397045581) -> 0.06510502086
A160: 160 | C160: -2.045045046 | D160: =[3]!XLSTAT_PDFNormal(C160,-0.0569008425409715,1.06635397045581) -> 0.06579333476
A161: 161 | C161: -2.03903904 | D161: =[3]!XLSTAT_PDFNormal(C161,-0.0569008425409715,1.06635397045581) -> 0.0664868166
A162: 162 | C162: -2.033033034 | D162: =[3]!XLSTAT_PDFNormal(C162,-0.0569008425409715,1.06635397045581) -> 0.06718547662
A163: 163 | C163: -2.027027028 | D163: =[3]!XLSTAT_PDFNormal(C163,-0.0569008425409715,1.06635397045581) -> 0.06788932467
A164: 164 | C164: -2.021021022 | D164: =[3]!XLSTAT_PDFNormal(C164,-0.0569008425409715,1.06635397045581) -> 0.06859837022
A165: 165 | C165: -2.015015016 | D165: =[3]!XLSTAT_PDFNormal(C165,-0.0569008425409715,1.06635397045581) -> 0.06931262232
A166: 166 | C166: -2.00900901 | D166: =[3]!XLSTAT_PDFNormal(C166,-0.0569008425409715,1.06635397045581) -> 0.07003208965
A167: 167 | C167: -2.003003004 | D167: =[3]!XLSTAT_PDFNormal(C167,-0.0569008425409715,1.06635397045581) -> 0.07075678045
A168: 168 | C168: -1.996996998 | D168: =[3]!XLSTAT_PDFNormal(C168,-0.0569008425409715,1.06635397045581) -> 0.07148670255
A169: 169 | C169: -1.990990992 | D169: =[3]!XLSTAT_PDFNormal(C169,-0.0569008425409715,1.06635397045581) -> 0.07222186338
A170: 170 | C170: -1.984984986 | D170: =[3]!XLSTAT_PDFNormal(C170,-0.0569008425409715,1.06635397045581) -> 0.07296226992
A171: 171 | C171: -1.97897898 | D171: =[3]!XLSTAT_PDFNormal(C171,-0.0569008425409715,1.06635397045581) -> 0.07370792875
A172: 172 | C172: -1.972972974 | D172: =[3]!XLSTAT_PDFNormal(C172,-0.0569008425409715,1.06635397045581) -> 0.07445884599
A173: 173 | C173: -1.966966968 | D173: =[3]!XLSTAT_PDFNormal(C173,-0.0569008425409715,1.06635397045581) -> 0.07521502732
A174: 174 | C174: -1.960960962 | D174: =[3]!XLSTAT_PDFNormal(C174,-0.0569008425409715,1.06635397045581) -> 0.07597647799
A175: 175 | C175: -1.954954956 | D175: =[3]!XLSTAT_PDFNormal(C175,-0.0569008425409715,1.06635397045581) -> 0.07674320278
A176: 176 | C176: -1.94894895 | D176: =[3]!XLSTAT_PDFNormal(C176,-0.0569008425409715,1.06635397045581) -> 0.07751520604
A177: 177 | C177: -1.942942944 | D177: =[3]!XLSTAT_PDFNormal(C177,-0.0569008425409715,1.06635397045581) -> 0.07829249164
A178: 178 | C178: -1.936936938 | D178: =[3]!XLSTAT_PDFNormal(C178,-0.0569008425409715,1.06635397045581) -> 0.07907506298
A179: 179 | C179: -1.930930932 | D179: =[3]!XLSTAT_PDFNormal(C179,-0.0569008425409715,1.06635397045581) -> 0.079862923
A180: 180 | C180: -1.924924926 | D180: =[3]!XLSTAT_PDFNormal(C180,-0.0569008425409715,1.06635397045581) -> 0.08065607416
A181: 181 | C181: -1.91891892 | D181: =[3]!XLSTAT_PDFNormal(C181,-0.0569008425409715,1.06635397045581) -> 0.08145451844
A182: 182 | C182: -1.912912914 | D182: =[3]!XLSTAT_PDFNormal(C182,-0.0569008425409715,1.06635397045581) -> 0.08225825732
A183: 183 | C183: -1.906906908 | D183: =[3]!XLSTAT_PDFNormal(C183,-0.0569008425409715,1.06635397045581) -> 0.08306729181
A184: 184 | C184: -1.900900902 | D184: =[3]!XLSTAT_PDFNormal(C184,-0.0569008425409715,1.06635397045581) -> 0.08388162242
A185: 185 | C185: -1.894894896 | D185: =[3]!XLSTAT_PDFNormal(C185,-0.0569008425409715,1.06635397045581) -> 0.08470124913
A186: 186 | C186: -1.88888889 | D186: =[3]!XLSTAT_PDFNormal(C186,-0.0569008425409715,1.06635397045581) -> 0.08552617145
A187: 187 | C187: -1.882882884 | D187: =[3]!XLSTAT_PDFNormal(C187,-0.0569008425409715,1.06635397045581) -> 0.08635638836
A188: 188 | C188: -1.876876878 | D188: =[3]!XLSTAT_PDFNormal(C188,-0.0569008425409715,1.06635397045581) -> 0.08719189833
A189: 189 | C189: -1.870870872 | D189: =[3]!XLSTAT_PDFNormal(C189,-0.0569008425409715,1.06635397045581) -> 0.0880326993
A190: 190 | C190: -1.864864866 | D190: =[3]!XLSTAT_PDFNormal(C190,-0.0569008425409715,1.06635397045581) -> 0.0888787887
A191: 191 | C191: -1.85885886 | D191: =[3]!XLSTAT_PDFNormal(C191,-0.0569008425409715,1.06635397045581) -> 0.08973016341
A192: 192 | C192: -1.852852854 | D192: =[3]!XLSTAT_PDFNormal(C192,-0.0569008425409715,1.06635397045581) -> 0.09058681979
A193: 193 | C193: =-3+(A193-1)*0.006006006 -> -1.846846848 | D193: =[3]!XLSTAT_PDFNormal(C193,-0.0569008425409715,1.06635397045581) -> 0.09144875365
A194: 194 | C194: -1.840840842 | D194: =[3]!XLSTAT_PDFNormal(C194,-0.0569008425409715,1.06635397045581) -> 0.09231596027
A195: 195 | C195: -1.834834836 | D195: =[3]!XLSTAT_PDFNormal(C195,-0.0569008425409715,1.06635397045581) -> 0.09318843437
A196: 196 | C196: -1.82882883 | D196: =[3]!XLSTAT_PDFNormal(C196,-0.0569008425409715,1.06635397045581) -> 0.09406617011
A197: 197 | C197: -1.822822824 | D197: =[3]!XLSTAT_PDFNormal(C197,-0.0569008425409715,1.06635397045581) -> 0.0949491611
A198: 198 | C198: -1.816816818 | D198: =[3]!XLSTAT_PDFNormal(C198,-0.0569008425409715,1.06635397045581) -> 0.0958374004
A199: 199 | C199: -1.810810812 | D199: =[3]!XLSTAT_PDFNormal(C199,-0.0569008425409715,1.06635397045581) -> 0.09673088047
A200: 200 | C200: -1.804804806 | D200: =[3]!XLSTAT_PDFNormal(C200,-0.0569008425409715,1.06635397045581) -> 0.09762959324
... 800 more rows

Sheet XLSTAT_20230310_143404_1_HID (hidden)
B1: -2.462099134 | C1: 0 | D1: -3 | E1: 0
B2: -2.462099134 | C2: 0.1186645929 | D2: -3 | E2: 0
B3: -2.45940963 | C3: 0.1186645929 | D3: -2.462099134 | E3: 0
B4: -2.45940963 | C4: 0 | D4: -2.462099134 | E4: 0
B5: -2.456720126 | C5: 0 | D5: -2.462099134 | E5: 0.1186645929
B6: -2.456720126 | C6: 0.1186645929 | D6: -1.924198269 | E6: 0.1186645929
B7: -2.454030621 | C7: 0.1186645929 | D7: -1.924198269 | E7: 0
B8: -2.454030621 | C8: 0 | D8: -1.924198269 | E8: 0.0791097286
B9: -2.451341117 | C9: 0 | D9: -1.386297403 | E9: 0.0791097286
B10: -2.451341117 | C10: 0.1186645929 | D10: -1.386297403 | E10: 0
B11: -2.448651613 | C11: 0.1186645929 | D11: -1.386297403 | E11: 0.1977743215
B12: -2.448651613 | C12: 0 | D12: -0.8483965376 | E12: 0.1977743215
B13: -2.445962108 | C13: 0 | D13: -0.8483965376 | E13: 0
B14: -2.445962108 | C14: 0.1186645929 | D14: -0.8483965376 | E14: 0.3559937787
B15: -2.443272604 | C15: 0.1186645929 | D15: -0.310495672 | E15: 0.3559937787
B16: -2.443272604 | C16: 0 | D16: -0.310495672 | E16: 0
B17: -2.4405831 | C17: 0 | D17: -0.310495672 | E17: 0.4351035073
B18: -2.4405831 | C18: 0.1186645929 | D18: 0.2274051936 | E18: 0.4351035073
B19: -2.437893595 | C19: 0.1186645929 | D19: 0.2274051936 | E19: 0
B20: -2.437893595 | C20: 0 | D20: 0.2274051936 | E20: 0.2768840501
B21: -2.435204091 | C21: 0 | D21: 0.7653060592 | E21: 0.2768840501
B22: -2.435204091 | C22: 0.1186645929 | D22: 0.7653060592 | E22: 0
B23: -2.432514587 | C23: 0.1186645929 | D23: 0.7653060592 | E23: 0.1977743215
B24: -2.432514587 | C24: 0 | D24: 1.303206925 | E24: 0.1977743215
B25: -2.429825082 | C25: 0 | D25: 1.303206925 | E25: 0
B26: -2.429825082 | C26: 0.1186645929 | D26: 1.303206925 | E26: 0.0791097286
B27: -2.427135578 | C27: 0.1186645929 | D27: 1.84110779 | E27: 0.0791097286
B28: -2.427135578 | C28: 0 | D28: 1.84110779 | E28: 0
B29: -2.424446074 | C29: 0 | D29: 1.84110779 | E29: 0.1186645929
B30: -2.424446074 | C30: 0.1186645929 | D30: 2.379008656 | E30: 0.1186645929
B31: -2.421756569 | C31: 0.1186645929 | D31: 2.379008656 | E31: 0
B32: -2.421756569 | C32: 0
B33: -2.419067065 | C33: 0
B34: -2.419067065 | C34: 0.1186645929
B35: -2.416377561 | C35: 0.1186645929
B36: -2.416377561 | C36: 0
B37: -2.413688056 | C37: 0
B38: -2.413688056 | C38: 0.1186645929
B39: -2.410998552 | C39: 0.1186645929
B40: -2.410998552 | C40: 0
B41: -2.408309048 | C41: 0
B42: -2.408309048 | C42: 0.1186645929
B43: -2.405619544 | C43: 0.1186645929
B44: -2.405619544 | C44: 0
B45: -2.402930039 | C45: 0
B46: -2.402930039 | C46: 0.1186645929
B47: -2.400240535 | C47: 0.1186645929
B48: -2.400240535 | C48: 0
B49: -2.397551031 | C49: 0
B50: -2.397551031 | C50: 0.1186645929
B51: -2.394861526 | C51: 0.1186645929
B52: -2.394861526 | C52: 0
B53: -2.392172022 | C53: 0
B54: -2.392172022 | C54: 0.1186645929
B55: -2.389482518 | C55: 0.1186645929
B56: -2.389482518 | C56: 0
B57: -2.386793013 | C57: 0
B58: -2.386793013 | C58: 0.1186645929
B59: -2.384103509 | C59: 0.1186645929
B60: -2.384103509 | C60: 0
B61: -2.381414005 | C61: 0
B62: -2.381414005 | C62: 0.1186645929
B63: -2.3787245 | C63: 0.1186645929
B64: -2.3787245 | C64: 0
B65: -2.376034996 | C65: 0
B66: -2.376034996 | C66: 0.1186645929
B67: -2.373345492 | C67: 0.1186645929
B68: -2.373345492 | C68: 0
B69: -2.370655987 | C69: 0
B70: -2.370655987 | C70: 0.1186645929
B71: -2.367966483 | C71: 0.1186645929
B72: -2.367966483 | C72: 0
B73: -2.365276979 | C73: 0
B74: -2.365276979 | C74: 0.1186645929
B75: -2.362587474 | C75: 0.1186645929
B76: -2.362587474 | C76: 0
B77: -2.35989797 | C77: 0
B78: -2.35989797 | C78: 0.1186645929
B79: -2.357208466 | C79: 0.1186645929
B80: -2.357208466 | C80: 0
B81: -2.354518961 | C81: 0
B82: -2.354518961 | C82: 0.1186645929
B83: -2.351829457 | C83: 0.1186645929
B84: -2.351829457 | C84: 0
B85: -2.349139953 | C85: 0
B86: -2.349139953 | C86: 0.1186645929
B87: -2.346450448 | C87: 0.1186645929
B88: -2.346450448 | C88: 0
B89: -2.343760944 | C89: 0
B90: -2.343760944 | C90: 0.1186645929
B91: -2.34107144 | C91: 0.1186645929
B92: -2.34107144 | C92: 0
B93: -2.338381935 | C93: 0
B94: -2.338381935 | C94: 0.1186645929
B95: -2.335692431 | C95: 0.1186645929
B96: -2.335692431 | C96: 0
B97: -2.333002927 | C97: 0
B98: -2.333002927 | C98: 0.1186645929
B99: -2.330313422 | C99: 0.1186645929
B100: -2.330313422 | C100: 0
B101: -2.327623918 | C101: 0
B102: -2.327623918 | C102: 0.1186645929
B103: -2.324934414 | C103: 0.1186645929
B104: -2.324934414 | C104: 0
B105: -2.322244909 | C105: 0
B106: -2.322244909 | C106: 0.1186645929
B107: -2.319555405 | C107: 0.1186645929
B108: -2.319555405 | C108: 0
B109: -2.316865901 | C109: 0
B110: -2.316865901 | C110: 0.1186645929
B111: -2.314176396 | C111: 0.1186645929
B112: -2.314176396 | C112: 0
B113: -2.311486892 | C113: 0
B114: -2.311486892 | C114: 0.1186645929
B115: -2.308797388 | C115: 0.1186645929
B116: -2.308797388 | C116: 0
B117: -2.306107883 | C117: 0
B118: -2.306107883 | C118: 0.1186645929
B119: -2.303418379 | C119: 0.1186645929
B120: -2.303418379 | C120: 0
B121: -2.300728875 | C121: 0
B122: -2.300728875 | C122: 0.1186645929
B123: -2.29803937 | C123: 0.1186645929
B124: -2.29803937 | C124: 0
B125: -2.295349866 | C125: 0
B126: -2.295349866 | C126: 0.1186645929
B127: -2.292660362 | C127: 0.1186645929
B128: -2.292660362 | C128: 0
B129: -2.289970857 | C129: 0
B130: -2.289970857 | C130: 0.1186645929
B131: -2.287281353 | C131: 0.1186645929
B132: -2.287281353 | C132: 0
B133: -2.284591849 | C133: 0
B134: -2.284591849 | C134: 0.1186645929
B135: -2.281902344 | C135: 0.1186645929
B136: -2.281902344 | C136: 0
B137: -2.27921284 | C137: 0
B138: -2.27921284 | C138: 0.1186645929
B139: -2.276523336 | C139: 0.1186645929
B140: -2.276523336 | C140: 0
B141: -2.273833831 | C141: 0
B142: -2.273833831 | C142: 0.1186645929
B143: -2.271144327 | C143: 0.1186645929
B144: -2.271144327 | C144: 0
B145: -2.268454823 | C145: 0
B146: -2.268454823 | C146: 0.1186645929
B147: -2.265765318 | C147: 0.1186645929
B148: -2.265765318 | C148: 0
B149: -2.263075814 | C149: 0
B150: -2.263075814 | C150: 0.1186645929
B151: -2.26038631 | C151: 0.1186645929
B152: -2.26038631 | C152: 0
B153: -2.257696805 | C153: 0
B154: -2.257696805 | C154: 0.1186645929
B155: -2.255007301 | C155: 0.1186645929
B156: -2.255007301 | C156: 0
B157: -2.252317797 | C157: 0
B158: -2.252317797 | C158: 0.1186645929
B159: -2.249628292 | C159: 0.1186645929
B160: -2.249628292 | C160: 0
B161: -2.246938788 | C161: 0
B162: -2.246938788 | C162: 0.1186645929
B163: -2.244249284 | C163: 0.1186645929
B164: -2.244249284 | C164: 0
B165: -2.24155978 | C165: 0
B166: -2.24155978 | C166: 0.1186645929
B167: -2.238870275 | C167: 0.1186645929
B168: -2.238870275 | C168: 0
B169: -2.236180771 | C169: 0
B170: -2.236180771 | C170: 0.1186645929
B171: -2.233491267 | C171: 0.1186645929
B172: -2.233491267 | C172: 0
B173: -2.230801762 | C173: 0
B174: -2.230801762 | C174: 0.1186645929
B175: -2.228112258 | C175: 0.1186645929
B176: -2.228112258 | C176: 0
B177: -2.225422754 | C177: 0
B178: -2.225422754 | C178: 0.1186645929
B179: -2.222733249 | C179: 0.1186645929
B180: -2.222733249 | C180: 0
B181: -2.220043745 | C181: 0
B182: -2.220043745 | C182: 0.1186645929
B183: -2.217354241 | C183: 0.1186645929
B184: -2.217354241 | C184: 0
B185: -2.214664736 | C185: 0
B186: -2.214664736 | C186: 0.1186645929
B187: -2.211975232 | C187: 0.1186645929
B188: -2.211975232 | C188: 0
B189: -2.209285728 | C189: 0
B190: -2.209285728 | C190: 0.1186645929
B191: -2.206596223 | C191: 0.1186645929
B192: -2.206596223 | C192: 0
B193: -2.203906719 | C193: 0
B194: -2.203906719 | C194: 0.1186645929
B195: -2.201217215 | C195: 0.1186645929
B196: -2.201217215 | C196: 0
B197: -2.19852771 | C197: 0
B198: -2.19852771 | C198: 0.1186645929
B199: -2.195838206 | C199: 0.1186645929
B200: -2.195838206 | C200: 0
... 3420 more rows

Sheet Histogramme_HID (hidden)
A1: 0 | B1: 0 | C1: 0 | D1: 0
A2: 0 | B2: 1.067940128 | C2: 0 | D2: 1.067940128
A3: 0.00246572067 | B3: 1.067940128 | C3: 0.4980755753 | D3: 1.067940128
A4: 0.00246572067 | B4: 0 | C4: 0.4980755753 | D4: 0
A5: 0.004931441339 | B5: 0 | C5: 0.4980755753 | D5: 0.2563056307
A6: 0.004931441339 | B6: 1.067940128 | C6: 0.9961511505 | D6: 0.2563056307
A7: 0.007397162009 | B7: 1.067940128 | C7: 0.9961511505 | D7: 0
A8: 0.007397162009 | B8: 0 | C8: 0.9961511505 | D8: 0.2135880256
A9: 0.009862882678 | B9: 0 | C9: 1.494226726 | D9: 0.2135880256
A10: 0.009862882678 | B10: 1.067940128 | C10: 1.494226726 | D10: 0
A11: 0.01232860335 | B11: 1.067940128 | C11: 1.494226726 | D11: 0.2135880256
A12: 0.01232860335 | B12: 0 | C12: 1.992302301 | D12: 0.2135880256
A13: 0.01479432402 | B13: 0 | C13: 1.992302301 | D13: 0
A14: 0.01479432402 | B14: 1.067940128 | C14: 1.992302301 | D14: 0.04271760512
A15: 0.01726004469 | B15: 1.067940128 | C15: 2.490377876 | D15: 0.04271760512
A16: 0.01726004469 | B16: 0 | C16: 2.490377876 | D16: 0
A17: 0.01972576536 | B17: 0 | C17: 2.490377876 | D17: 0
A18: 0.01972576536 | B18: 1.067940128 | C18: 2.988453452 | D18: 0
A19: 0.02219148603 | B19: 1.067940128 | C19: 2.988453452 | D19: 0
A20: 0.02219148603 | B20: 0 | C20: 2.988453452 | D20: 0
A21: 0.0246572067 | B21: 0 | C21: 3.486529027 | D21: 0
A22: 0.0246572067 | B22: 1.067940128 | C22: 3.486529027 | D22: 0
A23: 0.02712292737 | B23: 1.067940128 | C23: 3.486529027 | D23: 0.08543521024
A24: 0.02712292737 | B24: 0 | C24: 3.984604602 | D24: 0.08543521024
A25: 0.02958864804 | B25: 0 | C25: 3.984604602 | D25: 0
A26: 0.02958864804 | B26: 1.067940128 | C26: 3.984604602 | D26: 0.08543521024
A27: 0.0320543687 | B27: 1.067940128 | C27: 4.482680177 | D27: 0.08543521024
A28: 0.0320543687 | B28: 0 | C28: 4.482680177 | D28: 0
A29: 0.03452008937 | B29: 0 | C29: 4.482680177 | D29: 0.04271760512
A30: 0.03452008937 | B30: 1.067940128 | C30: 4.980755753 | D30: 0.04271760512
A31: 0.03698581004 | B31: 1.067940128 | C31: 4.980755753 | D31: 0
A32: 0.03698581004 | B32: 0
A33: 0.03945153071 | B33: 0
A34: 0.03945153071 | B34: 1.067940128
A35: 0.04191725138 | B35: 1.067940128
A36: 0.04191725138 | B36: 0
A37: 0.04438297205 | B37: 0
A38: 0.04438297205 | B38: 1.067940128
A39: 0.04684869272 | B39: 1.067940128
A40: 0.04684869272 | B40: 0
A41: 0.04931441339 | B41: 0
A42: 0.04931441339 | B42: 1.067940128
A43: 0.05178013406 | B43: 1.067940128
A44: 0.05178013406 | B44: 0
A45: 0.05424585473 | B45: 0
A46: 0.05424585473 | B46: 1.067940128
A47: 0.0567115754 | B47: 1.067940128
A48: 0.0567115754 | B48: 0
A49: 0.05917729607 | B49: 0
A50: 0.05917729607 | B50: 1.067940128
A51: 0.06164301674 | B51: 1.067940128
A52: 0.06164301674 | B52: 0
A53: 0.06410873741 | B53: 0
A54: 0.06410873741 | B54: 1.067940128
A55: 0.06657445808 | B55: 1.067940128
A56: 0.06657445808 | B56: 0
A57: 0.06904017875 | B57: 0
A58: 0.06904017875 | B58: 1.067940128
A59: 0.07150589942 | B59: 1.067940128
A60: 0.07150589942 | B60: 0
A61: 0.07397162009 | B61: 0
A62: 0.07397162009 | B62: 1.067940128
A63: 0.07643734076 | B63: 1.067940128
A64: 0.07643734076 | B64: 0
A65: 0.07890306143 | B65: 0
A66: 0.07890306143 | B66: 1.067940128
A67: 0.0813687821 | B67: 1.067940128
A68: 0.0813687821 | B68: 0
A69: 0.08383450277 | B69: 0
A70: 0.08383450277 | B70: 1.067940128
A71: 0.08630022344 | B71: 1.067940128
A72: 0.08630022344 | B72: 0
A73: 0.08876594411 | B73: 0
A74: 0.08876594411 | B74: 1.067940128
A75: 0.09123166478 | B75: 1.067940128
A76: 0.09123166478 | B76: 0
A77: 0.09369738545 | B77: 0
A78: 0.09369738545 | B78: 1.067940128
A79: 0.09616310611 | B79: 1.067940128
A80: 0.09616310611 | B80: 0
A81: 0.09862882678 | B81: 0
A82: 0.09862882678 | B82: 1.067940128
A83: 0.1010945475 | B83: 1.067940128
A84: 0.1010945475 | B84: 0
A85: 0.1035602681 | B85: 0
A86: 0.1035602681 | B86: 1.067940128
A87: 0.1060259888 | B87: 1.067940128
A88: 0.1060259888 | B88: 0
A89: 0.1084917095 | B89: 0
A90: 0.1084917095 | B90: 1.067940128
A91: 0.1109574301 | B91: 1.067940128
A92: 0.1109574301 | B92: 0
A93: 0.1134231508 | B93: 0
A94: 0.1134231508 | B94: 1.067940128
A95: 0.1158888715 | B95: 1.067940128
A96: 0.1158888715 | B96: 0
A97: 0.1183545921 | B97: 0
A98: 0.1183545921 | B98: 1.067940128
A99: 0.1208203128 | B99: 1.067940128
A100: 0.1208203128 | B100: 0
A101: 0.1232860335 | B101: 0
A102: 0.1232860335 | B102: 1.067940128
A103: 0.1257517542 | B103: 1.067940128
A104: 0.1257517542 | B104: 0
A105: 0.1282174748 | B105: 0
A106: 0.1282174748 | B106: 1.067940128
A107: 0.1306831955 | B107: 1.067940128
A108: 0.1306831955 | B108: 0
A109: 0.1331489162 | B109: 0
A110: 0.1331489162 | B110: 1.067940128
A111: 0.1356146368 | B111: 1.067940128
A112: 0.1356146368 | B112: 0
A113: 0.1380803575 | B113: 0
A114: 0.1380803575 | B114: 1.067940128
A115: 0.1405460782 | B115: 1.067940128
A116: 0.1405460782 | B116: 0
A117: 0.1430117988 | B117: 0
A118: 0.1430117988 | B118: 1.067940128
A119: 0.1454775195 | B119: 1.067940128
A120: 0.1454775195 | B120: 0
A121: 0.1479432402 | B121: 0
A122: 0.1479432402 | B122: 1.067940128
A123: 0.1504089608 | B123: 1.067940128
A124: 0.1504089608 | B124: 0
A125: 0.1528746815 | B125: 0
A126: 0.1528746815 | B126: 1.067940128
A127: 0.1553404022 | B127: 1.067940128
A128: 0.1553404022 | B128: 0
A129: 0.1578061229 | B129: 0
A130: 0.1578061229 | B130: 1.067940128
A131: 0.1602718435 | B131: 1.067940128
A132: 0.1602718435 | B132: 0
A133: 0.1627375642 | B133: 0
A134: 0.1627375642 | B134: 1.067940128
A135: 0.1652032849 | B135: 1.067940128
A136: 0.1652032849 | B136: 0
A137: 0.1676690055 | B137: 0
A138: 0.1676690055 | B138: 1.067940128
A139: 0.1701347262 | B139: 1.067940128
A140: 0.1701347262 | B140: 0
A141: 0.1726004469 | B141: 0
A142: 0.1726004469 | B142: 1.067940128
A143: 0.1750661675 | B143: 1.067940128
A144: 0.1750661675 | B144: 0
A145: 0.1775318882 | B145: 0
A146: 0.1775318882 | B146: 1.067940128
A147: 0.1799976089 | B147: 1.067940128
A148: 0.1799976089 | B148: 0
A149: 0.1824633296 | B149: 0
A150: 0.1824633296 | B150: 1.067940128
A151: 0.1849290502 | B151: 1.067940128
A152: 0.1849290502 | B152: 0
A153: 0.1873947709 | B153: 0
A154: 0.1873947709 | B154: 1.067940128
A155: 0.1898604916 | B155: 1.067940128
A156: 0.1898604916 | B156: 0
A157: 0.1923262122 | B157: 0
A158: 0.1923262122 | B158: 1.067940128
A159: 0.1947919329 | B159: 1.067940128
A160: 0.1947919329 | B160: 0
A161: 0.1972576536 | B161: 0
A162: 0.1972576536 | B162: 1.067940128
A163: 0.1997233742 | B163: 1.067940128
A164: 0.1997233742 | B164: 0
A165: 0.2021890949 | B165: 0
A166: 0.2021890949 | B166: 1.067940128
A167: 0.2046548156 | B167: 1.067940128
A168: 0.2046548156 | B168: 0
A169: 0.2071205362 | B169: 0
A170: 0.2071205362 | B170: 1.067940128
A171: 0.2095862569 | B171: 1.067940128
A172: 0.2095862569 | B172: 0
A173: 0.2120519776 | B173: 0
A174: 0.2120519776 | B174: 1.067940128
A175: 0.2145176983 | B175: 1.067940128
A176: 0.2145176983 | B176: 0
A177: 0.2169834189 | B177: 0
A178: 0.2169834189 | B178: 1.067940128
A179: 0.2194491396 | B179: 1.067940128
A180: 0.2194491396 | B180: 0
A181: 0.2219148603 | B181: 0
A182: 0.2219148603 | B182: 1.067940128
A183: 0.2243805809 | B183: 1.067940128
A184: 0.2243805809 | B184: 0
A185: 0.2268463016 | B185: 0
A186: 0.2268463016 | B186: 1.067940128
A187: 0.2293120223 | B187: 1.067940128
A188: 0.2293120223 | B188: 0
A189: 0.2317777429 | B189: 0
A190: 0.2317777429 | B190: 1.067940128
A191: 0.2342434636 | B191: 1.067940128
A192: 0.2342434636 | B192: 0
A193: 0.2367091843 | B193: 0
A194: 0.2367091843 | B194: 1.067940128
A195: 0.239174905 | B195: 1.067940128
A196: 0.239174905 | B196: 0
A197: 0.2416406256 | B197: 0
A198: 0.2416406256 | B198: 1.067940128
A199: 0.2441063463 | B199: 1.067940128
A200: 0.2441063463 | B200: 0
... 3016 more rows

Sheet NORM_HID (hidden)
A1: 0.01694915254 | B1: 0.05478822987
A2: 0.03389830508 | B2: 0.05512533988
A3: 0.05084745763 | B3: 0.05844742001
A4: 0.06779661017 | B4: 0.05887970809
A5: 0.08474576271 | B5: 0.07065343182
A6: 0.1016949153 | B6: 0.07376666387
A7: 0.1186440678 | B7: 0.08987710774
A8: 0.1355932203 | B8: 0.1181978764
A9: 0.1525423729 | B9: 0.1257845349
A10: 0.1694915254 | B10: 0.1347356507
A11: 0.186440678 | B11: 0.1351467926
A12: 0.2033898305 | B12: 0.1503344799
A13: 0.2203389831 | B13: 0.1561254496
A14: 0.2372881356 | B14: 0.157229304
A15: 0.2542372881 | B15: 0.1627092157
A16: 0.2711864407 | B16: 0.1736913142
A17: 0.2881355932 | B17: 0.1798602854
A18: 0.3050847458 | B18: 0.2079190553
A19: 0.3220338983 | B19: 0.2169120875
A20: 0.3389830508 | B20: 0.2235013313
A21: 0.3559322034 | B21: 0.3311002499
A22: 0.3728813559 | B22: 0.3323969452
A23: 0.3898305085 | B23: 0.3999693078
A24: 0.406779661 | B24: 0.4100000303
A25: 0.4237288136 | B25: 0.4171071095
A26: 0.4406779661 | B26: 0.4394395078
A27: 0.4576271186 | B27: 0.4631352648
A28: 0.4745762712 | B28: 0.488222901
A29: 0.4915254237 | B29: 0.4968371086
A30: 0.5084745763 | B30: 0.5044382182
A31: 0.5254237288 | B31: 0.5309304997
A32: 0.5423728814 | B32: 0.5474235071
A33: 0.5593220339 | B33: 0.5489758764
A34: 0.5762711864 | B34: 0.5635603058
A35: 0.593220339 | B35: 0.5730807859
A36: 0.6101694915 | B36: 0.6315564369
A37: 0.6271186441 | B37: 0.6438403436
A38: 0.6440677966 | B38: 0.6703900386
A39: 0.6610169492 | B39: 0.6806181317
A40: 0.6779661017 | B40: 0.7144673119
A41: 0.6949152542 | B41: 0.7563733416
A42: 0.7118644068 | B42: 0.7706699453
A43: 0.7288135593 | B43: 0.7744921014
A44: 0.7457627119 | B44: 0.781048355
A45: 0.7627118644 | B45: 0.8031388318
A46: 0.7796610169 | B46: 0.8119678325
A47: 0.7966101695 | B47: 0.8380441847
A48: 0.813559322 | B48: 0.8465477419
A49: 0.8305084746 | B49: 0.8712138775
A50: 0.8474576271 | B50: 0.8712576418
A51: 0.8644067797 | B51: 0.8944155447
A52: 0.8813559322 | B52: 0.906941038
A53: 0.8983050847 | B53: 0.9113179231
A54: 0.9152542373 | B54: 0.9165761375
A55: 0.9322033898 | B55: 0.9195507436
A56: 0.9491525424 | B56: 0.9411672595
A57: 0.9661016949 | B57: 0.9488528608
A58: 0.9830508475 | B58: 0.9588388791
A59: 1 | B59: 0.9593189153

Sheet NORM_HID1 (hidden)
A1: -0.9713192324 | B1: -1.363906145
A2: -0.969535553 | B2: -1.151107247
A3: -0.952402867 | B3: -1.026219931
A4: -0.9502302071 | B4: -0.9347561062
A5: -0.8953454923 | B5: -0.8610684511
A6: -0.8820267322 | B6: -0.7985128159
A7: -0.8192119738 | B7: -0.7436137329
A8: -0.7265853352 | B8: -0.6943123247
A9: -0.7045286262 | B9: -0.6492823618
A10: -0.6796669742 | B10: -0.6076161524
A11: -0.6785527635 | B11: -0.5686631062
A12: -0.6389142574 | B12: -0.5319395728
A13: -0.6245088637 | B13: -0.4970751449
A14: -0.6218032134 | B14: -0.4637789975
A15: -0.6085526378 | B15: -0.4318178806
A16: -0.5828438265 | B16: -0.4010012166
A17: -0.5688555336 | B17: -0.371170703
A18: -0.5087186293 | B18: -0.3421928659
A19: -0.4904846404 | B19: -0.3139536047
A20: -0.4774008201 | B20: -0.2863541124
A21: -0.2870843895 | B21: -0.259307766
A22: -0.2849826582 | B22: -0.2327377156
A23: -0.1791744887 | B23: -0.206574981
A24: -0.1639502964 | B24: -0.1807569264
A25: -0.1532180931 | B25: -0.1552260139
A26: -0.1197426677 | B26: -0.1299287685
A27: -0.08453612616 | B27: -0.1048149005
A28: -0.04747040706 | B28: -0.07983654531
A29: -0.03476664983 | B29: -0.05494758864
A30: -0.02355895279 | B30: -0.03010305192
A31: 0.01554844252 | B31: -0.005258515198
A32: 0.03998639474 | B32: 0.01963044147
A33: 0.04229214811 | B33: 0.04460879667
A34: 0.06401395836 | B34: 0.06972266462
A35: 0.07826130256 | B35: 0.09501991001
A36: 0.1675273428 | B36: 0.1205508226
A37: 0.1868002119 | B37: 0.1463688772
A38: 0.2292978605 | B38: 0.1725316118
A39: 0.2460255053 | B39: 0.1991016622
A40: 0.3031156257 | B40: 0.2261480085
A41: 0.3785264024 | B41: 0.2537475009
A42: 0.405802858 | B42: 0.2819867621
A43: 0.4132542643 | B43: 0.3109645992
A44: 0.4262046343 | B44: 0.3407951128
A45: 0.4715846915 | B45: 0.3716117767
A46: 0.4905753667 | B46: 0.4035728937
A47: 0.5501508167 | B47: 0.4368690411
A48: 0.5709076982 | B48: 0.471733469
A49: 0.6358529079 | B49: 0.5084570024
A50: 0.6359754074 | B50: 0.5474100485
A51: 0.7053866615 | B51: 0.589076258
A52: 0.7476170771 | B52: 0.6341062209
A53: 0.76336059 | B53: 0.683407629
A54: 0.7830593231 | B54: 0.7383067121
A55: 0.7946191839 | B55: 0.8008623472
A56: 0.8902595529 | B56: 0.8745500023
A57: 0.9309548251 | B57: 0.9660138271
A58: 0.9918575205 | B58: 1.090901143
A59: 0.9950742714 | B59: 1.303700042

Sheet NORM1_HID (hidden)
A1: 0.01666666667 | B1: 0.0529956745
A2: 0.03333333333 | B2: 0.05332380395
A3: 0.05 | B3: 0.05655818464
A4: 0.06666666667 | B4: 0.05697916575
A5: 0.08333333333 | B5: 0.06845367331
A6: 0.1 | B6: 0.07149044969
A7: 0.1166666667 | B7: 0.08722134528
A8: 0.1333333333 | B8: 0.1149326962
A9: 0.15 | B9: 0.1223672425
A10: 0.1666666667 | B10: 0.1311444543
A11: 0.1833333333 | B11: 0.1315477493
A12: 0.2 | B12: 0.1464539129
A13: 0.2166666667 | B13: 0.1521416921
A14: 0.2333333333 | B14: 0.1532261293
A15: 0.25 | B15: 0.1586108256
A16: 0.2666666667 | B16: 0.1694078893
A17: 0.2833333333 | B17: 0.1754762194
A18: 0.3 | B18: 0.2031058182
A19: 0.3166666667 | B19: 0.2119708269
A20: 0.3333333333 | B20: 0.2184690976
A21: 0.35 | B21: 0.3248959498
A22: 0.3666666667 | B22: 0.3261819191
A23: 0.3833333333 | B23: 0.3933006733
A24: 0.4 | B24: 0.4032813879
A25: 0.4166666667 | B25: 0.4103557098
A26: 0.4333333333 | B26: 0.4325995588
A27: 0.45 | B27: 0.4562251423
A28: 0.4666666667 | B28: 0.4812651301
A29: 0.4833333333 | B29: 0.4898693057
A30: 0.5 | B30: 0.4974642563
A31: 0.5166666667 | B31: 0.5239548837
A32: 0.5333333333 | B32: 0.5404625085
A33: 0.55 | B33: 0.542016876
A34: 0.5666666667 | B34: 0.5566253386
A35: 0.5833333333 | B35: 0.5661666632
A36: 0.6 | B36: 0.6248615625
A37: 0.6166666667 | B37: 0.6372119683
A38: 0.6333333333 | B38: 0.6639305418
A39: 0.65 | B39: 0.6742330761
A40: 0.6666666667 | B40: 0.7083672084
A41: 0.6833333333 | B41: 0.7507126252
A42: 0.7 | B42: 0.7651825125
A43: 0.7166666667 | B43: 0.7690531127
A44: 0.7333333333 | B44: 0.7756945916
A45: 0.75 | B45: 0.7980926625
A46: 0.7666666667 | B46: 0.807053775
A47: 0.7833333333 | B47: 0.8335530466
A48: 0.8 | B48: 0.8422057214
A49: 0.8166666667 | B49: 0.8487184957
A50: 0.8333333333 | B50: 0.8673385073
A51: 0.85 | B51: 0.8673831473
A52: 0.8666666667 | B52: 0.8910304306
A53: 0.8833333333 | B53: 0.9038440871
A54: 0.9 | B54: 0.9083259582
A55: 0.9166666667 | B55: 0.9137134274
A56: 0.9333333333 | B56: 0.9167627261
A57: 0.95 | B57: 0.9389599571
A58: 0.9666666667 | B58: 0.9468703421
A59: 0.9833333333 | B59: 0.9571657653
A60: 1 | B60: 0.9576612238

Sheet NORM1_HID1 (hidden)
A1: -0.9713192324 | B1: -1.358296924
A2: -0.969535553 | B2: -1.145878642
A3: -0.952402867 | B3: -1.021282135
A4: -0.9502302071 | B4: -0.9300708689
A5: -0.8953454923 | B5: -0.8566154568
A6: -0.8820267322 | B6: -0.7942800735
A7: -0.8192119738 | B7: -0.7395939476
A8: -0.7265853352 | B8: -0.6905011962
A9: -0.7045286262 | B9: -0.6456776752
A10: -0.6796669742 | B10: -0.6042172484
A11: -0.6785527635 | B11: -0.5654705552
A12: -0.6389142574 | B12: -0.5289549659
A13: -0.6245088637 | B13: -0.494300958
A14: -0.6218032134 | B14: -0.4612185032
A15: -0.6085526378 | B15: -0.4294750931
A16: -0.5828438265 | B16: -0.3988808609
A17: -0.5688555336 | B17: -0.3692782019
A18: -0.5087186293 | B18: -0.3405343424
A19: -0.4904846404 | B19: -0.3125358968
A20: -0.4774008201 | B20: -0.2851847996
A21: -0.2870843895 | B21: -0.2583952066
A22: -0.2849826582 | B22: -0.2320910944
A23: -0.1791744887 | B23: -0.2062043693
A24: -0.1639502964 | B24: -0.1806733526
A25: -0.1532180931 | B25: -0.1554415484
A26: -0.1197426677 | B26: -0.130456623
A27: -0.08453612616 | B27: -0.1056695439
A28: -0.04747040706 | B28: -0.08103383944
A29: -0.03476664983 | B29: -0.05650494694
A30: -0.02355895279 | B30: -0.03203962471
A31: 0.01554844252 | B31: -0.007595407239
A32: 0.03998639474 | B32: 0.01686991499
A33: 0.04229214811 | B33: 0.04139880748
A34: 0.06401395836 | B34: 0.06603451193
A35: 0.07826130256 | B35: 0.09082159104
A36: 0.1675273428 | B36: 0.1158065165
A37: 0.1868002119 | B37: 0.1410383207
A38: 0.2292978605 | B38: 0.1665693374
A39: 0.2460255053 | B39: 0.1924560625
A40: 0.3031156257 | B40: 0.2187601746
A41: 0.3785264024 | B41: 0.2455497676
A42: 0.405802858 | B42: 0.2729008648
A43: 0.4132542643 | B43: 0.3008993104
A44: 0.4262046343 | B44: 0.32964317
A45: 0.4715846915 | B45: 0.359245829
A46: 0.4905753667 | B46: 0.3898400611
A47: 0.5501508167 | B47: 0.4215834712
A48: 0.5709076982 | B48: 0.454665926
A49: 0.5870291047 | B49: 0.4893199339
A50: 0.6358529079 | B50: 0.5258355233
A51: 0.6359754074 | B51: 0.5645822164
A52: 0.7053866615 | B52: 0.6060426432
A53: 0.7476170771 | B53: 0.6508661643
A54: 0.76336059 | B54: 0.6999589156
A55: 0.7830593231 | B55: 0.7546450415
A56: 0.7946191839 | B56: 0.8169804248
A57: 0.8902595529 | B57: 0.8904358369
A58: 0.9309548251 | B58: 0.9816471027
A59: 0.9918575205 | B59: 1.10624361
A60: 0.9950742714 | B60: 1.318661892

Sheet NORM2_HID (hidden)
A1: 0.03333333333 | B1: 0.05743865596
A2: 0.06666666667 | B2: 0.06752023302
A3: 0.1 | B3: 0.06853798658
A4: 0.1333333333 | B4: 0.07871485463
A5: 0.1666666667 | B5: 0.08598693655
A6: 0.2 | B6: 0.1432350989
A7: 0.2333333333 | B7: 0.1583825418
A8: 0.2666666667 | B8: 0.1953611983
A9: 0.3 | B9: 0.2112497849
A10: 0.3333333333 | B10: 0.2708539083
A11: 0.3666666667 | B11: 0.3606195029
A12: 0.4 | B12: 0.3954520377
A13: 0.4333333333 | B13: 0.4051282087
A14: 0.4666666667 | B14: 0.422080612
A15: 0.5 | B15: 0.4824254205
A16: 0.5333333333 | B16: 0.5078801073
A17: 0.5666666667 | B17: 0.5870511522
A18: 0.6 | B18: 0.6139857291
A19: 0.6333333333 | B19: 0.6345395842
A20: 0.6666666667 | B20: 0.6942664944
A21: 0.7 | B21: 0.694410835
A22: 0.7333333333 | B22: 0.7708530176
A23: 0.7666666667 | B23: 0.8115386666
A24: 0.8 | B24: 0.8254892604
A25: 0.8333333333 | B25: 0.8419946521
A26: 0.8666666667 | B26: 0.851187067
A27: 0.9 | B27: 0.9135511454
A28: 0.9333333333 | B28: 0.9331557844
A29: 0.9666666667 | B29: 0.9558455774
A30: 1 | B30: 0.9568454596

Sheet NORM2_HID1 (hidden)
A1: 0.01554844252 | B1: -0.1099312222
A2: 0.03998639474 | B2: 0.01022777875
A3: 0.04229214811 | B3: 0.08268071819
A4: 0.06401395836 | B4: 0.1369551814
A5: 0.07826130256 | B5: 0.1816145204
A6: 0.1675273428 | B6: 0.2203181734
A7: 0.1868002119 | B7: 0.2549951297
A8: 0.2292978605 | B8: 0.2868001717
A9: 0.2460255053 | B9: 0.3164883396
A10: 0.3031156257 | B10: 0.3445875725
A11: 0.3785264024 | B11: 0.3714879588
A12: 0.405802858 | B12: 0.3974920947
A13: 0.4132542643 | B13: 0.4228456484
A14: 0.4262046343 | B14: 0.4477572007
A15: 0.4715846915 | B15: 0.4724120648
A16: 0.4905753667 | B16: 0.4969827319
A17: 0.5501508167 | B17: 0.5216375959
A18: 0.5709076982 | B18: 0.5465491482
A19: 0.5870291047 | B19: 0.5719027019
A20: 0.6358529079 | B20: 0.5979068379
A21: 0.6359754074 | B21: 0.6248072242
A22: 0.7053866615 | B22: 0.6529064571
A23: 0.7476170771 | B23: 0.682594625
A24: 0.76336059 | B24: 0.7143996669
A25: 0.7830593231 | B25: 0.7490766233
A26: 0.7946191839 | B26: 0.7877802763
A27: 0.8902595529 | B27: 0.8324396153
A28: 0.9309548251 | B28: 0.8867140785
A29: 0.9918575205 | B29: 0.9591670179
A30: 0.9950742714 | B30: 1.079326019

Sheet NORM3_HID (hidden)
A1: 0.03333333333 | B1: 0.0308218777
A2: 0.06666666667 | B2: 0.04652489893
A3: 0.1 | B3: 0.04805942574
A4: 0.1333333333 | B4: 0.06320784304
A5: 0.1666666667 | B5: 0.07388551863
A6: 0.2 | B6: 0.1546282125
A7: 0.2333333333 | B7: 0.1749723934
A8: 0.2666666667 | B8: 0.222868928
A9: 0.3 | B9: 0.2427132589
A10: 0.3333333333 | B10: 0.3135940784
A11: 0.3666666667 | B11: 0.4113093176
A12: 0.4 | B12: 0.4468001348
A13: 0.4333333333 | B13: 0.4564491021
A14: 0.4666666667 | B14: 0.4731466988
A15: 0.5 | B15: 0.5306189517
A16: 0.5333333333 | B16: 0.5540317757
A17: 0.5666666667 | B17: 0.6242049225
A18: 0.6 | B18: 0.6472948004
A19: 0.6333333333 | B19: 0.6646892583
A20: 0.6666666667 | B20: 0.7143097269
A21: 0.7 | B21: 0.7144282356
A22: 0.7333333333 | B22: 0.776581666
A23: 0.7666666667 | B23: 0.8094783784
A24: 0.8 | B24: 0.8208010018
A25: 0.8333333333 | B25: 0.8342620764
A26: 0.8666666667 | B26: 0.8418017793
A27: 0.9 | B27: 0.8945507563
A28: 0.9333333333 | B28: 0.9122193921
A29: 0.9666666667 | B29: 0.9340623386
A30: 1 | B30: 0.935076226

Sheet NORM3_HID1 (hidden)
A1: -1.375862508 | B1: -1.428327954
A2: -1.299152789 | B2: -1.264713138
A3: -1.292849474 | B3: -1.166057405
A4: -1.237916717 | B4: -1.092154441
A5: -1.205121571 | B5: -1.031343936
A6: -1.030626188 | B6: -0.9786430064
A7: -0.9973664903 | B7: -0.9314250387
A8: -0.927612874 | B8: -0.8881176207
A9: -0.9013013842 | B9: -0.8476926498
A10: -0.8154393945 | B10: -0.8094312562
A11: -0.709481883 | B11: -0.7728022754
A12: -0.6728425784 | B12: -0.7373936761
A13: -0.6629699291 | B13: -0.7028709438
A14: -0.6459438469 | B14: -0.6689500639
A15: -0.5875223957 | B15: -0.6353787043
A16: -0.5636054968 | B16: -0.6019219915
A17: -0.490394731 | B17: -0.5683506318
A18: -0.4654829682 | B18: -0.5344297519
A19: -0.4463311183 | B19: -0.4999070197
A20: -0.3893130878 | B20: -0.4644984204
A21: -0.389171803 | B21: -0.4278694396
A22: -0.3104335593 | B22: -0.389608046
A23: -0.2637263946 | B23: -0.3491830751
A24: -0.2465282064 | B24: -0.3058756571
A25: -0.2251659325 | B25: -0.2586576894
A26: -0.2127087611 | B26: -0.2059567597
A27: -0.1117357401 | B27: -0.1451462547
A28: -0.06982008981 | B28: -0.07124329094
A29: -0.008152964582 | B29: 0.02741244228
A30: -0.004929560217 | B30: 0.1910272581

Sheet NORM5_HID (hidden)
A1: 0.02127659574 | B1: 0.01914477967
A2: 0.04255319149 | B2: 0.03087477359
A3: 0.06382978723 | B3: 0.03206679305
A4: 0.08510638298 | B4: 0.04419155445
A5: 0.1063829787 | B5: 0.05307919116
A6: 0.1276595745 | B6: 0.1266062234
A7: 0.1489361702 | B7: 0.1464243734
A8: 0.170212766 | B8: 0.1595504673
A9: 0.1914893617 | B9: 0.1711193165
A10: 0.2127659574 | B10: 0.1883778972
A11: 0.2340425532 | B11: 0.1945434982
A12: 0.2553191489 | B12: 0.2149872331
A13: 0.2765957447 | B13: 0.230535516
A14: 0.2978723404 | B14: 0.2344617166
A15: 0.3191489362 | B15: 0.2502957774
A16: 0.3404255319 | B16: 0.2898972777
A17: 0.3617021277 | B17: 0.3966119951
A18: 0.3829787234 | B18: 0.4285051819
A19: 0.4042553191 | B19: 0.4360051945
A20: 0.4255319149 | B20: 0.4467534183
A21: 0.4468085106 | B21: 0.4645480279
A22: 0.4680851064 | B22: 0.4653836685
A23: 0.4893617021 | B23: 0.5296947882
A24: 0.5106382979 | B24: 0.532230007
A25: 0.5319148936 | B25: 0.5559207459
A26: 0.5531914894 | B26: 0.5588072214
A27: 0.5744680851 | B27: 0.5934062665
A28: 0.5957446809 | B28: 0.6022503847
A29: 0.6170212766 | B29: 0.6343092216
A30: 0.6382978723 | B30: 0.6599470878
A31: 0.6595744681 | B31: 0.6791819534
A32: 0.6808510638 | B32: 0.7076697374
A33: 0.7021276596 | B33: 0.7246630709
A34: 0.7234042553 | B34: 0.7335550841
A35: 0.7446808511 | B35: 0.7336838828
A36: 0.7659574468 | B36: 0.7338933245
A37: 0.7872340426 | B37: 0.8003081984
A38: 0.8085106383 | B38: 0.8346284351
A39: 0.829787234 | B39: 0.8462480653
A40: 0.8510638298 | B40: 0.8599145349
A41: 0.8723404255 | B41: 0.867493272
A42: 0.8936170213 | B42: 0.8907071258
A43: 0.914893617 | B43: 0.9186444898
A44: 0.9361702128 | B44: 0.9348538972
A45: 0.9574468085 | B45: 0.9517928621
A46: 0.9787234043 | B46: 0.9540176767
A47: 1 | B47: 0.9548795058

Sheet NORM5_HID1 (hidden)
A1: -1.041243356 | B1: -1.23442189
A2: -0.6768573039 | B2: -0.5643236828
A3: -0.6467265074 | B3: -0.1679520883
A4: -0.3832382045 | B4: 0.1241974208
A5: -0.2252724251 | B5: 0.3609411008
A6: 0.6212674398 | B6: 0.5630401252
A7: 0.7835330796 | B7: 0.7413713295
A8: 0.882990339 | B8: 0.9023895365
A9: 0.9662909239 | B9: 1.0502616
A10: 1.084134712 | B10: 1.187847225
A11: 1.124599497 | B11: 1.317203439
A12: 1.253496023 | B12: 1.439866575
A13: 1.346807749 | B13: 1.557020387
A14: 1.369804381 | B14: 1.669601594
A15: 1.460470826 | B15: 1.778369041
A16: 1.674957593 | B16: 1.883950679
A17: 2.196631999 | B17: 1.986876527
A18: 2.343253543 | B18: 2.087602449
A19: 2.377385044 | B19: 2.186527799
A20: 2.426119616 | B20: 2.284008853
A21: 2.506432336 | B21: 2.380369324
A22: 2.510194714 | B22: 2.475908851
A23: 2.79894958 | B23: 2.570910079
A24: 2.810354459 | B24: 2.665644803
A25: 2.917277179 | B25: 2.760379526
A26: 2.930358561 | B26: 2.855380755
A27: 3.088476043 | B27: 2.950920282
A28: 3.129379062 | B28: 3.047280752
A29: 3.279877557 | B29: 3.144761806
A30: 3.403391014 | B30: 3.243687157
A31: 3.49838966 | B31: 3.344413079
A32: 3.643637274 | B32: 3.447338926
A33: 3.73338807 | B33: 3.552920565
A34: 3.781429861 | B34: 3.661688011
A35: 3.782131595 | B35: 3.774269218
A36: 3.783273062 | B36: 3.89142303
A37: 4.173496293 | B37: 4.014086166
A38: 4.405913414 | B38: 4.143442381
A39: 4.491539519 | B39: 4.281028006
A40: 4.597932198 | B40: 4.428900069
A41: 4.659991295 | B41: 4.589918276
A42: 4.866969176 | B42: 4.76824948
A43: 5.163475137 | B43: 4.970348505
A44: 5.372709762 | B44: 5.207092185
A45: 5.640277507 | B45: 5.499241694
A46: 5.680773095 | B46: 5.895613288
A47: 5.696883335 | B47: 6.565711496

Sheet NORM6_HID (hidden)
A1: 0.02127659574 | B1: 0.2200357501
A2: 0.04255319149 | B2: 0.2201468269
A3: 0.06382978723 | B3: 0.2204341884
A4: 0.08510638298 | B4: 0.2226586537
A5: 0.1063829787 | B5: 0.2248636417
A6: 0.1276595745 | B6: 0.2288805899
A7: 0.1489361702 | B7: 0.2324581758
A8: 0.170212766 | B8: 0.2336779196
A9: 0.1914893617 | B9: 0.2359459595
A10: 0.2127659574 | B10: 0.2379467393
A11: 0.2340425532 | B11: 0.2442759289
A12: 0.2553191489 | B12: 0.2585776281
A13: 0.2765957447 | B13: 0.2586275832
A14: 0.2978723404 | B14: 0.2586583202
A15: 0.3191489362 | B15: 0.2608110205
A16: 0.3404255319 | B16: 0.2650990284
A17: 0.3617021277 | B17: 0.272838153
A18: 0.3829787234 | B18: 0.2784888674
A19: 0.4042553191 | B19: 0.2866095633
A20: 0.4255319149 | B20: 0.2978190606
A21: 0.4468085106 | B21: 0.3011382264
A22: 0.4680851064 | B22: 0.315175925
A23: 0.4893617021 | B23: 0.316428254
A24: 0.5106382979 | B24: 0.3272252873
A25: 0.5319148936 | B25: 0.3284379911
A26: 0.5531914894 | B26: 0.363485164
A27: 0.5744680851 | B27: 0.3640010772
A28: 0.5957446809 | B28: 0.3754086303
A29: 0.6170212766 | B29: 0.3827087129
A30: 0.6382978723 | B30: 0.387996852
A31: 0.6595744681 | B31: 0.4124277656
A32: 0.6808510638 | B32: 0.52393371
A33: 0.7021276596 | B33: 0.5810384184
A34: 0.7234042553 | B34: 0.6068842161
A35: 0.7446808511 | B35: 0.6135779794
A36: 0.7659574468 | B36: 0.6412316804
A37: 0.7872340426 | B37: 0.6804246617
A38: 0.8085106383 | B38: 0.6928758882
A39: 0.829787234 | B39: 0.7292257366
A40: 0.8510638298 | B40: 0.7547371915
A41: 0.8723404255 | B41: 0.7846189139
A42: 0.8936170213 | B42: 0.8309687222
A43: 0.914893617 | B43: 0.9781966593
A44: 0.9361702128 | B44: 0.9874022
A45: 0.9574468085 | B45: 0.9954512924
A46: 0.9787234043 | B46: 0.9959778393
A47: 1 | B47: 0.9991153872

Sheet NORM6_HID1 (hidden)
A1: 0.02715519741 | B1: -1.72532207
A2: 0.02762212939 | B2: -1.259063279
A3: 0.02882948016 | B3: -0.9832652868
A4: 0.03814526088 | B4: -0.7799857149
A5: 0.04732726087 | B5: -0.6152578874
A6: 0.06392451695 | B6: -0.4746360418
A7: 0.07856925185 | B7: -0.3505520034
A8: 0.08353349484 | B8: -0.2385144638
A9: 0.09272619147 | B9: -0.1356240986
A10: 0.1007952862 | B10: -0.03989110537
A11: 0.1260795168 | B11: 0.05011580914
A12: 0.1819507907 | B12: 0.1354656354
A13: 0.1821430633 | B13: 0.216982037
A14: 0.1822613576 | B14: 0.29531679
A15: 0.190528245 | B15: 0.3709979028
A16: 0.2068914874 | B16: 0.4444623092
A17: 0.236088762 | B17: 0.5160787985
A18: 0.2571478726 | B18: 0.5861645652
A19: 0.287051824 | B19: 0.6549974822
A20: 0.3276797388 | B20: 0.7228254479
A21: 0.3395740878 | B21: 0.7898737045
A22: 0.3892462897 | B22: 0.8563507429
A23: 0.3936305016 | B23: 0.9224532297
A24: 0.4311320228 | B24: 0.9883702805
A25: 0.4353120954 | B25: 1.054287331
A26: 0.553674815 | B26: 1.120389818
A27: 0.5553856092 | B27: 1.186866857
A28: 0.5930119192 | B28: 1.253915113
A29: 0.6169000098 | B29: 1.321743079
A30: 0.6341188853 | B30: 1.390575996
A31: 0.7128508177 | B31: 1.460661763
A32: 1.063105141 | B32: 1.532278252
A33: 1.243031908 | B33: 1.605742658
A34: 1.326018095 | B34: 1.681423771
A35: 1.347742303 | B35: 1.759758524
A36: 1.438745628 | B36: 1.841274926
A37: 1.572124925 | B37: 1.926624752
A38: 1.615863691 | B38: 2.016631666
A39: 1.748397176 | B39: 2.11236466
A40: 1.846750714 | B40: 2.215255025
A41: 1.969275479 | B41: 2.327292565
A42: 2.181061977 | B42: 2.451376603
A43: 3.500556364 | B43: 2.591998449
A44: 3.775122533 | B44: 2.756726276
A45: 4.235741645 | B45: 2.960005848
A46: 4.287822072 | B46: 3.23580384
A47: 4.880755753 | B47: 3.702062631

Sheet NORM7_HID (hidden)
A1: 0.02127659574 | B1: 0.03583292827
A2: 0.04255319149 | B2: 0.03663288942
A3: 0.06382978723 | B3: 0.03870859927
A4: 0.08510638298 | B4: 0.05494876334
A5: 0.1063829787 | B5: 0.07106756227
A6: 0.1276595745 | B6: 0.09979265723
A7: 0.1489361702 | B7: 0.124309735
A8: 0.170212766 | B8: 0.1324094843
A9: 0.1914893617 | B9: 0.1471114955
A10: 0.2127659574 | B10: 0.1596945114
A11: 0.2340425532 | B11: 0.197190657
A12: 0.2553191489 | B12: 0.2704739954
A13: 0.2765957447 | B13: 0.2707056072
A14: 0.2978723404 | B14: 0.2708480397
A15: 0.3191489362 | B15: 0.2806807633
A16: 0.3404255319 | B16: 0.2994633993
A17: 0.3617021277 | B17: 0.3308944676
A18: 0.3829787234 | B18: 0.3520529414
A19: 0.4042553191 | B19: 0.3801450036
A20: 0.4255319149 | B20: 0.4150518676
A21: 0.4468085106 | B21: 0.4246316771
A22: 0.4680851064 | B22: 0.4618721284
A23: 0.4893617021 | B23: 0.4649607424
A24: 0.5106382979 | B24: 0.4901959078
A25: 0.5319148936 | B25: 0.4928838877
A26: 0.5531914894 | B26: 0.560184426
A27: 0.5744680851 | B27: 0.5610470138
A28: 0.5957446809 | B28: 0.5793381941
A29: 0.6170212766 | B29: 0.5903133702
A30: 0.6382978723 | B30: 0.5979383886
A31: 0.6595744681 | B31: 0.6300470514
A32: 0.6808510638 | B32: 0.7334466794
A33: 0.7021276596 | B33: 0.7700992099
A34: 0.7234042553 | B34: 0.784476875
A35: 0.7446808511 | B35: 0.7880169709
A36: 0.7659574468 | B36: 0.8019377815
A37: 0.7872340426 | B37: 0.8200001313
A38: 0.8085106383 | B38: 0.8253932442
A39: 0.829787234 | B39: 0.8403549749
A40: 0.8510638298 | B40: 0.8502730424
A41: 0.8723404255 | B41: 0.8614183547
A42: 0.8936170213 | B42: 0.8780309104
A43: 0.914893617 | B43: 0.9376280959
A44: 0.9361702128 | B44: 0.9446667487
A45: 0.9574468085 | B45: 0.9542251146
A46: 0.9787234043 | B46: 0.9551602056
A47: 1 | B47: 0.9641903556

Sheet NORM7_HID1 (hidden)
A1: -3.237399156 | B1: -3.752336443
A2: -3.223707138 | B2: -3.242788417
A3: -3.189286457 | B3: -2.941384292
A4: -2.961773648 | B4: -2.719231473
A5: -2.783855226 | B5: -2.539209689
A6: -2.531942686 | B6: -2.385531977
A7: -2.356395456 | B7: -2.249927506
A8: -2.303828979 | B8: -2.127487976
A9: -2.213798909 | B9: -2.015044878
A10: -2.141432558 | B10: -1.910423671
A11: -1.945489575 | B11: -1.812060172
A12: -1.618519416 | B12: -1.718786144
A13: -1.617567399 | B13: -1.629701451
A14: -1.616982146 | B14: -1.544093802
A15: -1.576940824 | B15: -1.461386167
A16: -1.502278358 | B16: -1.381101046
A17: -1.381868208 | B17: -1.30283541
A18: -1.303416735 | B18: -1.226242615
A19: -1.20180419 | B19: -1.151018989
A20: -1.078629895 | B20: -1.076893617
A21: -1.045282199 | B21: -1.003620346
A22: -0.9169260381 | B22: -0.9309713271
A23: -0.9063479682 | B23: -0.8587316345
A24: -0.8201342378 | B24: -0.7866945944
A25: -0.8109649621 | B25: -0.7146575544
A26: -0.5806543435 | B26: -0.6424178618
A27: -0.5776781172 | B27: -0.5697688428
A28: -0.5143076997 | B28: -0.4964955715
A29: -0.476007076 | B29: -0.4223702001
A30: -0.4492537973 | B30: -0.3471465738
A31: -0.3350156413 | B31: -0.2705537784
A32: 0.06130826002 | B32: -0.1922881424
A33: 0.2190021668 | B33: -0.1120030216
A34: 0.2846209745 | B34: -0.02929538708
A35: 0.3011613391 | B35: 0.05631226175
A36: 0.3678341413 | B36: 0.1453969554
A37: 0.4587235162 | B37: 0.2386709836
A38: 0.4869557642 | B38: 0.3370344817
A39: 0.5683204647 | B39: 0.4416556894
A40: 0.6250388956 | B40: 0.5540987867
A41: 0.6918546636 | B41: 0.6765383168
A42: 0.7986400418 | B42: 0.8121427882
A43: 1.30200063 | B43: 0.9658204998
A44: 1.383691377 | B44: 1.145842284
A45: 1.508964652 | B45: 1.367995103
A46: 1.52231399 | B46: 1.669399228
A47: 1.664412224 | B47: 2.178947255

Sheet Histogram_HID (hidden)
A1: 0 | B1: 0 | E1: 0 | F1: 0
A2: 0 | B2: 17 | E2: 0 | F2: 17
A3: 0.2490377876 | B3: 17 | E3: 0.002441546938 | F3: 17
A4: 0.2490377876 | B4: 0 | E4: 0.002441546938 | F4: 0
A5: 0.2490377876 | B5: 8 | E5: 0.004883093875 | F5: 0
A6: 0.4980755753 | B6: 8 | E6: 0.004883093875 | F6: 17
A7: 0.4980755753 | B7: 0 | E7: 0.007324640813 | F7: 17
A8: 0.4980755753 | B8: 6 | E8: 0.007324640813 | F8: 0
A9: 0.7471133629 | B9: 6 | E9: 0.00976618775 | F9: 0
A10: 0.7471133629 | B10: 0 | E10: 0.00976618775 | F10: 17
A11: 0.7471133629 | B11: 0 | E11: 0.01220773469 | F11: 17
A12: 0.9961511505 | B12: 0 | E12: 0.01220773469 | F12: 0
A13: 0.9961511505 | B13: 0 | E13: 0.01464928163 | F13: 0
A14: 0.9961511505 | B14: 2 | E14: 0.01464928163 | F14: 17
A15: 1.245188938 | B15: 2 | E15: 0.01709082856 | F15: 17
A16: 1.245188938 | B16: 0 | E16: 0.01709082856 | F16: 0
A17: 1.245188938 | B17: 3 | E17: 0.0195323755 | F17: 0
A18: 1.494226726 | B18: 3 | E18: 0.0195323755 | F18: 17
A19: 1.494226726 | B19: 0 | E19: 0.02197392244 | F19: 17
A20: 1.494226726 | B20: 2 | E20: 0.02197392244 | F20: 0
A21: 1.743264513 | B21: 2 | E21: 0.02441546938 | F21: 0
A22: 1.743264513 | B22: 0 | E22: 0.02441546938 | F22: 17
A23: 1.743264513 | B23: 3 | E23: 0.02685701631 | F23: 17
A24: 1.992302301 | B24: 3 | E24: 0.02685701631 | F24: 0
A25: 1.992302301 | B25: 0 | E25: 0.02929856325 | F25: 0
A26: 1.992302301 | B26: 1 | E26: 0.02929856325 | F26: 17
A27: 2.241340089 | B27: 1 | E27: 0.03174011019 | F27: 17
A28: 2.241340089 | B28: 0 | E28: 0.03174011019 | F28: 0
A29: 2.241340089 | B29: 0 | E29: 0.03418165713 | F29: 0
A30: 2.490377876 | B30: 0 | E30: 0.03418165713 | F30: 17
A31: 2.490377876 | B31: 0 | E31: 0.03662320406 | F31: 17
A32: 2.490377876 | B32: 0 | E32: 0.03662320406 | F32: 0
A33: 2.739415664 | B33: 0 | E33: 0.039064751 | F33: 0
A34: 2.739415664 | B34: 0 | E34: 0.039064751 | F34: 17
A35: 2.739415664 | B35: 0 | E35: 0.04150629794 | F35: 17
A36: 2.988453452 | B36: 0 | E36: 0.04150629794 | F36: 0
A37: 2.988453452 | B37: 0 | E37: 0.04394784488 | F37: 0
A38: 2.988453452 | B38: 0 | E38: 0.04394784488 | F38: 17
A39: 3.237491239 | B39: 0 | E39: 0.04638939181 | F39: 17
A40: 3.237491239 | B40: 0 | E40: 0.04638939181 | F40: 0
A41: 3.237491239 | B41: 0 | E41: 0.04883093875 | F41: 0
A42: 3.486529027 | B42: 0 | E42: 0.04883093875 | F42: 17
A43: 3.486529027 | B43: 0 | E43: 0.05127248569 | F43: 17
A44: 3.486529027 | B44: 1 | E44: 0.05127248569 | F44: 0
A45: 3.735566814 | B45: 1 | E45: 0.05371403263 | F45: 0
A46: 3.735566814 | B46: 0 | E46: 0.05371403263 | F46: 17
A47: 3.735566814 | B47: 1 | E47: 0.05615557956 | F47: 17
A48: 3.984604602 | B48: 1 | E48: 0.05615557956 | F48: 0
A49: 3.984604602 | B49: 0 | E49: 0.0585971265 | F49: 0
A50: 3.984604602 | B50: 0 | E50: 0.0585971265 | F50: 17
A51: 4.23364239 | B51: 0 | E51: 0.06103867344 | F51: 17
A52: 4.23364239 | B52: 0 | E52: 0.06103867344 | F52: 0
A53: 4.23364239 | B53: 2 | E53: 0.06348022038 | F53: 0
A54: 4.482680177 | B54: 2 | E54: 0.06348022038 | F54: 17
A55: 4.482680177 | B55: 0 | E55: 0.06592176731 | F55: 17
A56: 4.482680177 | B56: 0 | E56: 0.06592176731 | F56: 0
A57: 4.731717965 | B57: 0 | E57: 0.06836331425 | F57: 0
A58: 4.731717965 | B58: 0 | E58: 0.06836331425 | F58: 17
A59: 4.731717965 | B59: 1 | E59: 0.07080486119 | F59: 17
A60: 4.980755753 | B60: 1 | E60: 0.07080486119 | F60: 0
A61: 4.980755753 | B61: 0 | E61: 0.07324640813 | F61: 0
E62: 0.07324640813 | F62: 17
E63: 0.07568795506 | F63: 17
E64: 0.07568795506 | F64: 0
E65: 0.078129502 | F65: 0
E66: 0.078129502 | F66: 17
E67: 0.08057104894 | F67: 17
E68: 0.08057104894 | F68: 0
E69: 0.08301259588 | F69: 0
E70: 0.08301259588 | F70: 17
E71: 0.08545414281 | F71: 17
E72: 0.08545414281 | F72: 0
E73: 0.08789568975 | F73: 0
E74: 0.08789568975 | F74: 17
E75: 0.09033723669 | F75: 17
E76: 0.09033723669 | F76: 0
E77: 0.09277878363 | F77: 0
E78: 0.09277878363 | F78: 17
E79: 0.09522033056 | F79: 17
E80: 0.09522033056 | F80: 0
E81: 0.0976618775 | F81: 0
E82: 0.0976618775 | F82: 17
E83: 0.1001034244 | F83: 17
E84: 0.1001034244 | F84: 0
E85: 0.1025449714 | F85: 0
E86: 0.1025449714 | F86: 17
E87: 0.1049865183 | F87: 17
E88: 0.1049865183 | F88: 0
E89: 0.1074280653 | F89: 0
E90: 0.1074280653 | F90: 17
E91: 0.1098696122 | F91: 17
E92: 0.1098696122 | F92: 0
E93: 0.1123111591 | F93: 0
E94: 0.1123111591 | F94: 17
E95: 0.1147527061 | F95: 17
E96: 0.1147527061 | F96: 0
E97: 0.117194253 | F97: 0
E98: 0.117194253 | F98: 17
E99: 0.1196357999 | F99: 17
E100: 0.1196357999 | F100: 0
E101: 0.1220773469 | F101: 0
E102: 0.1220773469 | F102: 17
E103: 0.1245188938 | F103: 17
E104: 0.1245188938 | F104: 0
E105: 0.1269604408 | F105: 0
E106: 0.1269604408 | F106: 17
E107: 0.1294019877 | F107: 17
E108: 0.1294019877 | F108: 0
E109: 0.1318435346 | F109: 0
E110: 0.1318435346 | F110: 17
E111: 0.1342850816 | F111: 17
E112: 0.1342850816 | F112: 0
E113: 0.1367266285 | F113: 0
E114: 0.1367266285 | F114: 17
E115: 0.1391681754 | F115: 17
E116: 0.1391681754 | F116: 0
E117: 0.1416097224 | F117: 0
E118: 0.1416097224 | F118: 17
E119: 0.1440512693 | F119: 17
E120: 0.1440512693 | F120: 0
E121: 0.1464928163 | F121: 0
E122: 0.1464928163 | F122: 17
E123: 0.1489343632 | F123: 17
E124: 0.1489343632 | F124: 0
E125: 0.1513759101 | F125: 0
E126: 0.1513759101 | F126: 17
E127: 0.1538174571 | F127: 17
E128: 0.1538174571 | F128: 0
E129: 0.156259004 | F129: 0
E130: 0.156259004 | F130: 17
E131: 0.1587005509 | F131: 17
E132: 0.1587005509 | F132: 0
E133: 0.1611420979 | F133: 0
E134: 0.1611420979 | F134: 17
E135: 0.1635836448 | F135: 17
E136: 0.1635836448 | F136: 0
E137: 0.1660251918 | F137: 0
E138: 0.1660251918 | F138: 17
E139: 0.1684667387 | F139: 17
E140: 0.1684667387 | F140: 0
E141: 0.1709082856 | F141: 0
E142: 0.1709082856 | F142: 17
E143: 0.1733498326 | F143: 17
E144: 0.1733498326 | F144: 0
E145: 0.1757913795 | F145: 0
E146: 0.1757913795 | F146: 17
E147: 0.1782329264 | F147: 17
E148: 0.1782329264 | F148: 0
E149: 0.1806744734 | F149: 0
E150: 0.1806744734 | F150: 17
E151: 0.1831160203 | F151: 17
E152: 0.1831160203 | F152: 0
E153: 0.1855575673 | F153: 0
E154: 0.1855575673 | F154: 17
E155: 0.1879991142 | F155: 17
E156: 0.1879991142 | F156: 0
E157: 0.1904406611 | F157: 0
E158: 0.1904406611 | F158: 17
E159: 0.1928822081 | F159: 17
E160: 0.1928822081 | F160: 0
E161: 0.195323755 | F161: 0
E162: 0.195323755 | F162: 17
E163: 0.1977653019 | F163: 17
E164: 0.1977653019 | F164: 0
E165: 0.2002068489 | F165: 0
E166: 0.2002068489 | F166: 17
E167: 0.2026483958 | F167: 17
E168: 0.2026483958 | F168: 0
E169: 0.2050899428 | F169: 0
E170: 0.2050899428 | F170: 17
E171: 0.2075314897 | F171: 17
E172: 0.2075314897 | F172: 0
E173: 0.2099730366 | F173: 0
E174: 0.2099730366 | F174: 17
E175: 0.2124145836 | F175: 17
E176: 0.2124145836 | F176: 0
E177: 0.2148561305 | F177: 0
E178: 0.2148561305 | F178: 17
E179: 0.2172976774 | F179: 17
E180: 0.2172976774 | F180: 0
E181: 0.2197392244 | F181: 0
E182: 0.2197392244 | F182: 17
E183: 0.2221807713 | F183: 17
E184: 0.2221807713 | F184: 0
E185: 0.2246223183 | F185: 0
E186: 0.2246223183 | F186: 17
E187: 0.2270638652 | F187: 17
E188: 0.2270638652 | F188: 0
E189: 0.2295054121 | F189: 0
E190: 0.2295054121 | F190: 17
E191: 0.2319469591 | F191: 17
E192: 0.2319469591 | F192: 0
E193: 0.234388506 | F193: 0
E194: 0.234388506 | F194: 17
E195: 0.2368300529 | F195: 17
E196: 0.2368300529 | F196: 0
E197: 0.2392715999 | F197: 0
E198: 0.2392715999 | F198: 17
E199: 0.2417131468 | F199: 17
E200: 0.2417131468 | F200: 0
... 2228 more rows

Sheet NORM_HID2 (hidden)
A1: 0.02127659574 | B1: 0.2200357501
A2: 0.04255319149 | B2: 0.2201468269
A3: 0.06382978723 | B3: 0.2204341884
A4: 0.08510638298 | B4: 0.2226586537
A5: 0.1063829787 | B5: 0.2248636417
A6: 0.1276595745 | B6: 0.2288805899
A7: 0.1489361702 | B7: 0.2324581758
A8: 0.170212766 | B8: 0.2336779196
A9: 0.1914893617 | B9: 0.2359459595
A10: 0.2127659574 | B10: 0.2379467393
A11: 0.2340425532 | B11: 0.2442759289
A12: 0.2553191489 | B12: 0.2585776281
A13: 0.2765957447 | B13: 0.2586275832
A14: 0.2978723404 | B14: 0.2586583202
A15: 0.3191489362 | B15: 0.2608110205
A16: 0.3404255319 | B16: 0.2650990284
A17: 0.3617021277 | B17: 0.272838153
A18: 0.3829787234 | B18: 0.2784888674
A19: 0.4042553191 | B19: 0.2866095633
A20: 0.4255319149 | B20: 0.2978190606
A21: 0.4468085106 | B21: 0.3011382264
A22: 0.4680851064 | B22: 0.315175925
A23: 0.4893617021 | B23: 0.316428254
A24: 0.5106382979 | B24: 0.3272252873
A25: 0.5319148936 | B25: 0.3284379911
A26: 0.5531914894 | B26: 0.363485164
A27: 0.5744680851 | B27: 0.3640010772
A28: 0.5957446809 | B28: 0.3754086303
A29: 0.6170212766 | B29: 0.3827087129
A30: 0.6382978723 | B30: 0.387996852
A31: 0.6595744681 | B31: 0.4124277656
A32: 0.6808510638 | B32: 0.52393371
A33: 0.7021276596 | B33: 0.5810384184
A34: 0.7234042553 | B34: 0.6068842161
A35: 0.7446808511 | B35: 0.6135779794
A36: 0.7659574468 | B36: 0.6412316804
A37: 0.7872340426 | B37: 0.6804246617
A38: 0.8085106383 | B38: 0.6928758882
A39: 0.829787234 | B39: 0.7292257366
A40: 0.8510638298 | B40: 0.7547371915
A41: 0.8723404255 | B41: 0.7846189139
A42: 0.8936170213 | B42: 0.8309687222
A43: 0.914893617 | B43: 0.9781966593
A44: 0.9361702128 | B44: 0.9874022
A45: 0.9574468085 | B45: 0.9954512924
A46: 0.9787234043 | B46: 0.9959778393
A47: 1 | B47: 0.9991153872

Sheet NORM_HID3 (hidden)
A1: 0.02715519741 | B1: -1.72532207
A2: 0.02762212939 | B2: -1.259063279
A3: 0.02882948016 | B3: -0.9832652868
A4: 0.03814526088 | B4: -0.7799857149
A5: 0.04732726087 | B5: -0.6152578874
A6: 0.06392451695 | B6: -0.4746360418
A7: 0.07856925185 | B7: -0.3505520034
A8: 0.08353349484 | B8: -0.2385144638
A9: 0.09272619147 | B9: -0.1356240986
A10: 0.1007952862 | B10: -0.03989110537
A11: 0.1260795168 | B11: 0.05011580914
A12: 0.1819507907 | B12: 0.1354656354
A13: 0.1821430633 | B13: 0.216982037
A14: 0.1822613576 | B14: 0.29531679
A15: 0.190528245 | B15: 0.3709979028
A16: 0.2068914874 | B16: 0.4444623092
A17: 0.236088762 | B17: 0.5160787985
A18: 0.2571478726 | B18: 0.5861645652
A19: 0.287051824 | B19: 0.6549974822
A20: 0.3276797388 | B20: 0.7228254479
A21: 0.3395740878 | B21: 0.7898737045
A22: 0.3892462897 | B22: 0.8563507429
A23: 0.3936305016 | B23: 0.9224532297
A24: 0.4311320228 | B24: 0.9883702805
A25: 0.4353120954 | B25: 1.054287331
A26: 0.553674815 | B26: 1.120389818
A27: 0.5553856092 | B27: 1.186866857
A28: 0.5930119192 | B28: 1.253915113
A29: 0.6169000098 | B29: 1.321743079
A30: 0.6341188853 | B30: 1.390575996
A31: 0.7128508177 | B31: 1.460661763
A32: 1.063105141 | B32: 1.532278252
A33: 1.243031908 | B33: 1.605742658
A34: 1.326018095 | B34: 1.681423771
A35: 1.347742303 | B35: 1.759758524
A36: 1.438745628 | B36: 1.841274926
A37: 1.572124925 | B37: 1.926624752
A38: 1.615863691 | B38: 2.016631666
A39: 1.748397176 | B39: 2.11236466
A40: 1.846750714 | B40: 2.215255025
A41: 1.969275479 | B41: 2.327292565
A42: 2.181061977 | B42: 2.451376603
A43: 3.500556364 | B43: 2.591998449
A44: 3.775122533 | B44: 2.756726276
A45: 4.235741645 | B45: 2.960005848
A46: 4.287822072 | B46: 3.23580384
A47: 4.880755753 | B47: 3.702062631

Sheet Histogram_HID1 (hidden)
A1: 0 | B1: 0 | E1: 0 | F1: 0
A2: 0 | B2: 17 | E2: 0 | F2: 17
A3: 0.2490377876 | B3: 17 | E3: 0.002441546938 | F3: 17
A4: 0.2490377876 | B4: 0 | E4: 0.002441546938 | F4: 0
A5: 0.2490377876 | B5: 8 | E5: 0.004883093875 | F5: 0
A6: 0.4980755753 | B6: 8 | E6: 0.004883093875 | F6: 17
A7: 0.4980755753 | B7: 0 | E7: 0.007324640813 | F7: 17
A8: 0.4980755753 | B8: 6 | E8: 0.007324640813 | F8: 0
A9: 0.7471133629 | B9: 6 | E9: 0.00976618775 | F9: 0
A10: 0.7471133629 | B10: 0 | E10: 0.00976618775 | F10: 17
A11: 0.7471133629 | B11: 0 | E11: 0.01220773469 | F11: 17
A12: 0.9961511505 | B12: 0 | E12: 0.01220773469 | F12: 0
A13: 0.9961511505 | B13: 0 | E13: 0.01464928163 | F13: 0
A14: 0.9961511505 | B14: 2 | E14: 0.01464928163 | F14: 17
A15: 1.245188938 | B15: 2 | E15: 0.01709082856 | F15: 17
A16: 1.245188938 | B16: 0 | E16: 0.01709082856 | F16: 0
A17: 1.245188938 | B17: 3 | E17: 0.0195323755 | F17: 0
A18: 1.494226726 | B18: 3 | E18: 0.0195323755 | F18: 17
A19: 1.494226726 | B19: 0 | E19: 0.02197392244 | F19: 17
A20: 1.494226726 | B20: 2 | E20: 0.02197392244 | F20: 0
A21: 1.743264513 | B21: 2 | E21: 0.02441546938 | F21: 0
A22: 1.743264513 | B22: 0 | E22: 0.02441546938 | F22: 17
A23: 1.743264513 | B23: 3 | E23: 0.02685701631 | F23: 17
A24: 1.992302301 | B24: 3 | E24: 0.02685701631 | F24: 0
A25: 1.992302301 | B25: 0 | E25: 0.02929856325 | F25: 0
A26: 1.992302301 | B26: 1 | E26: 0.02929856325 | F26: 17
A27: 2.241340089 | B27: 1 | E27: 0.03174011019 | F27: 17
A28: 2.241340089 | B28: 0 | E28: 0.03174011019 | F28: 0
A29: 2.241340089 | B29: 0 | E29: 0.03418165713 | F29: 0
A30: 2.490377876 | B30: 0 | E30: 0.03418165713 | F30: 17
A31: 2.490377876 | B31: 0 | E31: 0.03662320406 | F31: 17
A32: 2.490377876 | B32: 0 | E32: 0.03662320406 | F32: 0
A33: 2.739415664 | B33: 0 | E33: 0.039064751 | F33: 0
A34: 2.739415664 | B34: 0 | E34: 0.039064751 | F34: 17
A35: 2.739415664 | B35: 0 | E35: 0.04150629794 | F35: 17
A36: 2.988453452 | B36: 0 | E36: 0.04150629794 | F36: 0
A37: 2.988453452 | B37: 0 | E37: 0.04394784488 | F37: 0
A38: 2.988453452 | B38: 0 | E38: 0.04394784488 | F38: 17
A39: 3.237491239 | B39: 0 | E39: 0.04638939181 | F39: 17
A40: 3.237491239 | B40: 0 | E40: 0.04638939181 | F40: 0
A41: 3.237491239 | B41: 0 | E41: 0.04883093875 | F41: 0
A42: 3.486529027 | B42: 0 | E42: 0.04883093875 | F42: 17
A43: 3.486529027 | B43: 0 | E43: 0.05127248569 | F43: 17
A44: 3.486529027 | B44: 1 | E44: 0.05127248569 | F44: 0
A45: 3.735566814 | B45: 1 | E45: 0.05371403263 | F45: 0
A46: 3.735566814 | B46: 0 | E46: 0.05371403263 | F46: 17
A47: 3.735566814 | B47: 1 | E47: 0.05615557956 | F47: 17
A48: 3.984604602 | B48: 1 | E48: 0.05615557956 | F48: 0
A49: 3.984604602 | B49: 0 | E49: 0.0585971265 | F49: 0
A50: 3.984604602 | B50: 0 | E50: 0.0585971265 | F50: 17
A51: 4.23364239 | B51: 0 | E51: 0.06103867344 | F51: 17
A52: 4.23364239 | B52: 0 | E52: 0.06103867344 | F52: 0
A53: 4.23364239 | B53: 2 | E53: 0.06348022038 | F53: 0
A54: 4.482680177 | B54: 2 | E54: 0.06348022038 | F54: 17
A55: 4.482680177 | B55: 0 | E55: 0.06592176731 | F55: 17
A56: 4.482680177 | B56: 0 | E56: 0.06592176731 | F56: 0
A57: 4.731717965 | B57: 0 | E57: 0.06836331425 | F57: 0
A58: 4.731717965 | B58: 0 | E58: 0.06836331425 | F58: 17
A59: 4.731717965 | B59: 1 | E59: 0.07080486119 | F59: 17
A60: 4.980755753 | B60: 1 | E60: 0.07080486119 | F60: 0
A61: 4.980755753 | B61: 0 | E61: 0.07324640813 | F61: 0
E62: 0.07324640813 | F62: 17
E63: 0.07568795506 | F63: 17
E64: 0.07568795506 | F64: 0
E65: 0.078129502 | F65: 0
E66: 0.078129502 | F66: 17
E67: 0.08057104894 | F67: 17
E68: 0.08057104894 | F68: 0
E69: 0.08301259588 | F69: 0
E70: 0.08301259588 | F70: 17
E71: 0.08545414281 | F71: 17
E72: 0.08545414281 | F72: 0
E73: 0.08789568975 | F73: 0
E74: 0.08789568975 | F74: 17
E75: 0.09033723669 | F75: 17
E76: 0.09033723669 | F76: 0
E77: 0.09277878363 | F77: 0
E78: 0.09277878363 | F78: 17
E79: 0.09522033056 | F79: 17
E80: 0.09522033056 | F80: 0
E81: 0.0976618775 | F81: 0
E82: 0.0976618775 | F82: 17
E83: 0.1001034244 | F83: 17
E84: 0.1001034244 | F84: 0
E85: 0.1025449714 | F85: 0
E86: 0.1025449714 | F86: 17
E87: 0.1049865183 | F87: 17
E88: 0.1049865183 | F88: 0
E89: 0.1074280653 | F89: 0
E90: 0.1074280653 | F90: 17
E91: 0.1098696122 | F91: 17
E92: 0.1098696122 | F92: 0
E93: 0.1123111591 | F93: 0
E94: 0.1123111591 | F94: 17
E95: 0.1147527061 | F95: 17
E96: 0.1147527061 | F96: 0
E97: 0.117194253 | F97: 0
E98: 0.117194253 | F98: 17
E99: 0.1196357999 | F99: 17
E100: 0.1196357999 | F100: 0
E101: 0.1220773469 | F101: 0
E102: 0.1220773469 | F102: 17
E103: 0.1245188938 | F103: 17
E104: 0.1245188938 | F104: 0
E105: 0.1269604408 | F105: 0
E106: 0.1269604408 | F106: 17
E107: 0.1294019877 | F107: 17
E108: 0.1294019877 | F108: 0
E109: 0.1318435346 | F109: 0
E110: 0.1318435346 | F110: 17
E111: 0.1342850816 | F111: 17
E112: 0.1342850816 | F112: 0
E113: 0.1367266285 | F113: 0
E114: 0.1367266285 | F114: 17
E115: 0.1391681754 | F115: 17
E116: 0.1391681754 | F116: 0
E117: 0.1416097224 | F117: 0
E118: 0.1416097224 | F118: 17
E119: 0.1440512693 | F119: 17
E120: 0.1440512693 | F120: 0
E121: 0.1464928163 | F121: 0
E122: 0.1464928163 | F122: 17
E123: 0.1489343632 | F123: 17
E124: 0.1489343632 | F124: 0
E125: 0.1513759101 | F125: 0
E126: 0.1513759101 | F126: 17
E127: 0.1538174571 | F127: 17
E128: 0.1538174571 | F128: 0
E129: 0.156259004 | F129: 0
E130: 0.156259004 | F130: 17
E131: 0.1587005509 | F131: 17
E132: 0.1587005509 | F132: 0
E133: 0.1611420979 | F133: 0
E134: 0.1611420979 | F134: 17
E135: 0.1635836448 | F135: 17
E136: 0.1635836448 | F136: 0
E137: 0.1660251918 | F137: 0
E138: 0.1660251918 | F138: 17
E139: 0.1684667387 | F139: 17
E140: 0.1684667387 | F140: 0
E141: 0.1709082856 | F141: 0
E142: 0.1709082856 | F142: 17
E143: 0.1733498326 | F143: 17
E144: 0.1733498326 | F144: 0
E145: 0.1757913795 | F145: 0
E146: 0.1757913795 | F146: 17
E147: 0.1782329264 | F147: 17
E148: 0.1782329264 | F148: 0
E149: 0.1806744734 | F149: 0
E150: 0.1806744734 | F150: 17
E151: 0.1831160203 | F151: 17
E152: 0.1831160203 | F152: 0
E153: 0.1855575673 | F153: 0
E154: 0.1855575673 | F154: 17
E155: 0.1879991142 | F155: 17
E156: 0.1879991142 | F156: 0
E157: 0.1904406611 | F157: 0
E158: 0.1904406611 | F158: 17
E159: 0.1928822081 | F159: 17
E160: 0.1928822081 | F160: 0
E161: 0.195323755 | F161: 0
E162: 0.195323755 | F162: 17
E163: 0.1977653019 | F163: 17
E164: 0.1977653019 | F164: 0
E165: 0.2002068489 | F165: 0
E166: 0.2002068489 | F166: 17
E167: 0.2026483958 | F167: 17
E168: 0.2026483958 | F168: 0
E169: 0.2050899428 | F169: 0
E170: 0.2050899428 | F170: 17
E171: 0.2075314897 | F171: 17
E172: 0.2075314897 | F172: 0
E173: 0.2099730366 | F173: 0
E174: 0.2099730366 | F174: 17
E175: 0.2124145836 | F175: 17
E176: 0.2124145836 | F176: 0
E177: 0.2148561305 | F177: 0
E178: 0.2148561305 | F178: 17
E179: 0.2172976774 | F179: 17
E180: 0.2172976774 | F180: 0
E181: 0.2197392244 | F181: 0
E182: 0.2197392244 | F182: 17
E183: 0.2221807713 | F183: 17
E184: 0.2221807713 | F184: 0
E185: 0.2246223183 | F185: 0
E186: 0.2246223183 | F186: 17
E187: 0.2270638652 | F187: 17
E188: 0.2270638652 | F188: 0
E189: 0.2295054121 | F189: 0
E190: 0.2295054121 | F190: 17
E191: 0.2319469591 | F191: 17
E192: 0.2319469591 | F192: 0
E193: 0.234388506 | F193: 0
E194: 0.234388506 | F194: 17
E195: 0.2368300529 | F195: 17
E196: 0.2368300529 | F196: 0
E197: 0.2392715999 | F197: 0
E198: 0.2392715999 | F198: 17
E199: 0.2417131468 | F199: 17
E200: 0.2417131468 | F200: 0
... 2228 more rows

Sheet Histogram1_HID (hidden)
A1: 0 | B1: 0 | E1: 0 | F1: 0
A2: 0 | B2: 1.452398574 | E2: 0 | F2: 1.452398574
A3: 0.2490377876 | B3: 1.452398574 | E3: 0.002441546938 | F3: 1.452398574
A4: 0.2490377876 | B4: 0 | E4: 0.002441546938 | F4: 0
A5: 0.2490377876 | B5: 0.6834816819 | E5: 0.004883093875 | F5: 0
A6: 0.4980755753 | B6: 0.6834816819 | E6: 0.004883093875 | F6: 1.452398574
A7: 0.4980755753 | B7: 0 | E7: 0.007324640813 | F7: 1.452398574
A8: 0.4980755753 | B8: 0.5126112615 | E8: 0.007324640813 | F8: 0
A9: 0.7471133629 | B9: 0.5126112615 | E9: 0.00976618775 | F9: 0
A10: 0.7471133629 | B10: 0 | E10: 0.00976618775 | F10: 1.452398574
A11: 0.7471133629 | B11: 0 | E11: 0.01220773469 | F11: 1.452398574
A12: 0.9961511505 | B12: 0 | E12: 0.01220773469 | F12: 0
A13: 0.9961511505 | B13: 0 | E13: 0.01464928163 | F13: 0
A14: 0.9961511505 | B14: 0.1708704205 | E14: 0.01464928163 | F14: 1.452398574
A15: 1.245188938 | B15: 0.1708704205 | E15: 0.01709082856 | F15: 1.452398574
A16: 1.245188938 | B16: 0 | E16: 0.01709082856 | F16: 0
A17: 1.245188938 | B17: 0.2563056307 | E17: 0.0195323755 | F17: 0
A18: 1.494226726 | B18: 0.2563056307 | E18: 0.0195323755 | F18: 1.452398574
A19: 1.494226726 | B19: 0 | E19: 0.02197392244 | F19: 1.452398574
A20: 1.494226726 | B20: 0.1708704205 | E20: 0.02197392244 | F20: 0
A21: 1.743264513 | B21: 0.1708704205 | E21: 0.02441546938 | F21: 0
A22: 1.743264513 | B22: 0 | E22: 0.02441546938 | F22: 1.452398574
A23: 1.743264513 | B23: 0.2563056307 | E23: 0.02685701631 | F23: 1.452398574
A24: 1.992302301 | B24: 0.2563056307 | E24: 0.02685701631 | F24: 0
A25: 1.992302301 | B25: 0 | E25: 0.02929856325 | F25: 0
A26: 1.992302301 | B26: 0.08543521024 | E26: 0.02929856325 | F26: 1.452398574
A27: 2.241340089 | B27: 0.08543521024 | E27: 0.03174011019 | F27: 1.452398574
A28: 2.241340089 | B28: 0 | E28: 0.03174011019 | F28: 0
A29: 2.241340089 | B29: 0 | E29: 0.03418165713 | F29: 0
A30: 2.490377876 | B30: 0 | E30: 0.03418165713 | F30: 1.452398574
A31: 2.490377876 | B31: 0 | E31: 0.03662320406 | F31: 1.452398574
A32: 2.490377876 | B32: 0 | E32: 0.03662320406 | F32: 0
A33: 2.739415664 | B33: 0 | E33: 0.039064751 | F33: 0
A34: 2.739415664 | B34: 0 | E34: 0.039064751 | F34: 1.452398574
A35: 2.739415664 | B35: 0 | E35: 0.04150629794 | F35: 1.452398574
A36: 2.988453452 | B36: 0 | E36: 0.04150629794 | F36: 0
A37: 2.988453452 | B37: 0 | E37: 0.04394784488 | F37: 0
A38: 2.988453452 | B38: 0 | E38: 0.04394784488 | F38: 1.452398574
A39: 3.237491239 | B39: 0 | E39: 0.04638939181 | F39: 1.452398574
A40: 3.237491239 | B40: 0 | E40: 0.04638939181 | F40: 0
A41: 3.237491239 | B41: 0 | E41: 0.04883093875 | F41: 0
A42: 3.486529027 | B42: 0 | E42: 0.04883093875 | F42: 1.452398574
A43: 3.486529027 | B43: 0 | E43: 0.05127248569 | F43: 1.452398574
A44: 3.486529027 | B44: 0.08543521024 | E44: 0.05127248569 | F44: 0
A45: 3.735566814 | B45: 0.08543521024 | E45: 0.05371403263 | F45: 0
A46: 3.735566814 | B46: 0 | E46: 0.05371403263 | F46: 1.452398574
A47: 3.735566814 | B47: 0.08543521024 | E47: 0.05615557956 | F47: 1.452398574
A48: 3.984604602 | B48: 0.08543521024 | E48: 0.05615557956 | F48: 0
A49: 3.984604602 | B49: 0 | E49: 0.0585971265 | F49: 0
A50: 3.984604602 | B50: 0 | E50: 0.0585971265 | F50: 1.452398574
A51: 4.23364239 | B51: 0 | E51: 0.06103867344 | F51: 1.452398574
A52: 4.23364239 | B52: 0 | E52: 0.06103867344 | F52: 0
A53: 4.23364239 | B53: 0.1708704205 | E53: 0.06348022038 | F53: 0
A54: 4.482680177 | B54: 0.1708704205 | E54: 0.06348022038 | F54: 1.452398574
A55: 4.482680177 | B55: 0 | E55: 0.06592176731 | F55: 1.452398574
A56: 4.482680177 | B56: 0 | E56: 0.06592176731 | F56: 0
A57: 4.731717965 | B57: 0 | E57: 0.06836331425 | F57: 0
A58: 4.731717965 | B58: 0 | E58: 0.06836331425 | F58: 1.452398574
A59: 4.731717965 | B59: 0.08543521024 | E59: 0.07080486119 | F59: 1.452398574
A60: 4.980755753 | B60: 0.08543521024 | E60: 0.07080486119 | F60: 0
A61: 4.980755753 | B61: 0 | E61: 0.07324640813 | F61: 0
E62: 0.07324640813 | F62: 1.452398574
E63: 0.07568795506 | F63: 1.452398574
E64: 0.07568795506 | F64: 0
E65: 0.078129502 | F65: 0
E66: 0.078129502 | F66: 1.452398574
E67: 0.08057104894 | F67: 1.452398574
E68: 0.08057104894 | F68: 0
E69: 0.08301259588 | F69: 0
E70: 0.08301259588 | F70: 1.452398574
E71: 0.08545414281 | F71: 1.452398574
E72: 0.08545414281 | F72: 0
E73: 0.08789568975 | F73: 0
E74: 0.08789568975 | F74: 1.452398574
E75: 0.09033723669 | F75: 1.452398574
E76: 0.09033723669 | F76: 0
E77: 0.09277878363 | F77: 0
E78: 0.09277878363 | F78: 1.452398574
E79: 0.09522033056 | F79: 1.452398574
E80: 0.09522033056 | F80: 0
E81: 0.0976618775 | F81: 0
E82: 0.0976618775 | F82: 1.452398574
E83: 0.1001034244 | F83: 1.452398574
E84: 0.1001034244 | F84: 0
E85: 0.1025449714 | F85: 0
E86: 0.1025449714 | F86: 1.452398574
E87: 0.1049865183 | F87: 1.452398574
E88: 0.1049865183 | F88: 0
E89: 0.1074280653 | F89: 0
E90: 0.1074280653 | F90: 1.452398574
E91: 0.1098696122 | F91: 1.452398574
E92: 0.1098696122 | F92: 0
E93: 0.1123111591 | F93: 0
E94: 0.1123111591 | F94: 1.452398574
E95: 0.1147527061 | F95: 1.452398574
E96: 0.1147527061 | F96: 0
E97: 0.117194253 | F97: 0
E98: 0.117194253 | F98: 1.452398574
E99: 0.1196357999 | F99: 1.452398574
E100: 0.1196357999 | F100: 0
E101: 0.1220773469 | F101: 0
E102: 0.1220773469 | F102: 1.452398574
E103: 0.1245188938 | F103: 1.452398574
E104: 0.1245188938 | F104: 0
E105: 0.1269604408 | F105: 0
E106: 0.1269604408 | F106: 1.452398574
E107: 0.1294019877 | F107: 1.452398574
E108: 0.1294019877 | F108: 0
E109: 0.1318435346 | F109: 0
E110: 0.1318435346 | F110: 1.452398574
E111: 0.1342850816 | F111: 1.452398574
E112: 0.1342850816 | F112: 0
E113: 0.1367266285 | F113: 0
E114: 0.1367266285 | F114: 1.452398574
E115: 0.1391681754 | F115: 1.452398574
E116: 0.1391681754 | F116: 0
E117: 0.1416097224 | F117: 0
E118: 0.1416097224 | F118: 1.452398574
E119: 0.1440512693 | F119: 1.452398574
E120: 0.1440512693 | F120: 0
E121: 0.1464928163 | F121: 0
E122: 0.1464928163 | F122: 1.452398574
E123: 0.1489343632 | F123: 1.452398574
E124: 0.1489343632 | F124: 0
E125: 0.1513759101 | F125: 0
E126: 0.1513759101 | F126: 1.452398574
E127: 0.1538174571 | F127: 1.452398574
E128: 0.1538174571 | F128: 0
E129: 0.156259004 | F129: 0
E130: 0.156259004 | F130: 1.452398574
E131: 0.1587005509 | F131: 1.452398574
E132: 0.1587005509 | F132: 0
E133: 0.1611420979 | F133: 0
E134: 0.1611420979 | F134: 1.452398574
E135: 0.1635836448 | F135: 1.452398574
E136: 0.1635836448 | F136: 0
E137: 0.1660251918 | F137: 0
E138: 0.1660251918 | F138: 1.452398574
E139: 0.1684667387 | F139: 1.452398574
E140: 0.1684667387 | F140: 0
E141: 0.1709082856 | F141: 0
E142: 0.1709082856 | F142: 1.452398574
E143: 0.1733498326 | F143: 1.452398574
E144: 0.1733498326 | F144: 0
E145: 0.1757913795 | F145: 0
E146: 0.1757913795 | F146: 1.452398574
E147: 0.1782329264 | F147: 1.452398574
E148: 0.1782329264 | F148: 0
E149: 0.1806744734 | F149: 0
E150: 0.1806744734 | F150: 1.452398574
E151: 0.1831160203 | F151: 1.452398574
E152: 0.1831160203 | F152: 0
E153: 0.1855575673 | F153: 0
E154: 0.1855575673 | F154: 1.452398574
E155: 0.1879991142 | F155: 1.452398574
E156: 0.1879991142 | F156: 0
E157: 0.1904406611 | F157: 0
E158: 0.1904406611 | F158: 1.452398574
E159: 0.1928822081 | F159: 1.452398574
E160: 0.1928822081 | F160: 0
E161: 0.195323755 | F161: 0
E162: 0.195323755 | F162: 1.452398574
E163: 0.1977653019 | F163: 1.452398574
E164: 0.1977653019 | F164: 0
E165: 0.2002068489 | F165: 0
E166: 0.2002068489 | F166: 1.452398574
E167: 0.2026483958 | F167: 1.452398574
E168: 0.2026483958 | F168: 0
E169: 0.2050899428 | F169: 0
E170: 0.2050899428 | F170: 1.452398574
E171: 0.2075314897 | F171: 1.452398574
E172: 0.2075314897 | F172: 0
E173: 0.2099730366 | F173: 0
E174: 0.2099730366 | F174: 1.452398574
E175: 0.2124145836 | F175: 1.452398574
E176: 0.2124145836 | F176: 0
E177: 0.2148561305 | F177: 0
E178: 0.2148561305 | F178: 1.452398574
E179: 0.2172976774 | F179: 1.452398574
E180: 0.2172976774 | F180: 0
E181: 0.2197392244 | F181: 0
E182: 0.2197392244 | F182: 1.452398574
E183: 0.2221807713 | F183: 1.452398574
E184: 0.2221807713 | F184: 0
E185: 0.2246223183 | F185: 0
E186: 0.2246223183 | F186: 1.452398574
E187: 0.2270638652 | F187: 1.452398574
E188: 0.2270638652 | F188: 0
E189: 0.2295054121 | F189: 0
E190: 0.2295054121 | F190: 1.452398574
E191: 0.2319469591 | F191: 1.452398574
E192: 0.2319469591 | F192: 0
E193: 0.234388506 | F193: 0
E194: 0.234388506 | F194: 1.452398574
E195: 0.2368300529 | F195: 1.452398574
E196: 0.2368300529 | F196: 0
E197: 0.2392715999 | F197: 0
E198: 0.2392715999 | F198: 1.452398574
E199: 0.2417131468 | F199: 1.452398574
E200: 0.2417131468 | F200: 0
... 2228 more rows

Sheet Histogram2_HID (hidden)
A1: 0 | B1: 0 | E1: 0 | F1: 0
A2: 0 | B2: 1.452398574 | E2: 0 | F2: 1.452398574
A3: 0.2490377876 | B3: 1.452398574 | E3: 0.002441546938 | F3: 1.452398574
A4: 0.2490377876 | B4: 0 | E4: 0.002441546938 | F4: 0
A5: 0.2490377876 | B5: 0.6834816819 | E5: 0.004883093875 | F5: 0
A6: 0.4980755753 | B6: 0.6834816819 | E6: 0.004883093875 | F6: 1.452398574
A7: 0.4980755753 | B7: 0 | E7: 0.007324640813 | F7: 1.452398574
A8: 0.4980755753 | B8: 0.5126112615 | E8: 0.007324640813 | F8: 0
A9: 0.7471133629 | B9: 0.5126112615 | E9: 0.00976618775 | F9: 0
A10: 0.7471133629 | B10: 0 | E10: 0.00976618775 | F10: 1.452398574
A11: 0.7471133629 | B11: 0 | E11: 0.01220773469 | F11: 1.452398574
A12: 0.9961511505 | B12: 0 | E12: 0.01220773469 | F12: 0
A13: 0.9961511505 | B13: 0 | E13: 0.01464928163 | F13: 0
A14: 0.9961511505 | B14: 0.1708704205 | E14: 0.01464928163 | F14: 1.452398574
A15: 1.245188938 | B15: 0.1708704205 | E15: 0.01709082856 | F15: 1.452398574
A16: 1.245188938 | B16: 0 | E16: 0.01709082856 | F16: 0
A17: 1.245188938 | B17: 0.2563056307 | E17: 0.0195323755 | F17: 0
A18: 1.494226726 | B18: 0.2563056307 | E18: 0.0195323755 | F18: 1.452398574
A19: 1.494226726 | B19: 0 | E19: 0.02197392244 | F19: 1.452398574
A20: 1.494226726 | B20: 0.1708704205 | E20: 0.02197392244 | F20: 0
A21: 1.743264513 | B21: 0.1708704205 | E21: 0.02441546938 | F21: 0
A22: 1.743264513 | B22: 0 | E22: 0.02441546938 | F22: 1.452398574
A23: 1.743264513 | B23: 0.2563056307 | E23: 0.02685701631 | F23: 1.452398574
A24: 1.992302301 | B24: 0.2563056307 | E24: 0.02685701631 | F24: 0
A25: 1.992302301 | B25: 0 | E25: 0.02929856325 | F25: 0
A26: 1.992302301 | B26: 0.08543521024 | E26: 0.02929856325 | F26: 1.452398574
A27: 2.241340089 | B27: 0.08543521024 | E27: 0.03174011019 | F27: 1.452398574
A28: 2.241340089 | B28: 0 | E28: 0.03174011019 | F28: 0
A29: 2.241340089 | B29: 0 | E29: 0.03418165713 | F29: 0
A30: 2.490377876 | B30: 0 | E30: 0.03418165713 | F30: 1.452398574
A31: 2.490377876 | B31: 0 | E31: 0.03662320406 | F31: 1.452398574
A32: 2.490377876 | B32: 0 | E32: 0.03662320406 | F32: 0
A33: 2.739415664 | B33: 0 | E33: 0.039064751 | F33: 0
A34: 2.739415664 | B34: 0 | E34: 0.039064751 | F34: 1.452398574
A35: 2.739415664 | B35: 0 | E35: 0.04150629794 | F35: 1.452398574
A36: 2.988453452 | B36: 0 | E36: 0.04150629794 | F36: 0
A37: 2.988453452 | B37: 0 | E37: 0.04394784488 | F37: 0
A38: 2.988453452 | B38: 0 | E38: 0.04394784488 | F38: 1.452398574
A39: 3.237491239 | B39: 0 | E39: 0.04638939181 | F39: 1.452398574
A40: 3.237491239 | B40: 0 | E40: 0.04638939181 | F40: 0
A41: 3.237491239 | B41: 0 | E41: 0.04883093875 | F41: 0
A42: 3.486529027 | B42: 0 | E42: 0.04883093875 | F42: 1.452398574
A43: 3.486529027 | B43: 0 | E43: 0.05127248569 | F43: 1.452398574
A44: 3.486529027 | B44: 0.08543521024 | E44: 0.05127248569 | F44: 0
A45: 3.735566814 | B45: 0.08543521024 | E45: 0.05371403263 | F45: 0
A46: 3.735566814 | B46: 0 | E46: 0.05371403263 | F46: 1.452398574
A47: 3.735566814 | B47: 0.08543521024 | E47: 0.05615557956 | F47: 1.452398574
A48: 3.984604602 | B48: 0.08543521024 | E48: 0.05615557956 | F48: 0
A49: 3.984604602 | B49: 0 | E49: 0.0585971265 | F49: 0
A50: 3.984604602 | B50: 0 | E50: 0.0585971265 | F50: 1.452398574
A51: 4.23364239 | B51: 0 | E51: 0.06103867344 | F51: 1.452398574
A52: 4.23364239 | B52: 0 | E52: 0.06103867344 | F52: 0
A53: 4.23364239 | B53: 0.1708704205 | E53: 0.06348022038 | F53: 0
A54: 4.482680177 | B54: 0.1708704205 | E54: 0.06348022038 | F54: 1.452398574
A55: 4.482680177 | B55: 0 | E55: 0.06592176731 | F55: 1.452398574
A56: 4.482680177 | B56: 0 | E56: 0.06592176731 | F56: 0
A57: 4.731717965 | B57: 0 | E57: 0.06836331425 | F57: 0
A58: 4.731717965 | B58: 0 | E58: 0.06836331425 | F58: 1.452398574
A59: 4.731717965 | B59: 0.08543521024 | E59: 0.07080486119 | F59: 1.452398574
A60: 4.980755753 | B60: 0.08543521024 | E60: 0.07080486119 | F60: 0
A61: 4.980755753 | B61: 0 | E61: 0.07324640813 | F61: 0
E62: 0.07324640813 | F62: 1.452398574
E63: 0.07568795506 | F63: 1.452398574
E64: 0.07568795506 | F64: 0
E65: 0.078129502 | F65: 0
E66: 0.078129502 | F66: 1.452398574
E67: 0.08057104894 | F67: 1.452398574
E68: 0.08057104894 | F68: 0
E69: 0.08301259588 | F69: 0
E70: 0.08301259588 | F70: 1.452398574
E71: 0.08545414281 | F71: 1.452398574
E72: 0.08545414281 | F72: 0
E73: 0.08789568975 | F73: 0
E74: 0.08789568975 | F74: 1.452398574
E75: 0.09033723669 | F75: 1.452398574
E76: 0.09033723669 | F76: 0
E77: 0.09277878363 | F77: 0
E78: 0.09277878363 | F78: 1.452398574
E79: 0.09522033056 | F79: 1.452398574
E80: 0.09522033056 | F80: 0
E81: 0.0976618775 | F81: 0
E82: 0.0976618775 | F82: 1.452398574
E83: 0.1001034244 | F83: 1.452398574
E84: 0.1001034244 | F84: 0
E85: 0.1025449714 | F85: 0
E86: 0.1025449714 | F86: 1.452398574
E87: 0.1049865183 | F87: 1.452398574
E88: 0.1049865183 | F88: 0
E89: 0.1074280653 | F89: 0
E90: 0.1074280653 | F90: 1.452398574
E91: 0.1098696122 | F91: 1.452398574
E92: 0.1098696122 | F92: 0
E93: 0.1123111591 | F93: 0
E94: 0.1123111591 | F94: 1.452398574
E95: 0.1147527061 | F95: 1.452398574
E96: 0.1147527061 | F96: 0
E97: 0.117194253 | F97: 0
E98: 0.117194253 | F98: 1.452398574
E99: 0.1196357999 | F99: 1.452398574
E100: 0.1196357999 | F100: 0
E101: 0.1220773469 | F101: 0
E102: 0.1220773469 | F102: 1.452398574
E103: 0.1245188938 | F103: 1.452398574
E104: 0.1245188938 | F104: 0
E105: 0.1269604408 | F105: 0
E106: 0.1269604408 | F106: 1.452398574
E107: 0.1294019877 | F107: 1.452398574
E108: 0.1294019877 | F108: 0
E109: 0.1318435346 | F109: 0
E110: 0.1318435346 | F110: 1.452398574
E111: 0.1342850816 | F111: 1.452398574
E112: 0.1342850816 | F112: 0
E113: 0.1367266285 | F113: 0
E114: 0.1367266285 | F114: 1.452398574
E115: 0.1391681754 | F115: 1.452398574
E116: 0.1391681754 | F116: 0
E117: 0.1416097224 | F117: 0
E118: 0.1416097224 | F118: 1.452398574
E119: 0.1440512693 | F119: 1.452398574
E120: 0.1440512693 | F120: 0
E121: 0.1464928163 | F121: 0
E122: 0.1464928163 | F122: 1.452398574
E123: 0.1489343632 | F123: 1.452398574
E124: 0.1489343632 | F124: 0
E125: 0.1513759101 | F125: 0
E126: 0.1513759101 | F126: 1.452398574
E127: 0.1538174571 | F127: 1.452398574
E128: 0.1538174571 | F128: 0
E129: 0.156259004 | F129: 0
E130: 0.156259004 | F130: 1.452398574
E131: 0.1587005509 | F131: 1.452398574
E132: 0.1587005509 | F132: 0
E133: 0.1611420979 | F133: 0
E134: 0.1611420979 | F134: 1.452398574
E135: 0.1635836448 | F135: 1.452398574
E136: 0.1635836448 | F136: 0
E137: 0.1660251918 | F137: 0
E138: 0.1660251918 | F138: 1.452398574
E139: 0.1684667387 | F139: 1.452398574
E140: 0.1684667387 | F140: 0
E141: 0.1709082856 | F141: 0
E142: 0.1709082856 | F142: 1.452398574
E143: 0.1733498326 | F143: 1.452398574
E144: 0.1733498326 | F144: 0
E145: 0.1757913795 | F145: 0
E146: 0.1757913795 | F146: 1.452398574
E147: 0.1782329264 | F147: 1.452398574
E148: 0.1782329264 | F148: 0
E149: 0.1806744734 | F149: 0
E150: 0.1806744734 | F150: 1.452398574
E151: 0.1831160203 | F151: 1.452398574
E152: 0.1831160203 | F152: 0
E153: 0.1855575673 | F153: 0
E154: 0.1855575673 | F154: 1.452398574
E155: 0.1879991142 | F155: 1.452398574
E156: 0.1879991142 | F156: 0
E157: 0.1904406611 | F157: 0
E158: 0.1904406611 | F158: 1.452398574
E159: 0.1928822081 | F159: 1.452398574
E160: 0.1928822081 | F160: 0
E161: 0.195323755 | F161: 0
E162: 0.195323755 | F162: 1.452398574
E163: 0.1977653019 | F163: 1.452398574
E164: 0.1977653019 | F164: 0
E165: 0.2002068489 | F165: 0
E166: 0.2002068489 | F166: 1.452398574
E167: 0.2026483958 | F167: 1.452398574
E168: 0.2026483958 | F168: 0
E169: 0.2050899428 | F169: 0
E170: 0.2050899428 | F170: 1.452398574
E171: 0.2075314897 | F171: 1.452398574
E172: 0.2075314897 | F172: 0
E173: 0.2099730366 | F173: 0
E174: 0.2099730366 | F174: 1.452398574
E175: 0.2124145836 | F175: 1.452398574
E176: 0.2124145836 | F176: 0
E177: 0.2148561305 | F177: 0
E178: 0.2148561305 | F178: 1.452398574
E179: 0.2172976774 | F179: 1.452398574
E180: 0.2172976774 | F180: 0
E181: 0.2197392244 | F181: 0
E182: 0.2197392244 | F182: 1.452398574
E183: 0.2221807713 | F183: 1.452398574
E184: 0.2221807713 | F184: 0
E185: 0.2246223183 | F185: 0
E186: 0.2246223183 | F186: 1.452398574
E187: 0.2270638652 | F187: 1.452398574
E188: 0.2270638652 | F188: 0
E189: 0.2295054121 | F189: 0
E190: 0.2295054121 | F190: 1.452398574
E191: 0.2319469591 | F191: 1.452398574
E192: 0.2319469591 | F192: 0
E193: 0.234388506 | F193: 0
E194: 0.234388506 | F194: 1.452398574
E195: 0.2368300529 | F195: 1.452398574
E196: 0.2368300529 | F196: 0
E197: 0.2392715999 | F197: 0
E198: 0.2392715999 | F198: 1.452398574
E199: 0.2417131468 | F199: 1.452398574
E200: 0.2417131468 | F200: 0
... 2228 more rows

Sheet NORM4_HID (hidden)
A1: 0.02127659574 | B1: 0.04415305494
A2: 0.04255319149 | B2: 0.05321434054
A3: 0.06382978723 | B3: 0.05414037384
A4: 0.08510638298 | B4: 0.0635024636
A5: 0.1063829787 | B5: 0.0702971921
A6: 0.1276595745 | B6: 0.1260984469
A7: 0.1489361702 | B7: 0.1413902551
A8: 0.170212766 | B8: 0.1516261502
A9: 0.1914893617 | B9: 0.1607261368
A10: 0.2127659574 | B10: 0.1744475846
A11: 0.2340425532 | B11: 0.1793938077
A12: 0.2553191489 | B12: 0.1959684316
A13: 0.2765957447 | B13: 0.2087591772
A14: 0.2978723404 | B14: 0.2120150156
A15: 0.3191489362 | B15: 0.2252538675
A16: 0.3404255319 | B16: 0.2591445775
A17: 0.3617021277 | B17: 0.3562767645
A18: 0.3829787234 | B18: 0.3869974874
A19: 0.4042553191 | B19: 0.3943360447
A20: 0.4255319149 | B20: 0.4049287727
A21: 0.4468085106 | B21: 0.4226623061
A22: 0.4680851064 | B22: 0.4235010906
A23: 0.4893617021 | B23: 0.4896607793
A24: 0.5106382979 | B24: 0.4923332732
A25: 0.5319148936 | B25: 0.5175387845
A26: 0.5531914894 | B26: 0.520638241
A27: 0.5744680851 | B27: 0.5582611256
A28: 0.5957446809 | B28: 0.5680150769
A29: 0.6170212766 | B29: 0.6038211019
A30: 0.6382978723 | B30: 0.6329390653
A31: 0.6595744681 | B31: 0.6550474839
A32: 0.6808510638 | B32: 0.688166796
A33: 0.7021276596 | B33: 0.708112616
A34: 0.7234042553 | B34: 0.7185988938
A35: 0.7446808511 | B35: 0.7187510143
A36: 0.7659574468 | B36: 0.7189983933
A37: 0.7872340426 | B37: 0.7980311842
A38: 0.8085106383 | B38: 0.8389232697
A39: 0.829787234 | B39: 0.8526778551
A40: 0.8510638298 | B40: 0.868747623
A41: 0.8723404255 | B41: 0.8775928968
A42: 0.8936170213 | B42: 0.9042725522
A43: 0.914893617 | B43: 0.9351202032
A44: 0.9361702128 | B44: 0.9520269766
A45: 0.9574468085 | B45: 0.9685063748
A46: 0.9787234043 | B46: 0.970553479
A47: 1 | B47: 0.97133789

Sheet NORM4_HID1 (hidden)
A1: 0.1554844252 | B1: -1.135899847
A2: 0.3998639474 | B2: -0.1183698762
A3: 0.4229214811 | B3: 0.4835120157
A4: 0.6401395836 | B4: 0.9271348727
A5: 0.7826130256 | B5: 1.286625149
A6: 1.675273428 | B6: 1.593508248
A7: 1.868002119 | B7: 1.864300414
A8: 1.989205843 | B8: 2.108803159
A9: 2.092466701 | B9: 2.333343763
A10: 2.24120229 | B10: 2.542264628
A11: 2.292978605 | B11: 2.738689306
A12: 2.460255053 | B12: 2.924950687
A13: 2.583539615 | B13: 3.102846275
A14: 2.614200533 | B14: 3.27379846
A15: 2.736138374 | B15: 3.438959529
A16: 3.031156257 | B16: 3.599283016
A17: 3.785264024 | B17: 3.755573741
A18: 4.006086125 | B18: 3.908523926
A19: 4.05802858 | B19: 4.05873998
A20: 4.132542643 | B20: 4.206762901
A21: 4.256225351 | B21: 4.35308424
A22: 4.262046343 | B22: 4.498158993
A23: 4.715846915 | B23: 4.642416351
A24: 4.734052337 | B24: 4.786269027
A25: 4.905753667 | B25: 4.930121704
A26: 4.926886454 | B26: 5.074379062
A27: 5.184471604 | B27: 5.219453815
A28: 5.251745989 | B28: 5.365775154
A29: 5.501508167 | B29: 5.513798074
A30: 5.709076982 | B30: 5.664014129
A31: 5.870291047 | B31: 5.816964314
A32: 6.119372942 | B32: 5.973255038
A33: 6.274833299 | B33: 6.133578526
A34: 6.358529079 | B34: 6.298739595
A35: 6.359754074 | B35: 6.46969178
A36: 6.361746849 | B36: 6.647587368
A37: 7.053866615 | B37: 6.833848749
A38: 7.476170771 | B38: 7.030273427
A39: 7.6336059 | B39: 7.239194292
A40: 7.830593231 | B40: 7.463734896
A41: 7.946191839 | B41: 7.708237641
A42: 8.335394594 | B42: 7.979029807
A43: 8.902595529 | B43: 8.285912906
A44: 9.309548251 | B44: 8.645403182
A45: 9.837855885 | B45: 9.089026039
A46: 9.918575205 | B46: 9.690907931
A47: 9.950742714 | B47: 10.7084379
